{"text_format":"1","workbook":"xlsx","n_sheets":5,"sheets":["Cerere de Finanţare","Anexa 1","Anexa 2","Anexa 3","Asociati"],"not_rendered":{"charts":0,"images":7,"macros":1,"external_links":0,"defined_names":1,"comments":0,"pivot_tables":0},"unopened":[],"bounds":{"document_bytes":16777216,"sheet_cells":100000,"rows_first":2000,"rows_last":500,"rows_between":2000,"halvings":0,"cell_chars":16384,"cell_head_chars":4096},"cells_cut":0,"cells_raw":0,"read":"whole","date_system":"1900"}

{"sheet":"Cerere de Finanţare","index":0,"n_rows":857,"n_cols":57,"rows_kept":857,"cut":false,"hidden":false,"merged":[[799,0,799,4],[799,5,799,49],[799,50,799,60],[800,0,801,4],[800,5,800,60],[802,0,803,4],[802,5,802,60],[803,5,803,49],[803,50,803,60],[804,5,804,60],[805,5,805,49],[805,50,805,60],[801,5,801,49],[801,50,801,60],[707,0,707,29],[707,30,707,34],[707,35,707,41],[707,42,707,49],[707,50,707,54],[707,55,707,60],[746,5,746,60],[754,5,754,60],[755,0,755,30],[729,0,729,60],[735,0,735,2],[736,0,736,2],[737,0,737,2],[738,0,738,2],[739,0,739,2],[740,0,740,2],[726,0,726,60],[727,0,727,60],[854,13,854,34],[655,0,655,3],[655,4,655,41],[655,42,655,50],[655,51,655,60],[651,51,651,60],[652,42,652,50],[652,0,652,3],[652,4,652,41],[652,51,652,60],[654,0,654,3],[654,4,654,41],[654,42,654,50],[654,51,654,60],[653,0,653,3],[653,4,653,41],[653,42,653,50],[780,41,780,50],[780,51,780,60],[773,0,773,60],[774,51,774,60],[775,0,775,1],[776,0,776,1],[854,0,854,12],[852,43,852,46],[852,47,852,56],[828,0,828,2],[828,3,828,6],[828,8,828,9],[828,10,828,12],[808,0,809,4],[808,5,808,60],[144,41,144,43],[144,45,144,47],[144,49,144,51],[144,53,144,55],[656,0,656,3],[656,4,656,41],[656,42,656,60],[658,0,658,44],[543,0,543,3],[543,4,543,41],[543,42,543,50],[543,51,543,60],[546,0,546,3],[546,4,546,41],[546,42,546,50],[546,51,546,60],[545,0,545,3],[545,4,545,41],[545,42,545,50],[545,51,545,60],[560,4,560,41],[559,0,559,3],[559,4,559,41],[559,42,559,50],[559,51,559,60],[561,4,561,41],[562,4,562,41],[563,4,563,41],[567,0,567,3],[650,0,650,3],[408,7,408,41],[617,7,617,41],[650,4,650,41],[650,42,650,50],[650,51,650,60],[651,0,651,3],[651,4,651,41],[651,42,651,50],[653,51,653,60],[645,0,645,3],[645,4,645,41],[645,42,645,50],[645,51,645,60],[646,0,646,3],[646,4,646,41],[646,42,646,50],[646,51,646,60],[647,0,647,3],[647,4,647,41],[647,42,647,50],[647,51,647,60],[648,0,648,3],[648,4,648,41],[648,42,648,50],[648,51,648,60],[649,0,649,3],[649,4,649,41],[649,42,649,50],[649,51,649,60],[639,0,639,3],[639,4,639,41],[639,42,639,50],[639,51,639,60],[640,0,640,60],[641,0,641,3],[641,4,641,41],[641,42,641,50],[641,51,641,60],[642,0,642,60],[643,0,643,3],[643,4,643,41],[643,42,643,50],[643,51,643,60],[644,0,644,3],[644,4,644,41],[644,42,644,50],[644,51,644,60],[635,0,635,3],[635,4,635,41],[635,42,635,50],[635,51,635,60],[636,0,636,3],[636,4,636,41],[636,42,636,50],[636,51,636,60],[637,0,637,3],[637,4,637,41],[637,42,637,50],[637,51,637,60],[638,0,638,41],[638,42,638,60],[630,0,630,3],[630,4,630,41],[630,42,630,50],[630,51,630,60],[631,0,631,3],[631,4,631,41],[631,42,631,50],[631,51,631,60],[632,0,632,3],[632,4,632,41],[632,42,632,50],[632,51,632,60],[633,0,633,3],[633,4,633,41],[633,42,633,50],[633,51,633,60],[634,0,634,3],[634,4,634,41],[634,42,634,50],[634,51,634,60],[623,0,623,60],[624,0,624,60],[625,0,625,60],[626,0,626,3],[626,4,626,41],[626,42,626,50],[626,51,626,60],[627,0,627,3],[627,4,627,41],[627,42,627,50],[627,51,627,60],[628,0,628,3],[628,4,628,41],[628,42,628,50],[628,51,628,60],[629,0,629,3],[629,4,629,41],[629,42,629,50],[629,51,629,60],[611,0,611,41],[611,42,611,50],[611,51,611,60],[612,0,612,41],[612,42,612,50],[612,51,612,60],[613,0,613,41],[613,42,613,60],[615,0,615,43],[618,7,618,41],[618,42,619,60],[619,7,619,41],[620,7,620,41],[620,42,620,50],[620,51,620,60],[621,7,621,60],[622,0,622,60],[605,0,605,60],[606,0,606,3],[606,4,606,41],[606,42,606,50],[606,51,606,60],[607,0,607,3],[607,4,607,41],[607,42,607,50],[607,51,607,60],[608,0,608,3],[608,4,608,41],[608,42,608,50],[608,51,608,60],[610,0,610,3],[610,4,610,41],[610,42,610,50],[610,51,610,60],[609,0,609,3],[609,4,609,41],[609,42,609,50],[609,51,609,60],[603,0,603,3],[601,0,601,3],[601,4,601,41],[601,42,601,50],[601,51,601,60],[602,0,602,60],[603,4,603,41],[603,42,603,50],[603,51,603,60],[604,0,604,3],[604,4,604,41],[604,42,604,50],[604,51,604,60],[598,0,598,3],[598,4,598,41],[598,42,598,50],[598,51,598,60],[599,0,599,3],[599,4,599,41],[599,42,599,50],[599,51,599,60],[600,0,600,3],[600,4,600,41],[600,42,600,50],[600,51,600,60],[592,0,592,60],[593,0,593,3],[593,4,593,41],[593,42,593,60],[594,0,594,41],[594,42,594,50],[594,51,594,60],[595,0,595,41],[595,42,595,50],[595,51,595,60],[596,0,596,3],[596,4,596,41],[596,42,596,50],[596,51,596,60],[597,0,597,3],[597,4,597,41],[597,42,597,50],[597,51,597,60],[580,0,580,3],[580,4,580,41],[580,42,580,50],[580,51,580,60],[581,0,581,41],[581,42,581,60],[583,0,583,42],[585,7,585,41],[586,7,586,41],[586,42,587,60],[587,7,587,41],[588,7,588,41],[588,42,588,50],[588,51,588,60],[589,7,589,60],[590,0,590,60],[591,0,591,60],[573,0,573,3],[573,4,573,41],[573,42,573,50],[573,51,573,60],[574,0,574,3],[574,4,574,41],[574,42,574,50],[574,51,574,60],[575,0,575,3],[575,4,575,41],[575,42,575,50],[575,51,575,60],[576,0,576,3],[576,4,576,41],[576,42,576,50],[576,51,576,60],[579,0,579,3],[579,4,579,41],[579,42,579,50],[579,51,579,60],[577,0,577,3],[577,4,577,41],[577,42,577,50],[577,51,577,60],[578,0,578,3],[578,4,578,41],[578,42,578,50],[578,51,578,60],[566,0,566,3],[566,4,566,41],[566,42,566,50],[566,51,566,60],[571,4,571,41],[571,42,571,50],[571,51,571,60],[572,0,572,3],[572,4,572,41],[572,42,572,50],[572,51,572,60],[567,4,567,41],[567,42,567,50],[567,51,567,60],[568,0,568,3],[568,4,568,41],[568,42,568,50],[568,51,568,60],[569,0,569,3],[569,4,569,41],[569,42,569,50],[569,51,569,60],[570,0,570,3],[570,4,570,41],[570,42,570,50],[570,51,570,60],[571,0,571,3],[563,0,563,3],[563,42,563,50],[563,51,563,60],[564,0,564,3],[564,4,564,41],[564,42,564,50],[564,51,564,60],[557,4,557,41],[558,0,558,3],[558,4,558,41],[557,0,557,3],[557,42,557,50],[557,51,557,60],[558,42,558,50],[558,51,558,60],[565,0,565,3],[565,4,565,41],[565,42,565,50],[565,51,565,60],[554,51,554,60],[555,0,555,3],[555,4,555,41],[555,42,555,50],[555,51,555,60],[556,0,556,3],[556,4,556,41],[556,42,556,50],[556,51,556,60],[560,0,560,3],[560,42,560,50],[560,51,560,60],[561,0,561,3],[561,42,561,50],[561,51,561,60],[562,0,562,3],[562,42,562,50],[562,51,562,60],[507,52,507,60],[509,0,509,34],[509,35,509,43],[547,4,547,41],[547,42,547,50],[547,51,547,60],[548,0,548,3],[548,4,548,41],[548,42,548,50],[548,51,548,60],[549,0,549,3],[549,4,549,41],[549,42,549,50],[549,51,549,60],[550,0,550,3],[550,4,550,41],[550,42,550,50],[550,51,550,60],[514,35,514,43],[514,44,514,51],[514,52,514,60],[528,0,528,13],[528,15,528,34],[528,35,528,43],[528,44,528,51],[528,52,528,60],[525,52,525,60],[526,0,526,34],[526,35,526,43],[526,44,526,51],[526,52,526,60],[527,0,527,13],[504,44,504,51],[504,52,504,60],[505,0,505,34],[542,51,542,60],[494,0,494,34],[494,35,494,43],[494,44,494,51],[494,52,494,60],[495,0,495,34],[495,35,495,43],[495,44,495,51],[495,52,495,60],[496,0,496,34],[496,35,496,43],[496,44,496,51],[496,52,496,60],[497,0,497,34],[501,0,501,34],[501,35,501,43],[501,44,501,51],[501,52,501,60],[502,0,502,34],[505,35,505,43],[505,44,505,51],[505,52,505,60],[506,0,506,34],[506,35,506,43],[506,44,506,51],[506,52,506,60],[507,0,507,34],[507,35,507,43],[507,44,507,51],[491,35,491,43],[491,44,491,51],[491,52,491,60],[492,0,492,34],[492,35,492,43],[492,44,492,51],[492,52,492,60],[534,7,534,41],[497,35,497,43],[497,44,497,51],[497,52,497,60],[498,0,498,34],[498,35,498,43],[498,44,498,51],[498,52,498,60],[499,0,499,34],[499,35,499,43],[499,44,499,51],[499,52,499,60],[500,0,500,34],[500,35,500,43],[500,44,500,51],[500,52,500,60],[502,35,502,43],[502,44,502,51],[502,52,502,60],[503,0,503,34],[503,35,503,43],[503,44,503,51],[503,52,503,60],[504,0,504,34],[504,35,504,43],[12,36,13,60],[18,36,26,60],[780,2,780,40],[783,2,783,40],[784,2,784,40],[785,2,785,40],[781,0,781,60],[782,0,782,40],[793,0,793,40],[795,0,795,60],[783,0,783,1],[783,41,783,50],[783,51,783,60],[784,0,784,1],[784,41,784,50],[784,51,784,60],[785,0,785,1],[785,41,785,50],[785,51,785,60],[793,41,793,50],[793,51,793,60],[782,41,782,50],[255,56,256,59],[259,56,260,59],[457,1,457,10],[457,12,457,17],[32,1,32,45],[32,48,32,59],[33,48,33,59],[104,33,104,43],[105,33,105,43],[140,1,140,41],[856,0,856,7],[404,42,404,60],[430,42,430,60],[842,12,842,59],[844,12,844,59],[370,42,370,60],[326,44,326,60],[327,44,327,60],[326,35,326,42],[328,0,328,30],[92,1,96,13],[84,1,88,13],[832,0,832,38],[832,40,832,59],[834,0,834,5],[836,0,836,19],[836,20,836,30],[767,0,767,60],[768,51,768,60],[768,41,768,50],[768,0,768,40],[834,6,834,30],[838,0,838,51],[838,52,838,59],[840,0,840,5],[840,6,840,59],[848,0,848,3],[848,4,848,14],[848,15,848,59],[850,0,850,60],[852,0,852,10],[852,12,852,27],[828,19,828,20],[828,21,828,23],[828,25,828,28],[828,30,828,36],[828,38,828,45],[828,47,828,56],[830,0,830,10],[830,11,830,21],[830,23,830,25],[830,26,830,36],[830,38,830,42],[830,43,830,59],[846,21,846,52],[819,0,819,14],[820,0,820,14],[822,0,822,14],[824,0,824,4],[824,5,824,12],[824,14,824,17],[824,18,824,31],[824,33,824,37],[824,38,824,57],[826,0,826,4],[826,5,826,18],[826,21,826,23],[826,25,826,37],[826,39,826,42],[826,44,826,59],[828,14,828,15],[828,16,828,17],[818,15,818,59],[820,15,820,59],[811,0,811,60],[812,0,812,60],[813,0,813,60],[814,0,814,60],[815,0,815,60],[816,0,816,60],[817,0,817,60],[818,0,818,14],[769,41,769,50],[769,51,769,60],[770,41,770,50],[770,51,770,60],[771,41,771,50],[771,51,771,60],[782,51,782,60],[780,0,780,1],[779,41,779,50],[809,5,809,49],[809,50,809,60],[810,0,810,49],[810,50,810,60],[798,0,798,60],[791,51,791,60],[778,0,778,60],[779,0,779,1],[779,2,779,40],[779,51,779,60],[769,2,769,40],[770,2,770,40],[771,2,771,40],[341,42,341,50],[341,51,341,60],[334,0,334,60],[335,0,335,60],[336,0,336,60],[337,42,337,50],[769,0,769,1],[770,0,770,1],[332,7,332,41],[332,42,332,50],[332,51,332,60],[333,7,333,60],[342,42,342,50],[342,51,342,60],[343,42,343,50],[343,51,343,60],[344,42,344,50],[487,44,487,51],[487,52,487,60],[488,0,488,34],[488,35,488,43],[488,44,488,51],[488,52,488,60],[489,0,489,34],[489,35,489,43],[489,44,489,51],[489,52,489,60],[490,0,490,34],[490,35,490,43],[490,44,490,51],[490,52,490,60],[491,0,491,34],[324,0,324,34],[324,35,324,43],[324,44,324,51],[324,52,324,60],[328,35,328,43],[328,44,328,60],[322,35,322,43],[322,44,322,51],[322,52,322,60],[322,0,322,13],[322,15,322,34],[323,0,323,13],[323,15,323,34],[325,0,325,34],[325,35,325,43],[325,44,325,51],[325,52,325,60],[327,0,327,34],[327,35,327,43],[318,0,318,34],[318,35,318,43],[318,44,318,51],[318,52,318,60],[319,0,319,34],[319,35,319,43],[319,44,319,51],[319,52,319,60],[320,0,320,34],[320,35,320,43],[320,44,320,51],[320,52,320,60],[321,0,321,34],[321,35,321,43],[321,44,321,51],[321,52,321,60],[323,35,323,43],[323,44,323,51],[323,52,323,60],[316,0,316,34],[316,35,316,43],[316,44,316,51],[316,52,316,60],[317,0,317,34],[317,35,317,43],[317,44,317,51],[317,52,317,60],[289,35,289,60],[308,35,308,60],[313,35,313,60],[313,0,313,34],[314,0,314,34],[314,35,314,43],[314,44,314,51],[314,52,314,60],[315,0,315,34],[315,35,315,43],[315,44,315,51],[315,52,315,60],[310,0,310,34],[310,35,310,43],[310,44,310,51],[310,52,310,60],[306,0,306,34],[306,35,306,43],[306,44,306,51],[306,52,306,60],[311,0,311,34],[311,35,311,43],[311,44,311,51],[311,52,311,60],[312,0,312,34],[312,35,312,43],[312,44,312,51],[312,52,312,60],[307,0,307,34],[307,35,307,43],[307,44,307,51],[307,52,307,60],[309,0,309,34],[309,35,309,43],[309,44,309,51],[309,52,309,60],[301,0,301,34],[301,35,301,43],[301,44,301,51],[301,52,301,60],[302,0,302,34],[302,35,302,43],[302,44,302,51],[302,52,302,60],[303,0,303,34],[303,35,303,43],[303,44,303,51],[303,52,303,60],[304,0,304,34],[304,35,304,43],[304,44,304,51],[304,52,304,60],[305,0,305,34],[305,35,305,43],[305,44,305,51],[305,52,305,60],[296,0,296,34],[296,35,296,43],[296,44,296,51],[296,52,296,60],[297,0,297,34],[297,35,297,43],[297,44,297,51],[297,52,297,60],[298,0,298,34],[298,35,298,43],[298,44,298,51],[298,52,298,60],[299,0,299,34],[299,35,299,43],[299,44,299,51],[299,52,299,60],[300,0,300,34],[300,35,300,43],[300,44,300,51],[300,52,300,60],[291,0,291,34],[291,35,291,43],[291,44,291,51],[291,52,291,60],[292,0,292,34],[292,35,292,43],[292,44,292,51],[292,52,292,60],[293,0,293,34],[293,35,293,43],[293,44,293,51],[293,52,293,60],[294,0,294,34],[294,35,294,43],[294,44,294,51],[294,52,294,60],[295,0,295,34],[295,35,295,43],[295,44,295,51],[295,52,295,60],[286,0,286,34],[286,35,286,43],[286,44,286,51],[286,52,286,60],[287,0,287,34],[287,35,287,43],[287,44,287,51],[287,52,287,60],[288,0,288,34],[288,35,288,43],[288,44,288,51],[288,52,288,60],[290,0,290,34],[290,35,290,43],[290,44,290,51],[290,52,290,60],[289,0,289,24],[281,0,281,34],[281,35,281,43],[281,44,281,51],[281,52,281,60],[282,0,282,34],[282,35,282,43],[282,44,282,51],[282,52,282,60],[283,0,283,34],[283,35,283,43],[283,44,283,51],[283,52,283,60],[284,0,284,34],[284,35,284,43],[284,44,284,51],[284,52,284,60],[285,0,285,34],[285,35,285,43],[285,44,285,51],[285,52,285,60],[276,0,276,34],[276,35,276,43],[276,44,276,51],[276,52,276,60],[277,0,277,34],[277,35,277,43],[277,44,277,51],[277,52,277,60],[278,0,278,34],[278,35,278,43],[278,44,278,51],[278,52,278,60],[279,0,279,34],[279,35,279,43],[279,44,279,51],[279,52,279,60],[280,0,280,34],[280,35,280,43],[280,44,280,51],[280,52,280,60],[271,47,271,56],[273,0,273,34],[273,35,273,43],[273,44,273,51],[273,52,273,60],[274,0,274,34],[274,35,274,43],[274,44,274,51],[274,52,274,60],[275,0,275,34],[275,35,275,43],[275,44,275,51],[275,52,275,60],[271,33,271,45],[271,26,271,31],[271,20,271,24],[271,1,271,10],[271,12,271,17],[264,4,264,40],[267,0,267,34],[268,0,268,34],[268,35,268,43],[268,44,268,51],[268,52,268,60],[262,19,262,41],[262,42,262,48],[262,49,262,55],[263,14,263,18],[263,19,263,41],[263,42,263,48],[263,49,263,55],[263,1,263,13],[259,42,259,48],[259,49,259,55],[269,0,269,60],[267,35,267,60],[257,1,257,13],[258,1,258,13],[259,1,259,13],[260,1,260,13],[261,1,261,13],[262,1,262,13],[257,14,257,18],[260,14,260,18],[262,14,262,18],[257,56,257,59],[258,56,258,59],[261,56,263,59],[260,19,260,41],[260,42,260,48],[260,49,260,55],[261,14,261,18],[261,19,261,41],[261,42,261,48],[261,49,261,55],[257,19,257,41],[257,42,257,48],[257,49,257,55],[258,14,258,18],[258,19,258,41],[258,42,258,48],[258,49,258,55],[259,14,259,18],[259,19,259,41],[247,0,247,60],[203,1,203,13],[203,20,203,32],[220,0,245,60],[248,2,248,60],[249,2,249,60],[253,1,254,13],[253,14,253,55],[253,56,254,59],[254,14,254,18],[254,19,254,41],[254,42,254,48],[254,49,254,55],[255,1,255,13],[255,14,255,18],[255,19,255,41],[255,42,255,48],[255,49,255,55],[204,20,204,32],[256,1,256,13],[256,14,256,18],[256,19,256,41],[256,42,256,48],[256,49,256,55],[198,1,198,37],[199,1,199,19],[199,22,199,39],[199,42,199,58],[200,1,200,19],[200,22,200,39],[200,42,200,58],[164,28,164,35],[165,28,166,35],[202,1,202,6],[202,8,202,34],[202,36,202,39],[213,2,213,56],[214,2,214,56],[216,2,216,27],[216,31,216,56],[217,2,217,27],[217,31,217,56],[206,1,206,23],[203,38,203,50],[204,38,204,50],[208,0,208,60],[210,2,210,27],[210,31,210,56],[211,31,211,56],[211,2,211,27],[204,1,204,13],[157,0,157,60],[158,1,158,32],[148,1,148,58],[149,1,149,58],[151,3,152,13],[151,14,152,24],[151,25,152,35],[151,36,152,46],[151,47,151,57],[152,47,152,57],[164,37,164,48],[165,37,166,48],[164,51,164,58],[165,51,166,58],[160,3,160,10],[161,3,161,16],[160,24,160,49],[164,4,164,15],[165,4,165,6],[165,7,165,9],[165,10,165,15],[166,4,166,6],[166,7,166,9],[166,10,166,15],[164,18,164,20],[164,21,164,26],[165,21,166,26],[165,18,166,20],[133,21,133,22],[146,11,146,19],[146,21,146,29],[141,1,141,19],[141,22,141,39],[141,42,141,58],[142,1,142,19],[142,22,142,39],[142,42,142,58],[145,36,145,58],[146,36,146,58],[146,1,146,9],[154,4,154,13],[154,16,154,23],[154,26,154,34],[153,47,155,57],[154,36,154,46],[133,2,133,3],[133,4,133,5],[133,6,133,7]],"merged_total":2167,"flags":["merged_cut"]}
[]
[]
[]
[]
[null,null,null,null,null,null,null,null,null,null,null,null,null,null,null,null,null,null,null,null,null,null,null,null,null,null,null,null,null,null,null,null,null,null,null,null,null,null,null,null,null,null,null,null,"versiunea 01 din octombrie 2017"]
[null,null,null,null,null,null,"MINISTERUL AGRICULTURII ŞI DEZVOLTĂRII RURALE"]
[null,null,null,null,null,null,"AGENŢIA PENTRU FINANŢAREA INVESTIŢIILOR RURALE"]
[]
[null,null,null,null,null,null,null,null,null,null,null,null,null,null,null,null,null,null,null,null,null,null,null,null,null,null,null,null,null,null,null,null,null,null,null,null,null,null,null,null,null,null,"SECŢIUNE GENERALĂ"]
[]
["DATE DE ÎNREGISTRARE",null,null,null,null,null,null,null,null,null,null,null,null,null,null,null,null,null,null,null,null,null,null,null,null,null,null,null,null,null,null,null,null,null,null,null,"NUME ŞI PRENUME DIRECTOR GENERAL"]
[null,null,null,null,null,null,null,null,null,null,null,null,null,null,null,null,null,null,null,null,null,null,null,null,null,null,null,null,null,null,null,null,null,null,null,null,"ADJUNCT CRFIR"]
["Se completează de către Agenția pentru Finanțarea Investițiilor Rurale -Centrul"]
["Regional- Programul FEADR 2014-2020"]
[]
["OJFIR/CRFIR",null,null,null,null,null,null,null,null,null,null,null,null,null,null,null,null,null,null,null,null,null,null,null,null,null,null,null,null,null,null,null,null,null,null,null,"Semnătura Director General Adjunct CRFIR"]
[null,null,null,null,null,null,null,null,null,null,null,null,null,null,null,null,null,null,null,null,null,null,null,null,null,null,null,null,null,null,null,null,null,null,null,null,"Ştampila CRFIR"]
["Număr "]
["înregistrare"]
[]
[]
[]
[]
["Data Înregistrării"]
["Numele şi prenumele persoanei care înregistrează"]
["Semnătura:"]
["Data primirii cererii de finanţare la contractare:"]
["Se completează de către solicitant"]
["A PREZENTARE GENERALĂ"]
[]
[null,"A1 Măsura",null,null,null,null,null,null,null,null,"Sub-măsura 19.2 "]
[null,null,null,null,null,null,null,null,null,null,"Masura M4/6A Investitii in activitati non-agricole "]
[null,"Conţinutul cadru al documentaţiei tehnico-economice faza SF/DALI conform : ",null,null,null,null,null,null,null,null,null,null,null,null,null,null,null,null,null,null,null,null,null,null,null,null,null,null,null,null,null,null,null,null,null,null,null,null,null,null,null,null,null,null,null,null,null,null,"H.G. nr. 28/2008"]
[null,"A2 Denumire solicitant:",null,null,null,null,null,null,null,null,null,null,null,null,null,null,null,null,null,null,null,null,null,null,null,null,null,null,null,null,null,null,null,null,null,null,null,null,null,null,null,null,null,null,null,null,null,null,"H.G. nr. 907/2016"]
[]
[null,"A3 Titlu proiect:"]
[]
[]
[]
[]
[]
[]
[null,"A4 Descrierea succintă a proiectului:"]
[]
[]
[]
[]
[]
[]
[]
[]
[]
[]
[]
[null,null,"A5 Amplasarea proiectului:"]
[]
["Regiunea de dezvoltare:",null,null,null,null,null,null,null,null,null,null,null,null,null,null,null,null,null,null,null,null,null,null,null,null,null,null,"Judeţ:"]
[]
[null,"Obiectivele investiţiei",null,null,null,null,null,null,null,null,null,null,null,null,null,"Judeţ",null,null,null,null,null,null,null,null,null,null,null,"Comună/Oraş",null,null,null,null,null,null,null,null,null,null,null,"Sat",null,null,null,null,null,null,null,null,null,null,"Sat"]
[]
[]
[]
[]
[]
[]
[]
[]
[]
[]
[]
[]
[]
[]
[]
[]
[]
[]
[]
[]
[]
[]
[]
[]
[]
[]
[]
[]
[]
[]
[]
[]
[]
[]
[]
[]
[]
[]
[]
[]
[]
[null,"A6 Date despre tipul de proiect şi beneficiar:"]
[]
[null,"A6.0  Tip zona",null,null,null,null,null,null,null,null,null,"Teritoriul GAL Cetatea Tamasidava"]
[]
[null,"A6.1",null,null,null,null,"Proiect cu construcții montaj",null,null,null,null,null,null,null,null,null,null,null,null,null,null,null,null,null,null,null,null,null,"A6.3",null,null,null,null,"Beneficiar privat"]
[null,null,null,null,null,null,"Proiect fără construcții montaj"]
[]
[null,"A6.2",null,null,null,null,"Modernizare și/sau Extindere",null,null,null,null,null,null,null,null,null,null,null,null,null,null,null,null,null,"A6.4",null,null,null,"Prescorare",null,null,null,null,null,null,{"$f":"AY811","v":0}]
[null,null,null,null,null,null,"Investiție nouă"]
[]
[null,"Denumire consultant: "]
[null,null,null,null,null,null,null,null,null,null,null,null,null,null,null,null,null,null,null,null,null,null,null,null,null,null,null,null,null,null,null,"CUI"]
[]
[null,null,null,null,null,null,null,null,null,null,null,null,null,null,null,null,null,null,null,null,null,null,null,null,null,null,null,null,null,null,"Nr. Inreg. ONRC"]
[]
[null,"Denumire proiectant: "]
[null,null,null,null,null,null,null,null,null,null,null,null,null,null,null,null,null,null,null,null,null,null,null,null,null,null,null,null,null,null,null,"CUI"]
[]
[null,null,null,null,null,null,null,null,null,null,null,null,null,null,null,null,null,null,null,null,null,null,null,null,null,null,null,null,null,null,"Nr. Inreg. ONRC"]
[]
[null,null,null,null,"Proiect tehnic",null,null,null,null,null,null,null,null,null,null,null,"Autorizație",null,null,null,null,null,null,null,null,"Studiu de impact"]
[]
["B INFORMAŢII PRIVIND SOLICITANTUL"]
["B1 Descrierea solicitantului"]
[null,"B1.1 Informaţii privind solicitantul"]
[null,"Data înființării",null,null,null,null,null,null,null,null,null,null,null,null,null,null,null,null,null,"Cod Unic de Înregistrare și/sau Codul de",null,null,null,null,null,null,null,null,null,null,null,null,null,null,null,null,null,null,null,null,null,null,null,"Statut juridic al solicitantului"]
[null,null,null,null,null,null,null,null,null,null,null,null,null,null,null,null,null,null,null,"Înregistrare Fiscală"]
[]
[]
[null,"Număr de înregistrare în registrul comerțului"]
[]
[null,"Codul CAEN al activităţii/activităţilor finanţate prin proiect"]
[]
[]
[]
[null,"Codul unic de înregistrare APIA",null,null,null,null,null,null,null,null,null,null,null,null,null,null,null,null,null,null,null,null,null,null,null,null,null,null,null,null,null,null,null,null,null,null,"Anul atribuirii codului"]
[]
[null,"Codul Registru Național al Exploatațiilor ANSVSA",null,null,null,null,null,null,null,null,null,null,null,null,null,null,null,null,null,null,null,null,null,null,null,null,null,null,null,null,null,null,null,null,null,null,"Anul atribuirii codului"]
[]
[]
[null,"B1.2 Sediul social / Domiciliul stabil al solicitantului / Reşedinţa din România"]
[null,"Judeţ",null,null,null,null,null,null,null,null,null,null,null,null,null,null,null,null,null,null,null,null,"Localitate",null,null,null,null,null,null,null,null,null,null,null,null,null,null,null,null,null,null,null,"Sat"]
[]
[null,"Cod Poştal",null,null,null,null,null,null,"Strada",null,null,null,null,null,null,null,null,null,null,null,null,null,null,null,null,null,null,null,null,null,null,null,null,null,null,null,null,"Nr.",null,null,null,"Bloc",null,null,null,"Scara",null,null,null,"Etaj",null,null,null,"Apartament"]
[]
[null,"Telefon fix",null,null,null,null,null,null,null,null,null,"Telefon mobil",null,null,null,null,null,null,null,null,null,"Fax",null,null,null,null,null,null,null,null,null,null,null,null,null,null,"E-mail"]
[]
[]
[null,"B1.3 Numele şi prenumele reprezentantului legal şi funcţia acestuia în cadrul organizaţiei, precum şi"]
[null,"specimenul de semnatură:"]
[]
[null,null,null,"Numele",null,null,null,null,null,null,null,null,null,null,"Prenumele",null,null,null,null,null,null,null,null,null,null,"Funcţia",null,null,null,null,null,null,null,null,null,null,"Reprezentant legal",null,null,null,null,null,null,null,null,null,null,"Specimen de"]
[null,null,null,null,null,null,null,null,null,null,null,null,null,null,null,null,null,null,null,null,null,null,null,null,null,null,null,null,null,null,null,null,null,null,null,null,null,null,null,null,null,null,null,null,null,null,null,"semnătură"]
[]
[null,null,null,null,null,null,null,null,null,null,null,null,null,null,null,null,null,null,null,null,null,null,null,null,null,null,null,null,null,null,null,null,null,null,null,null,"LEGAL"]
[]
[]
["B2 Informaţii referitoare la reprezentantul legal de proiect"]
[null,"B2.1 Date de identitate ale reprezentantului legal de proiect"]
[]
[null,null,null,"Data naşterii",null,null,null,null,null,null,null,null,null,null,null,null,null,null,null,null,null,null,null,null,"Cod numeric personal"]
[]
[]
[]
[null,null,null,null,"Act de identitate",null,null,null,null,null,null,null,null,null,null,null,null,null,"Seria",null,null,"Nr.",null,null,null,null,null,null,"Eliberat la data de",null,null,null,null,null,null,null,null,"de:",null,null,null,null,null,null,null,null,null,null,null,null,null,"Valabil până la:"]
[null,null,null,null,"B.I.",null,null,"C.I.",null,null,"Paşaport"]
[]
[]
[null,null,null,null,"Asociat unic",null,null,null,null,null,null,null,null,null,null,null,"Asociat majoritar",null,null,null,null,null,null,null,null,null,null,"Administrator"]
[]
[null,"Asociați"]
[null,null,null,null,null,"Persoană Fizică: "]
[null,null,null,"Nume și prenume asociat : "]
[]
[null,null,null,"Data naşterii",null,null,null,null,null,null,null,null,null,null,null,null,null,null,null,null,null,null,null,null,"Cod numeric personal"]
[]
[]
[]
[]
[null,null,null,null,"Act de identitate",null,null,null,null,null,null,null,null,null,null,null,null,null,"Seria",null,null,"Nr.",null,null,null,null,null,null,"Eliberat la data de",null,null,null,null,null,null,null,null,"de:",null,null,null,null,null,null,null,null,null,null,null,null,null,"Valabil până la:"]
[null,null,null,null,"B.I.",null,null,"C.I.",null,null,"Paşaport"]
[]
[]
[null,null,"Adresa și domiciliul asociatului:"]
[null,null,null,"Judeţ",null,null,null,null,null,null,null,null,null,null,null,null,null,null,null,null,null,null,null,null,null,"Localitate",null,null,null,null,null,null,null,null,null,null,null,null,null,null,null,null,null,null,"Sat"]
[]
[null,null,null,"Cod Poştal",null,null,null,null,null,null,null,null,null,"Strada",null,null,null,null,null,null,null,null,null,null,null,null,null,null,null,null,null,"Nr.",null,null,null,null,"Bloc",null,null,null,null,"Scara",null,null,null,null,"Etaj",null,null,null,null,null,"Apartament"]
[]
[null,null,null,null,null,"Persoană Juridică: "]
[]
[null,null,null,null,null,null,null,"Înregistrată în România"]
[null,null,null,null,null,null,null,"Înregistrată în altă țară"]
[]
[null,null,null,"Denumire : "]
[]
[null,null,null,null,"CUI",null,null,null,null,null,null,null,null,null,null,null,null,null,null,"Nr. Inreg. ONRC"]
[]
[]
[null,"B2.2 Domiciliul stabil al reprezentantului legal de proiect"]
[null,"Judeţ",null,null,null,null,null,null,null,null,null,null,null,null,null,null,null,null,null,null,null,null,"Localitate",null,null,null,null,null,null,null,null,null,null,null,null,null,null,null,null,null,null,null,"Sat"]
[]
[null,"Cod Poştal",null,null,null,null,null,null,"Strada",null,null,null,null,null,null,null,null,null,null,null,null,null,null,null,null,null,null,null,null,null,null,null,null,null,null,null,null,"Nr.",null,null,null,"Bloc",null,null,null,"Scara",null,null,null,"Etaj",null,null,null,"Apartament"]
[]
[null,"Telefon fix",null,null,null,null,null,null,null,null,null,null,null,null,null,null,null,null,null,null,"Telefon mobil",null,null,null,null,null,null,null,null,null,null,null,null,null,null,null,null,null,"Fax"]
[]
[null,"E-mail"]
[]
[]
["B3 Informaţii privind contul bancar pentru proiect schema de autor de stat"]
[]
[null,null,"B3.1 Denumirea Băncii",null,null,null,null,null,null,null,null,null,null,null,null,null,null,null,null,null,null,null,null,null,null,null,null,null,null,null,null,"Denumirea Sucursalei/Filialei"]
[]
[]
[null,null,"B3.2 Adresa Băncii/Sucursalei"]
[]
[]
[null,null,"B3.3 Cod IBAN",null,null,null,null,null,null,null,null,null,null,null,null,null,null,null,null,null,null,null,null,null,null,null,null,null,null,null,null,"B3.4 Titularul contului bancar"]
[]
[]
[]
["REGULI DE COMPLETARE\n\nCompletaţi devizele aferente capitolelor de cheltuieli, defalcat pe cheltuieli eligibile şi neeligibile prin completarea tabelelor incluse în acest document, respectiv :\n1. Tabelul \"Deviz financiar_cap3\" cuprinde cheltuielile aferente capitolului 3 - Cheltuieli pentru proiectare şi asistenţă tehnică, cheltuieli care trebuie să se regăsească atât în Bugetul Indicativ (Tabel \"Buget indicativ\" din cererea de finanţare, partea specifică) cât şi în Devizul General din Studiul de Fezabilitate.\n2. Tabelul \"Devize obiect\" cuprinde formatul cadru al devizului pe obiect, iar solicitantul va completa atâtea devize pe obiect câte obiecte de investiţie sunt incluse în proiect. Suma tuturor devizelor pe obiect trebuie să se regăsească atât în Bugetul Indicativ (tabelul \"Buget indicativ\" din cererea de finanţare, partea specifică) cât şi în Devizul General din Studiul de Fezabilitate.\nÎn cazul în care proiectul de investiţii presupune mai multe devize pe obiect, solicitantul va crea în documentul curent câte o copie a tabelului \"Devize obiect\" pentru fiecare deviz pe obiect şi va detalia cheltuielile eligibile şi neeligibile pe fiecare în parte.\n3. Tabelul \"cap.2+cap.5\" cuprinde cheltuieli aferente capitolelor 2 şi 5 şi trebuie să se regăsească atât în Bugetul Indicativ (tabel \"Buget indicativ\" din cererea de finanţare, partea specifică) cât şi Devizul General din Studiul de Fezabilitate.\n4. Câmpul \"Prescorare\" de la secţiunea A6 se autocompletează cu totalul din Grila criterii de selecție.\n5. Pentru indicatorii de tip numeric care nu fac obiectul investitiei sa va completa valoarea zero.\n6. Trebuie bifate si anexate toate documente (1.a, 5, 10, 11, 18 si 23) de pe coloana “DEPUNERE - Obligatoriu pentru toate proiectele” din sectiunea E – Lista documentelor anexate.\n"]
[]
[]
[]
[]
[]
[]
[]
[]
[]
[]
[]
[]
[]
[]
[]
[]
[]
[]
[]
[]
[]
[]
[]
[]
[]
[]
["C FINANȚĂRI NERAMBURSABILE OBȚINUTE, SAU SOLICITATE ?"]
[null,null,"Dacă au fost obținute finanțări nerambursabile sau au fost solicitate și au fost obținute parțial, se vor detalia prin completarea"]
[null,null,"tabelului de mai jos."]
[]
[null,null,null,null,null,null,null,null,null,null,"DA",null,null,null,null,null,null,null,"NU"]
[]
[null,"DENUMIRE PROGRAM FINANȚARE",null,null,null,null,null,null,null,null,null,null,null,null,"DA",null,null,null,null,null,null,null,null,null,null,null,null,null,null,null,null,null,null,null,null,null,null,null,null,null,null,null,null,null,null,null,null,null,null,null,null,null,null,null,null,null,"NU"]
[null,null,null,null,null,null,null,null,null,null,null,null,null,null,"Număr proiecte",null,null,null,null,"Titlul Proiectui și numărul contractului de finanțare ",null,null,null,null,null,null,null,null,null,null,null,null,null,null,null,null,null,null,null,null,null,null,"Data finalizării\nll/zz/aaaa",null,null,null,null,null,null,"Valoarea\nsprijinului\n(EUR)"]
[null,"Program Naţional*"]
[null,"Program Naţional*"]
[null,"FEADR *"]
[null,"SAPARD"]
[null,"Alte programe europene*"]
[null,"Alte programe europene*"]
[null,"Alte programe internaționale*"]
[null,"Alte programe internaționale*"]
[null,"Alte programe internaționale*"]
[null,null,null,null,"* se completează de către solicitant cu denumirea programului"]
[]
[null,"Buget Indicativ - HG 28/2008"]
["MINISTERUL AGRICULTURII ŞI DEZVOLTĂRII RURALE"]
["AGENŢIA PENTRU FINANŢAREA INVESTIŢIILOR RURALE"]
[]
[]
[null,"Procentul aferent intensității",null,null,null,null,null,null,null,null,null,null,null,null,null,null,null,null,null,null,"Curs EURO",null,null,null,null,null,null,null,null,null,null,null,null,"Data întocmirii Studiului de Fezabilitate"]
[]
["Măsura",null,null,null,null,null,null,null,null,null,null,null,null,null,null,null,null,null,null,null,null,null,null,null,null,null,null,null,null,null,null,null,null,null,null,"M2"]
["Denumirea capitolelor de cheltuieli",null,null,null,null,null,null,null,null,null,null,null,null,null,null,null,null,null,null,null,null,null,null,null,null,null,null,null,null,null,null,null,null,null,null,"Cheltuieli eligibile",null,null,null,null,null,null,null,null,"Cheltuieli neeligibile",null,null,null,null,null,null,null,"Total"]
[null,null,null,null,null,null,null,null,null,null,null,null,null,null,null,null,null,null,null,null,null,null,null,null,null,null,null,null,null,null,null,null,null,null,null,"EURO",null,null,null,null,null,null,null,null,"EURO",null,null,null,null,null,null,null,"EURO"]
[1,null,null,null,null,null,null,null,null,null,null,null,null,null,null,null,null,null,null,null,null,null,null,null,null,null,null,null,null,null,null,null,null,null,null,2,null,null,null,null,null,null,null,null,3,null,null,null,null,null,null,null,4]
["Capitolul 1 Cheltuieli pentru obtinerea şi amenajarea terenului - total, din care:",null,null,null,null,null,null,null,null,null,null,null,null,null,null,null,null,null,null,null,null,null,null,null,null,null,null,null,null,null,null,null,null,null,null,{"$f":"SUM(AJ280:AR281)","v":0},null,null,null,null,null,null,null,null,{"$f":"SUM(AS279:AZ281)","v":0},null,null,null,null,null,null,null,{"$f":"SUM(AJ278:AZ278)","v":0}]
["1.1 Cheltuieli pentru obţinerea terenului",null,null,null,null,null,null,null,null,null,null,null,null,null,null,null,null,null,null,null,null,null,null,null,null,null,null,null,null,null,null,null,null,null,null,null,null,null,null,null,null,null,null,null,null,null,null,null,null,null,null,null,{"$f":"SUM(AJ279:AZ279)","v":0}]
["1.2 Cheltuieli pentru amenajarea terenului",null,null,null,null,null,null,null,null,null,null,null,null,null,null,null,null,null,null,null,null,null,null,null,null,null,null,null,null,null,null,null,null,null,null,null,null,null,null,null,null,null,null,null,null,null,null,null,null,null,null,null,0]
["1.3 Cheltuieli cu amenajari pentru protecţia mediului şi aducerea la starea iniţială",null,null,null,null,null,null,null,null,null,null,null,null,null,null,null,null,null,null,null,null,null,null,null,null,null,null,null,null,null,null,null,null,null,null,null,null,null,null,null,null,null,null,null,null,null,null,null,null,null,null,null,0]
["Capitolul 2 Cheltuieli pentru asigurarea utilităţilor necesare obiectivului",null,null,null,null,null,null,null,null,null,null,null,null,null,null,null,null,null,null,null,null,null,null,null,null,null,null,null,null,null,null,null,null,null,null,null,null,null,null,null,null,null,null,null,null,null,null,null,null,null,null,null,0]
["Capitolul 3 Cheltuieli pentru proiectare şi asistenţă tehnică - total, din care:",null,null,null,null,null,null,null,null,null,null,null,null,null,null,null,null,null,null,null,null,null,null,null,null,null,null,null,null,null,null,null,null,null,null,{"$f":"SUM(AJ284:AR289)","v":0},null,null,null,null,null,null,null,null,{"$f":"SUM(AS284:AZ289)","v":0},null,null,null,null,null,null,null,0]
["3.1 Studii de teren",null,null,null,null,null,null,null,null,null,null,null,null,null,null,null,null,null,null,null,null,null,null,null,null,null,null,null,null,null,null,null,null,null,null,null,null,null,null,null,null,null,null,null,null,null,null,null,null,null,null,null,0]
["3.2 Obţinerea de avize, acorduri şi autorizaţii",null,null,null,null,null,null,null,null,null,null,null,null,null,null,null,null,null,null,null,null,null,null,null,null,null,null,null,null,null,null,null,null,null,null,null,null,null,null,null,null,null,null,null,null,null,null,null,null,null,null,null,0]
["3.3 Proiectare şi inginerie",null,null,null,null,null,null,null,null,null,null,null,null,null,null,null,null,null,null,null,null,null,null,null,null,null,null,null,null,null,null,null,null,null,null,null,null,null,null,null,null,null,null,null,null,null,null,null,null,null,null,null,0]
["3.4 Organizarea procedurilor de achiziţie",null,null,null,null,null,null,null,null,null,null,null,null,null,null,null,null,null,null,null,null,null,null,null,null,null,null,null,null,null,null,null,null,null,null,null,null,null,null,null,null,null,null,null,null,null,null,null,null,null,null,null,0]
["3.5 Consultanţă",null,null,null,null,null,null,null,null,null,null,null,null,null,null,null,null,null,null,null,null,null,null,null,null,null,null,null,null,null,null,null,null,null,null,null,null,null,null,null,null,null,null,null,null,null,null,null,null,null,null,null,0]
["3.6 Asistenţă tehnică",null,null,null,null,null,null,null,null,null,null,null,null,null,null,null,null,null,null,null,null,null,null,null,null,null,null,null,null,null,null,null,null,null,null,null,null,null,null,null,null,null,null,null,null,null,null,null,null,null,null,null,0]
["Verificare încadrare cheltuieli capitolul 3",null,null,null,null,null,null,null,null,null,null,null,null,null,null,null,null,null,null,null,null,null,null,null,null,null,null,null,null,null,null,null,null,null,null,{"$f":"IF(AJ291=0,IF((IF((AJ278+AJ282+AJ291)=0,0,AJ283*100/(AJ278+AJ282+AJ291)))<=5,\"cheltuieli capitol 3 se incadreaza in limita de 5%\",\"cheltuieli capitol 3 nu se incadreaza in limita de 5%\"),IF((IF((AJ278+AJ282+AJ291)=0,0,AJ283*100/(AJ278+AJ282+AJ291)))<=10,\"cheltuieli capitol 3 se incadreaza in limita de 10%\",\"cheltuieli capitol 3 nu se incadreaza in limita de 10%\"))","v":"cheltuieli capitol 3 se incadreaza in limita de 5%"}]
["Capitolul 4 Cheltuieli pentru investiţia de bază - total, din care:",null,null,null,null,null,null,null,null,null,null,null,null,null,null,null,null,null,null,null,null,null,null,null,null,null,null,null,null,null,null,null,null,null,null,{"$f":"AJ292","v":0},null,null,null,null,null,null,null,null,{"$f":"AS292","v":0},null,null,null,null,null,null,null,{"$f":"SUM(AJ291:AZ291)","v":0}]
["Constructii, din care:",null,null,null,null,null,null,null,null,null,null,null,null,null,null,null,null,null,null,null,null,null,null,null,null,null,null,null,null,null,null,null,null,null,null,{"$f":"SUM(AJ293:AR298)","v":0},null,null,null,null,null,null,null,null,{"$f":"SUM(AS293:AZ298)","v":0},null,null,null,null,null,null,null,{"$f":"SUM(AJ292:AZ292)","v":0}]
["4.1 Construcţii şi instalaţii",null,null,null,null,null,null,null,null,null,null,null,null,null,null,null,null,null,null,null,null,null,null,null,null,null,null,null,null,null,null,null,null,null,null,null,null,null,null,null,null,null,null,null,null,null,null,null,null,null,null,null,0]
["4.2 Montaj utilaj tehnologic",null,null,null,null,null,null,null,null,null,null,null,null,null,null,null,null,null,null,null,null,null,null,null,null,null,null,null,null,null,null,null,null,null,null,null,null,null,null,null,null,null,null,null,null,null,null,null,null,null,null,null,0]
["4.3 Utilaje, echipamente tehnologice şi funcţionale cu montaj (procurare)",null,null,null,null,null,null,null,null,null,null,null,null,null,null,null,null,null,null,null,null,null,null,null,null,null,null,null,null,null,null,null,null,null,null,null,null,null,null,null,null,null,null,null,null,null,null,null,null,null,null,null,0]
["4.4 Utilaje şi echipamente fară montaj, mijloace de transport, alte achiziţii specifice",null,null,null,null,null,null,null,null,null,null,null,null,null,null,null,null,null,null,null,null,null,null,null,null,null,null,null,null,null,null,null,null,null,null,null,null,null,null,null,null,null,null,null,null,null,null,null,null,null,null,null,0]
["4.5 Dotări",null,null,null,null,null,null,null,null,null,null,null,null,null,null,null,null,null,null,null,null,null,null,null,null,null,null,null,null,null,null,null,null,null,null,null,null,null,null,null,null,null,null,null,null,null,null,null,null,null,null,null,0]
["4.6 Active necorporale",null,null,null,null,null,null,null,null,null,null,null,null,null,null,null,null,null,null,null,null,null,null,null,null,null,null,null,null,null,null,null,null,null,null,null,null,null,null,null,null,null,null,null,null,null,null,null,null,null,null,null,0]
["Capitolul 5 Alte cheltuieli - total, din care:",null,null,null,null,null,null,null,null,null,null,null,null,null,null,null,null,null,null,null,null,null,null,null,null,null,null,null,null,null,null,null,null,null,null,{"$f":"AJ303+AJ300","v":0},null,null,null,null,null,null,null,null,{"$f":"AS304+AS303+AS300","v":0},null,null,null,null,null,null,null,0]
["5.1 Organizare de şantier",null,null,null,null,null,null,null,null,null,null,null,null,null,null,null,null,null,null,null,null,null,null,null,null,null,null,null,null,null,null,null,null,null,null,{"$f":"SUM(AJ301:AR302)","v":0},null,null,null,null,null,null,null,null,{"$f":"SUM(AS301:AZ302)","v":0},null,null,null,null,null,null,null,0]
["      5.1.1 lucrări de construcţii şi instalaţii aferente organizării de şantier",null,null,null,null,null,null,null,null,null,null,null,null,null,null,null,null,null,null,null,null,null,null,null,null,null,null,null,null,null,null,null,null,null,null,null,null,null,null,null,null,null,null,null,null,null,null,null,null,null,null,null,0]
["      5.1.2 cheltuieli conexe orgănizării şantierului",null,null,null,null,null,null,null,null,null,null,null,null,null,null,null,null,null,null,null,null,null,null,null,null,null,null,null,null,null,null,null,null,null,null,null,null,null,null,null,null,null,null,null,null,null,null,null,null,null,null,null,0]
["5.2 Comisioane, taxe, costul creditului",null,null,null,null,null,null,null,null,null,null,null,null,null,null,null,null,null,null,null,null,null,null,null,null,null,null,null,null,null,null,null,null,null,null,null,null,null,null,null,null,null,null,null,null,null,null,null,null,null,null,null,0]
["5.3 Cheltuieli diverse şi neprevăzute",null,null,null,null,null,null,null,null,null,null,null,null,null,null,null,null,null,null,null,null,null,null,null,null,null,null,null,null,null,null,null,null,null,null,null,null,null,null,null,null,null,null,null,null,null,null,null,null,null,null,null,0]
["Capitolul 6 Cheltuieli pentru darea în exploatare - total, din care:",null,null,null,null,null,null,null,null,null,null,null,null,null,null,null,null,null,null,null,null,null,null,null,null,null,null,null,null,null,null,null,null,null,null,{"$f":"SUM(AJ306:AR307)","v":0},null,null,null,null,null,null,null,null,{"$f":"SUM(AS306:AZ307)","v":0},null,null,null,null,null,null,null,0]
["6.1 Pregătirea personalului de exploatare",null,null,null,null,null,null,null,null,null,null,null,null,null,null,null,null,null,null,null,null,null,null,null,null,null,null,null,null,null,null,null,null,null,null,null,null,null,null,null,null,null,null,null,null,null,null,null,null,null,null,null,0]
["6.2 Probe tehnologice şi teste",null,null,null,null,null,null,null,null,null,null,null,null,null,null,null,null,null,null,null,null,null,null,null,null,null,null,null,null,null,null,null,null,null,null,null,null,null,null,null,null,null,null,null,null,null,null,null,null,null,null,null,0]
["TOTAL GENERAL",null,null,null,null,null,null,null,null,null,null,null,null,null,null,null,null,null,null,null,null,null,null,null,null,null,null,null,null,null,null,null,null,null,null,{"$f":"AJ278+AJ282+AJ283+AJ291+AJ299+AJ305","v":0},null,null,null,null,null,null,null,null,{"$f":"AS278+AS282+AS283+AS291+AS299+AS305","v":0},null,null,null,null,null,null,null,0]
["Verificare actualizare",null,null,null,null,null,null,null,null,null,null,null,null,null,null,null,null,null,null,null,null,null,null,null,null,null,null,null,null,null,null,null,null,null,null,{"$f":"IF((IF(AJ308=0,0,AJ310*100/AJ308))<=5,\"actualizare mai mică de 5% din valoarea eligibila\",\"actualizare mai mare de 5% din valoarea eligibila\")","v":"actualizare mai mică de 5% din valoarea eligibila"}]
["ACTUALIZARE Cheltuieli Eligibile (max 5%)",null,null,null,null,null,null,null,null,null,null,null,null,null,null,null,null,null,null,null,null,null,null,null,null,null,null,null,null,null,null,null,null,null,null,null,null,null,null,null,null,null,null,null,null,null,null,null,null,null,null,null,{"$f":"SUM(AJ310:AZ310)","v":0}]
["TOTAL GENERAL CU ACTUALIZARE",null,null,null,null,null,null,null,null,null,null,null,null,null,null,null,null,null,null,null,null,null,null,null,null,null,null,null,null,null,null,null,null,null,null,{"$f":"AJ308+AJ310","v":0},null,null,null,null,null,null,null,null,{"$f":"AS308","v":0},null,null,null,null,null,null,null,{"$f":"SUM(AJ311:AZ311)","v":0}]
["Valoare TVA",null,null,null,null,null,null,null,null,null,null,null,null,null,null,null,null,null,null,null,null,null,null,null,null,null,null,null,null,null,null,null,null,null,null,null,null,null,null,null,null,null,null,null,null,null,null,null,null,null,null,null,0]
[null,null,null,null,null,null,null,null,null,null,null,null,null,null,null,null,null,null,null,null,null,null,null,null,null,null,null,null,null,null,null,null,null,null,null,{"$f":"SUM(AJ311:AR312)","v":0},null,null,null,null,null,null,null,null,{"$f":"SUM(AS311:AZ312)","v":0},null,null,null,null,null,null,null,0]
["TOTAL GENERAL inclusiv TVA",null,null,null,null,null,null,null,null,null,null,null,null,null,null,null,null,null,null,null,null,null,null,null,null,null,null,null,null,null,null,null,null,null,null,{"$f":"BA311+BA312","v":0}]
[null,null,null,null,null,null,null,null,null,null,null,null,null,null,null,null,null,null,null,null,null,null,null,null,null,null,null,null,null,null,null,null,null,null,null,"LEI",null,null,null,null,null,null,null,null,"EURO"]
["VALOARE TOTALĂ",null,null,null,null,null,null,null,null,null,null,null,null,null,null,null,null,null,null,null,null,null,null,null,null,null,null,null,null,null,null,null,null,null,null,{"$f":"AS316*AA272","v":0},null,null,null,null,null,null,null,null,{"$f":"AJ314","v":0}]
["VALOARE ELIGIBILĂ",null,null,null,null,null,null,null,null,null,null,null,null,null,null,null,null,null,null,null,null,null,null,null,null,null,null,null,null,null,null,null,null,null,null,{"$f":"AS317*AA272","v":0},null,null,null,null,null,null,null,null,{"$f":"AJ311+AJ312","v":0}]
["VALOARE NEELIGIBILĂ",null,null,null,null,null,null,null,null,null,null,null,null,null,null,null,null,null,null,null,null,null,null,null,null,null,null,null,null,null,null,null,null,null,null,{"$f":"AS318*AA272","v":0},null,null,null,null,null,null,null,null,{"$f":"AS311+AS312","v":0}]
[]
["Plan Financiar",null,null,null,null,null,null,null,null,null,null,null,null,null,null,null,null,null,null,null,null,null,null,null,null,null,null,null,null,null,null,null,null,null,null,"Cheltuieli eligibile EURO",null,null,null,null,null,null,null,null,"Cheltuieli neeligibile EURO",null,null,null,null,null,null,null,"Total"]
["Ajutor public nerambursabil (contribuţie UE şi cofinanţare naţională)",null,null,null,null,null,null,null,null,null,null,null,null,null,null,null,null,null,null,null,null,null,null,null,null,null,null,null,null,null,null,null,null,null,null,null,null,null,null,null,null,null,null,null,null,null,null,null,null,null,null,null,{"$f":"SUM(AJ321:AZ321)","v":0}]
["Cofinantare privata, din care:",null,null,null,null,null,null,null,null,null,null,null,null,null,null,null,null,null,null,null,null,null,null,null,null,null,null,null,null,null,null,null,null,null,null,{"$f":"SUM(AJ323:AR324)","v":0},null,null,null,null,null,null,null,null,{"$f":"SUM(AS323:AZ324)","v":0},null,null,null,null,null,null,null,{"$f":"SUM(AJ322:AZ322)","v":0}]
[null,null,null,null,null,null,null,null,null,null,null,null,null,null,null,"- autofinantare",null,null,null,null,null,null,null,null,null,null,null,null,null,null,null,null,null,null,null,null,null,null,null,null,null,null,null,null,null,null,null,null,null,null,null,null,0]
[null,null,null,null,null,null,null,null,null,null,null,null,null,null,null,"- imprumuturi",null,null,null,null,null,null,null,null,null,null,null,null,null,null,null,null,null,null,null,null,null,null,null,null,null,null,null,null,null,null,null,null,null,null,null,null,0]
["Buget local",null,null,null,null,null,null,null,null,null,null,null,null,null,null,null,null,null,null,null,null,null,null,null,null,null,null,null,null,null,null,null,null,null,null,null,null,null,null,null,null,null,null,null,null,null,null,null,null,null,null,null,0]
["TOTAL PROIECT",null,null,null,null,null,null,null,null,null,null,null,null,null,null,null,null,null,null,null,null,null,null,null,null,null,null,null,null,null,null,null,null,null,null,{"$f":"AJ321+AJ322+AJ325","v":0},null,null,null,null,null,null,null,null,{"$f":"AS322+AS325","v":0},null,null,null,null,null,null,null,0]
["Procent contribuţie publică",null,null,null,null,null,null,null,null,null,null,null,null,null,null,null,null,null,null,null,null,null,null,null,null,null,null,null,null,null,null,null,null,{"$f":"AJ321*100/AJ326","v":{"$error":"#DIV/0!"}},{"$f":"IF(AJ326=0,0,AH327)","v":0},{"$f":"AI327","v":0},null,null,null,null,null,null,null,"%"]
["Avans solicitat"]
["Procent avans solicitat ca procent din ajutorul public nerambursabil",null,null,null,null,null,null,null,null,null,null,null,null,null,null,null,null,null,null,null,null,null,null,null,null,null,null,null,null,null,null,null,null,null,{"$f":"AJ328*100/AJ321","v":{"$error":"#DIV/0!"}},{"$f":"IF(AJ321=0,0,AI329)","v":0},null,null,null,null,null,null,null,null,{"$f":"IF(AJ329<=50,\"Suma avans mai mica de 50% din ajutorul public\",\"Suma avans mai mare de 50% din ajutorul public\")","v":"Suma avans mai mica de 50% din ajutorul public"}]
[null,null,null,null,null,null,null,"MINISTERUL AGRICULTURII ŞI DEZVOLTĂRII RURALE"]
[null,null,null,null,null,null,null,null,null,null,null,null,null,null,null,null,null,null,null,null,null,null,null,null,null,null,null,null,null,null,null,null,null,null,null,null,null,null,null,null,null,null,"Anexa A1\nHG 28/2008"]
[null,null,null,null,null,null,null,"AGENŢIA PENTRU FINANŢAREA INVESTIŢIILOR RURALE"]
[null,null,null,null,null,null,null,null,null,null,null,null,null,null,null,null,null,null,null,null,null,null,null,null,null,null,null,null,null,null,null,null,null,null,null,null,null,null,null,null,null,null,"…………..2017",null,null,null,null,null,null,null,null,"Nr.1"]
[null,null,null,null,null,null,null,"Deviz financiar- Capitolul 3 - Cheltuieli pentru proiectare şi asistenţa tehnică - EURO"]
[]
[]
["(Titlu deviz)"]
["Nr.crt",null,null,null,"Specificaţie",null,null,null,null,null,null,null,null,null,null,null,null,null,null,null,null,null,null,null,null,null,null,null,null,null,null,null,null,null,null,null,null,null,null,null,null,null,"Valoare eligibilă",null,null,null,null,null,null,null,null,"Valoare\nneeligibilă"]
[1,null,null,null,"Cheltuieli pentru studii de teren (geotehnice, geologice, hidrologice, hidrogeologice, fotogrammetrice, topografice şi de stabilitate a terenului pe care se amplasează obiectivul de investiţie)"]
[2,null,null,null,"Cheltuieli pentru obţinere de avize, acorduri şi autorizaţii - total, din care:",null,null,null,null,null,null,null,null,null,null,null,null,null,null,null,null,null,null,null,null,null,null,null,null,null,null,null,null,null,null,null,null,null,null,null,null,null,{"$f":"SUM(AQ341:AY350)","v":0},null,null,null,null,null,null,null,null,{"$f":"SUM(AZ341:BI350)","v":0}]
[null,null,null,null,"1. obţinerea/prelungirea valabilităţii ceritificatului de urbanism"]
[null,null,null,null,"2. obţinerea/prelungirea valabilităţii autorizaţiei de construire/desfiinţare, obţinere autorizaţii de scoatere din circuitul agricol"]
[null,null,null,null,"3. obţinerea avizelor şi acordurilor pentru racorduri şi branşamente la reţelele publice de apă, canalizare, gaze, termoficare, energie electrică, telefonie etc."]
[null,null,null,null,"4. obţinere aviz sanitar, sanitar-veterinar şi fitosanitar"]
[null,null,null,null,"5. obţinerea certificatului de nomenclatură stradală şi adresa"]
[null,null,null,null,"6. întocmirea documentaţiei, obţinerea numărului Cadastral provizoriu şi înregistrarea terenului în Cartea Funciară"]
[null,null,null,null,"7. obţinerea avizului PSI"]
[null,null,null,null,"8. obţinerea acordului de mediu"]
[null,null,null,null,"9. căi ferate industriale"]
[null,null,null,null,"10. alte avize, acorduri şi autorizaţii solicitate prin lege"]
[3,null,null,null,"3 Proiectare şi inginerie - total, din care:",null,null,null,null,null,null,null,null,null,null,null,null,null,null,null,null,null,null,null,null,null,null,null,null,null,null,null,null,null,null,null,null,null,null,null,null,null,{"$f":"AQ352+AQ359+AQ360+AQ361","v":0},null,null,null,null,null,null,null,null,{"$f":"AZ352+AZ359+AZ360+AZ361","v":0}]
[null,null,null,null,"1. Cheltuieli pentru elaborarea tuturor fazelor de proiectare - total, din care:",null,null,null,null,null,null,null,null,null,null,null,null,null,null,null,null,null,null,null,null,null,null,null,null,null,null,null,null,null,null,null,null,null,null,null,null,null,{"$f":"SUM(AQ353:AY358)","v":0},null,null,null,null,null,null,null,null,{"$f":"SUM(AZ353:BI358)","v":0}]
[null,null,null,null,null,null,"a. studiu de prefezabilitate"]
[null,null,null,null,null,null,"b. studiu de fezabilitate"]
[null,null,null,null,null,null,"c. proiect tehnic"]
[null,null,null,null,null,null,"d. detalii de execuţie"]
[null,null,null,null,null,null,"e. verificarea tehnică a proiectării"]
[null,null,null,null,null,null,"f. elaborarea certificatului de performanţa energetică a clădirii"]
[null,null,null,null,"2. Documentaţii necesare pentru obţinerea acordurilor, avizelor şi autorizaţiilor aferente obiectivului de investitii"]
[null,null,null,null,"3. Cheltuielile pentru expertiza tehnică efectuată pentru construcţii începute şi neterminate sau care urmează a fi modificate prin proiect (modernizări, consolidări etc.)"]
[null,null,null,null,"4. Cheltuielile pentru efectuarea auditului energetic"]
[4,null,null,null,"Organizarea procedurilor de achiziţie"]
[5,null,null,null,"Cheltuieli pentru consultanţă - total, din care:",null,null,null,null,null,null,null,null,null,null,null,null,null,null,null,null,null,null,null,null,null,null,null,null,null,null,null,null,null,null,null,null,null,null,null,null,null,{"$f":"SUM(AQ364:AY365)","v":0},null,null,null,null,null,null,null,null,{"$f":"SUM(AZ364:BI365)","v":0}]
[null,null,null,null,"1. plata serviciilor de consultanţă la elaborarea memoriului justificativ, studiilor de piaţă, de evaluare, la întocmirea cererii de finanţare"]
[null,null,null,null,"2. plata serviciilor de consultanţă în domeniul managementului investiţiei sau administrarea contractului de execuţie"]
[6,null,null,null,"Cheltuieli pentru asistenţa tehnică - total, din care:",null,null,null,null,null,null,null,null,null,null,null,null,null,null,null,null,null,null,null,null,null,null,null,null,null,null,null,null,null,null,null,null,null,null,null,null,null,{"$f":"SUM(AQ367:AY368)","v":0},null,null,null,null,null,null,null,null,{"$f":"SUM(AZ367:BI368)","v":0}]
[null,null,null,null,"1. asistenţa tehnică din partea proiectantului în cazul când aceasta nu intră în tarifarea proiectării"]
[null,null,null,null,"2. plata diriginţilor de şantier desemnaţi de autoritatea contractantă, autorizaţi conform prevederilor legale pentru verificarea execuţiei lucrărilor de construcţii şi instalaţii"]
[null,null,null,null,"Total valoare fără TVA",null,null,null,null,null,null,null,null,null,null,null,null,null,null,null,null,null,null,null,null,null,null,null,null,null,null,null,null,null,null,null,null,null,null,null,null,null,{"$f":"AQ366+AQ363+AQ351+AQ340+AQ339","v":0},null,null,null,null,null,null,null,null,{"$f":"AZ366+AZ363+AZ362+AZ351+AZ340+AZ339","v":0}]
[null,null,null,null,"Valoare TVA (aferentă cheltuielilor eligibile şi neeligibile)"]
["TOTAL DEVIZ FINANCIAR 1 (inclusiv TVA)",null,null,null,null,null,null,null,null,null,null,null,null,null,null,null,null,null,null,null,null,null,null,null,null,null,null,null,null,null,null,null,null,null,null,null,null,null,null,null,null,null,{"$f":"AQ369+AZ369+AQ370+AZ370","v":0}]
[]
[]
[]
[null,null,null,null,null,null,null,"MINISTERUL AGRICULTURII ŞI DEZVOLTĂRII RURALE"]
[null,null,null,null,null,null,null,null,null,null,null,null,null,null,null,null,null,null,null,null,null,null,null,null,null,null,null,null,null,null,null,null,null,null,null,null,null,null,null,null,null,null,"Anexa A2\nHG 28/2008"]
[null,null,null,null,null,null,null,"AGENŢIA PENTRU FINANŢAREA INVESTIŢIILOR RURALE"]
[null,null,null,null,null,null,null,null,null,null,null,null,null,null,null,null,null,null,null,null,null,null,null,null,null,null,null,null,null,null,null,null,null,null,null,null,null,null,null,null,null,null,"………….2017",null,null,null,null,null,null,null,null,"Nr.1"]
[null,null,null,null,null,null,null,"DEVIZ PE OBIECT *"]
[]
[]
["(Descriere obiect de construcţie)"]
["Nr. crt.",null,null,null,"Denumire",null,null,null,null,null,null,null,null,null,null,null,null,null,null,null,null,null,null,null,null,null,null,null,null,null,null,null,null,null,null,null,null,null,null,null,null,null,"Valoarea pe categorii de lucrări, fară TVA - EURO"]
[null,null,null,null,null,null,null,null,null,null,null,null,null,null,null,null,null,null,null,null,null,null,null,null,null,null,null,null,null,null,null,null,null,null,null,null,null,null,null,null,null,null,"Valoare eligibilă",null,null,null,null,null,null,null,null,"Valoare\nneeligibilă"]
["I - LUCRĂRI DE CONSTRUCŢII ŞI INSTALAŢII"]
[1,null,null,null,"Terasamente"]
[2,null,null,null,"Construcţii : rezistenţă (fundaţii, structură de rezistenţă) şi arhitectură (închideri exterioare, compartimentări, finisaje)"]
[3,null,null,null,"Izolaţii"]
[4,null,null,null,"Instalaţii electrice"]
[5,null,null,null,"Instalaţii sanitare"]
[6,null,null,null,"Instalaţii de încălzire, ventilare, climatizare. PSI, radio-tv, intranet"]
[7,null,null,null,"Instalaţii de alimentare cu gaze naturale"]
[8,null,null,null,"Instalaţii de telecomunicaţii"]
[null,null,null,null,"TOTAL I ( fără TVA)",null,null,null,null,null,null,null,null,null,null,null,null,null,null,null,null,null,null,null,null,null,null,null,null,null,null,null,null,null,null,null,null,null,null,null,null,null,{"$f":"SUM(AQ386:AY393)","v":0},null,null,null,null,null,null,null,null,{"$f":"SUM(AZ386:BI393)","v":0}]
["II - MONTAJ"]
[9,null,null,null,"Montaj utilaje şi echipamente tehnologice"]
[null,null,null,null,"TOTAL II ( fără TVA)",null,null,null,null,null,null,null,null,null,null,null,null,null,null,null,null,null,null,null,null,null,null,null,null,null,null,null,null,null,null,null,null,null,null,null,null,null,{"$f":"SUM(AQ396)","v":0},null,null,null,null,null,null,null,null,{"$f":"SUM(AZ396)","v":0}]
["III - PROCURARE"]
[10,null,null,null,"Utilaje şi echipamente tehnologice"]
[11,null,null,null,"Utilaje şi echipamente de transport"]
[12,null,null,null,"Dotări"]
[null,null,null,null,"TOTAL III ( fără TVA)",null,null,null,null,null,null,null,null,null,null,null,null,null,null,null,null,null,null,null,null,null,null,null,null,null,null,null,null,null,null,null,null,null,null,null,null,null,{"$f":"SUM(AQ399:AY401)","v":0},null,null,null,null,null,null,null,null,{"$f":"SUM(AZ399:BI401)","v":0}]
["TOTAL ( TOTAL I + TOTAL II +TOTAL III) fără TVA",null,null,null,null,null,null,null,null,null,null,null,null,null,null,null,null,null,null,null,null,null,null,null,null,null,null,null,null,null,null,null,null,null,null,null,null,null,null,null,null,null,{"$f":"AQ402+AQ397+AQ394","v":0},null,null,null,null,null,null,null,null,{"$f":"AZ402+AZ397+AZ394","v":0}]
["TVA aferent cheltuielilor eligibile şi neeligibile"]
["TOTAL DEVIZ PE OBIECT (inclusiv TVA)",null,null,null,null,null,null,null,null,null,null,null,null,null,null,null,null,null,null,null,null,null,null,null,null,null,null,null,null,null,null,null,null,null,null,null,null,null,null,null,null,null,{"$f":"AQ403+AZ403+AQ404+AZ404","v":0}]
[]
[]
[]
[null,null,null,null,null,null,null,"MINISTERUL AGRICULTURII ŞI DEZVOLTĂRII RURALE"]
[null,null,null,null,null,null,null,null,null,null,null,null,null,null,null,null,null,null,null,null,null,null,null,null,null,null,null,null,null,null,null,null,null,null,null,null,null,null,null,null,null,null,"Anexa A3\nHG 28/2008"]
[null,null,null,null,null,null,null,"AGENŢIA PENTRU FINANŢAREA INVESTIŢIILOR RURALE"]
[null,null,null,null,null,null,null,null,null,null,null,null,null,null,null,null,null,null,null,null,null,null,null,null,null,null,null,null,null,null,null,null,null,null,null,null,null,null,null,null,null,null,"……………2017",null,null,null,null,null,null,null,null,"Nr.1"]
[]
[]
[]
["(Titlu deviz)"]
["Deviz capitolul 2- Cheltuieli pentru asigurarea utilităţilor necesare obiectivului - EURO"]
["Nr.crt",null,null,null,"Specificaţie",null,null,null,null,null,null,null,null,null,null,null,null,null,null,null,null,null,null,null,null,null,null,null,null,null,null,null,null,null,null,null,null,null,null,null,null,null,"Valoare eligibilă",null,null,null,null,null,null,null,null,"Valoare\nneeligibilă"]
[1,null,null,null,"Alimentare cu apă"]
[2,null,null,null,"Canalizare"]
[3,null,null,null,"Alimentare cu gaze naturale"]
[4,null,null,null,"Alimentare cu agent termic"]
[5,null,null,null,"Alimentare cu energie electrică"]
[6,null,null,null,"Telecomunicaţii (telefonie, radio-tv,etc)"]
[7,null,null,null,"Alte tipuri de reţele exterioare"]
[8,null,null,null,"Drumuri de acces"]
[9,null,null,null,"Căi ferate industriale"]
[10,null,null,null,"Cheltuieli aferente racordării la reţele de utilităţi"]
[null,null,null,null,"Total valoare fără TVA",null,null,null,null,null,null,null,null,null,null,null,null,null,null,null,null,null,null,null,null,null,null,null,null,null,null,null,null,null,null,null,null,null,null,null,null,null,{"$f":"SUM(AQ419:AY426)","v":0},null,null,null,null,null,null,null,null,{"$f":"SUM(AZ419:BI426)","v":0}]
[null,null,null,null,"Valoare TVA aferentă cheltuielilor eligibile şi neeligibile"]
["TOTAL DEVIZ CAPITOLUL 2 (inclusiv TVA)",null,null,null,null,null,null,null,null,null,null,null,null,null,null,null,null,null,null,null,null,null,null,null,null,null,null,null,null,null,null,null,null,null,null,null,null,null,null,null,null,null,{"$f":"AQ429+AZ429+AQ430+AZ430","v":0}]
[]
[" Deviz capitolul 5 - Alte cheltuieli - EURO"]
["Nr.crt",null,null,null,"Specificaţie",null,null,null,null,null,null,null,null,null,null,null,null,null,null,null,null,null,null,null,null,null,null,null,null,null,null,null,null,null,null,null,null,null,null,null,null,null,"Valoare eligibilă",null,null,null,null,null,null,null,null,"Valoare\nneeligibilă"]
[]
["5.1 ",null,null,null,"Organizare de şantier",null,null,null,null,null,null,null,null,null,null,null,null,null,null,null,null,null,null,null,null,null,null,null,null,null,null,null,null,null,null,null,null,null,null,null,null,null,{"$f":"SUM(AQ437:AY438)","v":0},null,null,null,null,null,null,null,null,{"$f":"SUM(AZ437:BI438)","v":0}]
["5.1.1",null,null,null,"lucrări de construcţii şi instalaţii aferente organizării de şantier"]
["5.1.2",null,null,null,"cheltuieli conexe organizării de şantier"]
["5.2",null,null,null,"Comisioane, taxe",null,null,null,null,null,null,null,null,null,null,null,null,null,null,null,null,null,null,null,null,null,null,null,null,null,null,null,null,null,null,null,null,null,null,null,null,null,{"$f":"SUM(AQ441:AY444)","v":0},null,null,null,null,null,null,null,null,{"$f":"SUM(AZ440:BI446)","v":0}]
[null,null,null,null,"comisionul băncii finanţatoare"]
[null,null,null,null,"cota aferentă Inspectoratului de Stat în Construcţii pentru controlul calităţii lucrărilor de construcţii"]
[null,null,null,null,"cota pentru controlul statului în amenajarea teritoriului, urbanism şi pentru autorizarea lucrărilor de construcţii"]
[null,null,null,null,"prime de asigurare din sarcina autorităţii contractante"]
[null,null,null,null,"alte cheltuieli de aceeaşi natură, stabilite în condiţiile legii"]
[null,null,null,null,"cota aferentă Casei Sociale a Constructorilor"]
["5.3",null,null,null," Cheltuieli diverse si neprevazute"]
[null,null,null,null,"TOTAL DEVIZ CAPITOLUL 5",null,null,null,null,null,null,null,null,null,null,null,null,null,null,null,null,null,null,null,null,null,null,null,null,null,null,null,null,null,null,null,null,null,null,null,null,null,{"$f":"AQ436+AQ439","v":0},null,null,null,null,null,null,null,null,{"$f":"AZ436+AZ439+AZ446","v":0}]
[null,null,null,null,"VALOARE TVA aferentă cheltuielilor eligibile şi neeligibile"]
[null,null,null,null,"TOTAL DEVIZ CAPITOLUL 5 ( inclusiv TVA)",null,null,null,null,null,null,null,null,null,null,null,null,null,null,null,null,null,null,null,null,null,null,null,null,null,null,null,null,null,null,null,null,null,null,null,null,null,{"$f":"AQ447+AZ447+AQ448+AZ448","v":0}]
[]
[]
[]
[null,"Buget Indicativ - HG 907/2016"]
["MINISTERUL AGRICULTURII ŞI DEZVOLTĂRII RURALE"]
["AGENŢIA PENTRU FINANŢAREA INVESTIŢIILOR RURALE"]
[]
[]
[null,"Procentul aferent intensității",null,null,null,null,null,null,null,null,null,null,null,null,null,null,null,null,null,null,"Curs EURO",null,null,null,null,null,null,null,null,null,null,null,null,"Data întocmirii Studiului de Fezabilitate"]
[]
["Măsura",null,null,null,null,null,null,null,null,null,null,null,null,null,null,null,null,null,null,null,null,null,null,null,null,null,null,null,null,null,null,null,null,null,null,"M2"]
["Denumirea capitolelor de cheltuieli",null,null,null,null,null,null,null,null,null,null,null,null,null,null,null,null,null,null,null,null,null,null,null,null,null,null,null,null,null,null,null,null,null,null,"Cheltuieli eligibile",null,null,null,null,null,null,null,null,"Cheltuieli neeligibile",null,null,null,null,null,null,null,"Total"]
[null,null,null,null,null,null,null,null,null,null,null,null,null,null,null,null,null,null,null,null,null,null,null,null,null,null,null,null,null,null,null,null,null,null,null,"EURO",null,null,null,null,null,null,null,null,"EURO",null,null,null,null,null,null,null,"EURO"]
[1,null,null,null,null,null,null,null,null,null,null,null,null,null,null,null,null,null,null,null,null,null,null,null,null,null,null,null,null,null,null,null,null,null,null,2,null,null,null,null,null,null,null,null,3,null,null,null,null,null,null,null,4]
["Capitolul 1 Cheltuieli pentru obtinerea şi amenajarea terenului - total, din care:",null,null,null,null,null,null,null,null,null,null,null,null,null,null,null,null,null,null,null,null,null,null,null,null,null,null,null,null,null,null,null,null,null,null,{"$f":"SUM(AJ466:AR468)","v":0},null,null,null,null,null,null,null,null,{"$f":"SUM(AS465:AZ468)","v":0},null,null,null,null,null,null,null,{"$f":"SUM(AJ464:AZ464)","v":0}]
["1.1 Obţinerea terenului",null,null,null,null,null,null,null,null,null,null,null,null,null,null,null,null,null,null,null,null,null,null,null,null,null,null,null,null,null,null,null,null,null,null,null,null,null,null,null,null,null,null,null,null,null,null,null,null,null,null,null,{"$f":"SUM(AJ465:AZ465)","v":0}]
["1.2 Amenajarea terenului",null,null,null,null,null,null,null,null,null,null,null,null,null,null,null,null,null,null,null,null,null,null,null,null,null,null,null,null,null,null,null,null,null,null,null,null,null,null,null,null,null,null,null,null,null,null,null,null,null,null,null,0]
["1.3 Amenajari pentru protecţia mediului şi aducerea la starea iniţială",null,null,null,null,null,null,null,null,null,null,null,null,null,null,null,null,null,null,null,null,null,null,null,null,null,null,null,null,null,null,null,null,null,null,null,null,null,null,null,null,null,null,null,null,null,null,null,null,null,null,null,0]
["1.4 Cheltuieli pentru relocarea/protecția utilităților",null,null,null,null,null,null,null,null,null,null,null,null,null,null,null,null,null,null,null,null,null,null,null,null,null,null,null,null,null,null,null,null,null,null,null,null,null,null,null,null,null,null,null,null,null,null,null,null,null,null,null,{"$f":"SUM(AJ468:AZ468)","v":0}]
["Capitolul 2 Cheltuieli pentru asigurarea utilităţilor necesare obiectivului de investiții",null,null,null,null,null,null,null,null,null,null,null,null,null,null,null,null,null,null,null,null,null,null,null,null,null,null,null,null,null,null,null,null,null,null,null,null,null,null,null,null,null,null,null,null,null,null,null,null,null,null,null,0]
["Capitolul 3 Cheltuieli pentru proiectare şi asistenţă tehnică - total, din care:",null,null,null,null,null,null,null,null,null,null,null,null,null,null,null,null,null,null,null,null,null,null,null,null,null,null,null,null,null,null,null,null,null,null,{"$f":"AJ471+AJ475+AJ476+AJ477+AJ478+AJ486+AJ489","v":0},null,null,null,null,null,null,null,null,{"$f":"AS471+AS475+AS476+AS477+AS478+AS485+AS486+AS489","v":0},null,null,null,null,null,null,null,0]
["3.1 Studii",null,null,null,null,null,null,null,null,null,null,null,null,null,null,null,null,null,null,null,null,null,null,null,null,null,null,null,null,null,null,null,null,null,null,{"$f":"SUM(AJ472:AJ474)","v":0},null,null,null,null,null,null,null,null,{"$f":"SUM(AS472:AS474)","v":0},null,null,null,null,null,null,null,{"$f":"SUM(AJ471:AZ471)","v":0}]
["      3.1.1. Studii de teren",null,null,null,null,null,null,null,null,null,null,null,null,null,null,null,null,null,null,null,null,null,null,null,null,null,null,null,null,null,null,null,null,null,null,null,null,null,null,null,null,null,null,null,null,null,null,null,null,null,null,null,0]
["      3.1.2. Raport privind impactul asupra mediului",null,null,null,null,null,null,null,null,null,null,null,null,null,null,null,null,null,null,null,null,null,null,null,null,null,null,null,null,null,null,null,null,null,null,null,null,null,null,null,null,null,null,null,null,null,null,null,null,null,null,null,0]
["      3.1.3. Alte studii specifice",null,null,null,null,null,null,null,null,null,null,null,null,null,null,null,null,null,null,null,null,null,null,null,null,null,null,null,null,null,null,null,null,null,null,null,null,null,null,null,null,null,null,null,null,null,null,null,null,null,null,null,{"$f":"SUM(AJ474:AZ474)","v":0}]
["3.2 Documentații-suport și cheltuieli pentru obţinerea de avize, acorduri şi autorizaţii",null,null,null,null,null,null,null,null,null,null,null,null,null,null,null,null,null,null,null,null,null,null,null,null,null,null,null,null,null,null,null,null,null,null,null,null,null,null,null,null,null,null,null,null,null,null,null,null,null,null,null,0]
["3.3 Expertizare tehnică",null,null,null,null,null,null,null,null,null,null,null,null,null,null,null,null,null,null,null,null,null,null,null,null,null,null,null,null,null,null,null,null,null,null,null,null,null,null,null,null,null,null,null,null,null,null,null,null,null,null,null,0]
["3.4 Certificarea performanţei energetice şi auditul energetic al clădirilor",null,null,null,null,null,null,null,null,null,null,null,null,null,null,null,null,null,null,null,null,null,null,null,null,null,null,null,null,null,null,null,null,null,null,null,null,null,null,null,null,null,null,null,null,null,null,null,null,null,null,null,{"$f":"SUM(AJ477:AZ477)","v":0}]
["3.5 Proiectare",null,null,null,null,null,null,null,null,null,null,null,null,null,null,null,null,null,null,null,null,null,null,null,null,null,null,null,null,null,null,null,null,null,null,{"$f":"SUM(AJ479:AR484)","v":0},null,null,null,null,null,null,null,null,{"$f":"SUM(AS479:AZ484)","v":0},null,null,null,null,null,null,null,0]
["      3.5.1. Temă de proiectare",null,null,null,null,null,null,null,null,null,null,null,null,null,null,null,null,null,null,null,null,null,null,null,null,null,null,null,null,null,null,null,null,null,null,null,null,null,null,null,null,null,null,null,null,null,null,null,null,null,null,null,{"$f":"SUM(AJ479:AZ479)","v":0}]
["      3.5.2. Studiu de prefezabilitate",null,null,null,null,null,null,null,null,null,null,null,null,null,null,null,null,null,null,null,null,null,null,null,null,null,null,null,null,null,null,null,null,null,null,null,null,null,null,null,null,null,null,null,null,null,null,null,null,null,null,null,0]
["      3.5.3. Studiu de prefezabilitate/documentație de avizare a lucrărilor de intervenții și deviz general",null,null,null,null,null,null,null,null,null,null,null,null,null,null,null,null,null,null,null,null,null,null,null,null,null,null,null,null,null,null,null,null,null,null,null,null,null,null,null,null,null,null,null,null,null,null,null,null,null,null,null,0]
["      3.5.4. Documentațiile tehnice necesare în vederea obținerii avizelor/ acordurilor/ autorizațiilor",null,null,null,null,null,null,null,null,null,null,null,null,null,null,null,null,null,null,null,null,null,null,null,null,null,null,null,null,null,null,null,null,null,null,null,null,null,null,null,null,null,null,null,null,null,null,null,null,null,null,null,0]
["      3.5.5. Verificarea tehnică de calitate a proiectului tehnic și a detaliilor de execuție",null,null,null,null,null,null,null,null,null,null,null,null,null,null,null,null,null,null,null,null,null,null,null,null,null,null,null,null,null,null,null,null,null,null,null,null,null,null,null,null,null,null,null,null,null,null,null,null,null,null,null,0]
["      3.5.6. Proiect tehnic și detalii de execuție",null,null,null,null,null,null,null,null,null,null,null,null,null,null,null,null,null,null,null,null,null,null,null,null,null,null,null,null,null,null,null,null,null,null,null,null,null,null,null,null,null,null,null,null,null,null,null,null,null,null,null,0]
["3.6 Organizarea procedurilor de achiziţie",null,null,null,null,null,null,null,null,null,null,null,null,null,null,null,null,null,null,null,null,null,null,null,null,null,null,null,null,null,null,null,null,null,null,null,null,null,null,null,null,null,null,null,null,null,null,null,null,null,null,null,0]
["3.7 Consultanță",null,null,null,null,null,null,null,null,null,null,null,null,null,null,null,null,null,null,null,null,null,null,null,null,null,null,null,null,null,null,null,null,null,null,{"$f":"SUM(AJ487:AR488)","v":0},null,null,null,null,null,null,null,null,{"$f":"SUM(AS487:AZ488)","v":0},null,null,null,null,null,null,null,0]
["      3.7.1. Managementul de proiect pentru obiectivul de investiții",null,null,null,null,null,null,null,null,null,null,null,null,null,null,null,null,null,null,null,null,null,null,null,null,null,null,null,null,null,null,null,null,null,null,null,null,null,null,null,null,null,null,null,null,null,null,null,null,null,null,null,0]
["      3.7.2. Auditul financiar",null,null,null,null,null,null,null,null,null,null,null,null,null,null,null,null,null,null,null,null,null,null,null,null,null,null,null,null,null,null,null,null,null,null,null,null,null,null,null,null,null,null,null,null,null,null,null,null,null,null,null,{"$f":"SUM(AJ488:AZ488)","v":0}]
["3.8 Asistență tehnică",null,null,null,null,null,null,null,null,null,null,null,null,null,null,null,null,null,null,null,null,null,null,null,null,null,null,null,null,null,null,null,null,null,null,{"$f":"AJ493+AJ490","v":0},null,null,null,null,null,null,null,null,{"$f":"AS493+AS490","v":0},null,null,null,null,null,null,null,0]
["     3.8.1. Asistență tehnică din partea proiectantului",null,null,null,null,null,null,null,null,null,null,null,null,null,null,null,null,null,null,null,null,null,null,null,null,null,null,null,null,null,null,null,null,null,null,{"$f":"SUM(AJ491:AR492)","v":0},null,null,null,null,null,null,null,null,{"$f":"SUM(AS491:AZ492)","v":0},null,null,null,null,null,null,null,{"$f":"SUM(AJ490:AZ490)","v":0}]
["             3.8.1.1. pe perioada de execuție a lucrărilor",null,null,null,null,null,null,null,null,null,null,null,null,null,null,null,null,null,null,null,null,null,null,null,null,null,null,null,null,null,null,null,null,null,null,null,null,null,null,null,null,null,null,null,null,null,null,null,null,null,null,null,0]
["             3.8.1.2. pentru participarea proiectantului la fazele incluse în programul de control al lucrărilor de execuţie, avizat de către Inspectoratul de Stat în Construcţii",null,null,null,null,null,null,null,null,null,null,null,null,null,null,null,null,null,null,null,null,null,null,null,null,null,null,null,null,null,null,null,null,null,null,null,null,null,null,null,null,null,null,null,null,null,null,null,null,null,null,null,0]
["      3.8.2. Dirigenție de șantier",null,null,null,null,null,null,null,null,null,null,null,null,null,null,null,null,null,null,null,null,null,null,null,null,null,null,null,null,null,null,null,null,null,null,null,null,null,null,null,null,null,null,null,null,null,null,null,null,null,null,null,0]
["Verificare încadrare cheltuieli capitolul 3",null,null,null,null,null,null,null,null,null,null,null,null,null,null,null,null,null,null,null,null,null,null,null,null,null,null,null,null,null,null,null,null,null,null,{"$f":"IF(AJ495=0,IF((IF((AJ464+AJ469+AJ495)=0,0,AJ470*100/(AJ464+AJ469+AJ495)))<=5,\"cheltuieli capitol 3 se incadreaza in limita de 5%\",\"cheltuieli capitol 3 nu se incadreaza in limita de 5%\"),IF((IF((AJ464+AJ469+AJ495)=0,0,AJ470*100/(AJ464+AJ469+AJ495)))<=10,\"cheltuieli capitol 3 se incadreaza in limita de 10%\",\"cheltuieli capitol 3 nu se incadreaza in limita de 10%\"))","v":"cheltuieli capitol 3 se incadreaza in limita de 5%"}]
["Capitolul 4 Cheltuieli pentru investiţia de bază - total, din care:",null,null,null,null,null,null,null,null,null,null,null,null,null,null,null,null,null,null,null,null,null,null,null,null,null,null,null,null,null,null,null,null,null,null,{"$f":"AJ496","v":0},null,null,null,null,null,null,null,null,{"$f":"AS496","v":0},null,null,null,null,null,null,null,{"$f":"SUM(AJ495:AZ495)","v":0}]
["Constructii, din care:",null,null,null,null,null,null,null,null,null,null,null,null,null,null,null,null,null,null,null,null,null,null,null,null,null,null,null,null,null,null,null,null,null,null,{"$f":"SUM(AJ497:AJ502)","v":0},null,null,null,null,null,null,null,null,{"$f":"SUM(AS497:AS502)","v":0},null,null,null,null,null,null,null,0]
["4.1 Construcţii şi instalaţii",null,null,null,null,null,null,null,null,null,null,null,null,null,null,null,null,null,null,null,null,null,null,null,null,null,null,null,null,null,null,null,null,null,null,null,null,null,null,null,null,null,null,null,null,null,null,null,null,null,null,null,0]
["4.2 Montaj utilaj tehnologic",null,null,null,null,null,null,null,null,null,null,null,null,null,null,null,null,null,null,null,null,null,null,null,null,null,null,null,null,null,null,null,null,null,null,null,null,null,null,null,null,null,null,null,null,null,null,null,null,null,null,null,0]
["4.3 Utilaje, echipamente tehnologice şi funcţionale cu montaj (procurare)",null,null,null,null,null,null,null,null,null,null,null,null,null,null,null,null,null,null,null,null,null,null,null,null,null,null,null,null,null,null,null,null,null,null,null,null,null,null,null,null,null,null,null,null,null,null,null,null,null,null,null,0]
["4.4 Utilaje şi echipamente fară montaj, mijloace de transport, alte achiziţii specifice",null,null,null,null,null,null,null,null,null,null,null,null,null,null,null,null,null,null,null,null,null,null,null,null,null,null,null,null,null,null,null,null,null,null,null,null,null,null,null,null,null,null,null,null,null,null,null,null,null,null,null,0]
["4.5 Dotări",null,null,null,null,null,null,null,null,null,null,null,null,null,null,null,null,null,null,null,null,null,null,null,null,null,null,null,null,null,null,null,null,null,null,null,null,null,null,null,null,null,null,null,null,null,null,null,null,null,null,null,0]
["4.6 Active necorporale",null,null,null,null,null,null,null,null,null,null,null,null,null,null,null,null,null,null,null,null,null,null,null,null,null,null,null,null,null,null,null,null,null,null,null,null,null,null,null,null,null,null,null,null,null,null,null,null,null,null,null,0]
["Capitolul 5 Alte cheltuieli - total, din care:",null,null,null,null,null,null,null,null,null,null,null,null,null,null,null,null,null,null,null,null,null,null,null,null,null,null,null,null,null,null,null,null,null,null,{"$f":"AJ507+AJ504+AJ509","v":0},null,null,null,null,null,null,null,null,{"$f":"AS508+AS507+AS504+AS509","v":0},null,null,null,null,null,null,null,0]
["5.1 Organizare de şantier",null,null,null,null,null,null,null,null,null,null,null,null,null,null,null,null,null,null,null,null,null,null,null,null,null,null,null,null,null,null,null,null,null,null,{"$f":"SUM(AJ505:AR506)","v":0},null,null,null,null,null,null,null,null,{"$f":"SUM(AS505:AZ506)","v":0},null,null,null,null,null,null,null,0]
["      5.1.1 lucrări de construcţii şi instalaţii aferente organizării de şantier",null,null,null,null,null,null,null,null,null,null,null,null,null,null,null,null,null,null,null,null,null,null,null,null,null,null,null,null,null,null,null,null,null,null,null,null,null,null,null,null,null,null,null,null,null,null,null,null,null,null,null,0]
["      5.1.2 cheltuieli conexe orgănizării şantierului",null,null,null,null,null,null,null,null,null,null,null,null,null,null,null,null,null,null,null,null,null,null,null,null,null,null,null,null,null,null,null,null,null,null,null,null,null,null,null,null,null,null,null,null,null,null,null,null,null,null,null,0]
["5.2 Comisioane, taxe, costul creditului",null,null,null,null,null,null,null,null,null,null,null,null,null,null,null,null,null,null,null,null,null,null,null,null,null,null,null,null,null,null,null,null,null,null,null,null,null,null,null,null,null,null,null,null,null,null,null,null,null,null,null,0]
["5.3 Cheltuieli diverse şi neprevăzute",null,null,null,null,null,null,null,null,null,null,null,null,null,null,null,null,null,null,null,null,null,null,null,null,null,null,null,null,null,null,null,null,null,null,null,null,null,null,null,null,null,null,null,null,null,null,null,null,null,null,null,0]
["5.4 Cheltuili pentru informare si publicitate",null,null,null,null,null,null,null,null,null,null,null,null,null,null,null,null,null,null,null,null,null,null,null,null,null,null,null,null,null,null,null,null,null,null,null,null,null,null,null,null,null,null,null,null,null,null,null,null,null,null,null,{"$f":"SUM(AJ509:AZ509)","v":0}]
["Capitolul 6 Cheltuieli pentru darea în exploatare - total, din care:",null,null,null,null,null,null,null,null,null,null,null,null,null,null,null,null,null,null,null,null,null,null,null,null,null,null,null,null,null,null,null,null,null,null,{"$f":"SUM(AJ511:AR512)","v":0},null,null,null,null,null,null,null,null,{"$f":"SUM(AS511:AZ512)","v":0},null,null,null,null,null,null,null,0]
["6.1 Pregătirea personalului de exploatare",null,null,null,null,null,null,null,null,null,null,null,null,null,null,null,null,null,null,null,null,null,null,null,null,null,null,null,null,null,null,null,null,null,null,null,null,null,null,null,null,null,null,null,null,null,null,null,null,null,null,null,0]
["6.2 Probe tehnologice şi teste",null,null,null,null,null,null,null,null,null,null,null,null,null,null,null,null,null,null,null,null,null,null,null,null,null,null,null,null,null,null,null,null,null,null,null,null,null,null,null,null,null,null,null,null,null,null,null,null,null,null,null,0]
["TOTAL GENERAL",null,null,null,null,null,null,null,null,null,null,null,null,null,null,null,null,null,null,null,null,null,null,null,null,null,null,null,null,null,null,null,null,null,null,{"$f":"AJ464+AJ469+AJ470+AJ495+AJ503+AJ510","v":0},null,null,null,null,null,null,null,null,{"$f":"AS464+AS469+AS470+AS495+AS503+AS510","v":0},null,null,null,null,null,null,null,0]
["Verificare actualizare",null,null,null,null,null,null,null,null,null,null,null,null,null,null,null,null,null,null,null,null,null,null,null,null,null,null,null,null,null,null,null,null,null,null,{"$f":"IF((IF(AJ513=0,0,AJ515*100/AJ513))<=5,\"actualizare mai mică de 5% din valoarea eligibila\",\"actualizare mai mare de 5% din valoarea eligibila\")","v":"actualizare mai mică de 5% din valoarea eligibila"}]
["ACTUALIZARE Cheltuieli Eligibile (max 5%)",null,null,null,null,null,null,null,null,null,null,null,null,null,null,null,null,null,null,null,null,null,null,null,null,null,null,null,null,null,null,null,null,null,null,null,null,null,null,null,null,null,null,null,null,null,null,null,null,null,null,null,{"$f":"SUM(AJ515:AZ515)","v":0}]
["TOTAL GENERAL CU ACTUALIZARE",null,null,null,null,null,null,null,null,null,null,null,null,null,null,null,null,null,null,null,null,null,null,null,null,null,null,null,null,null,null,null,null,null,null,{"$f":"AJ513+AJ515","v":0},null,null,null,null,null,null,null,null,{"$f":"AS513","v":0},null,null,null,null,null,null,null,0]
["Valoare TVA",null,null,null,null,null,null,null,null,null,null,null,null,null,null,null,null,null,null,null,null,null,null,null,null,null,null,null,null,null,null,null,null,null,null,null,null,null,null,null,null,null,null,null,null,null,null,null,null,null,null,null,0]
[null,null,null,null,null,null,null,null,null,null,null,null,null,null,null,null,null,null,null,null,null,null,null,null,null,null,null,null,null,null,null,null,null,null,null,{"$f":"SUM(AJ516:AR517)","v":0},null,null,null,null,null,null,null,null,{"$f":"SUM(AS516:AZ517)","v":0},null,null,null,null,null,null,null,0]
["TOTAL GENERAL inclusiv TVA",null,null,null,null,null,null,null,null,null,null,null,null,null,null,null,null,null,null,null,null,null,null,null,null,null,null,null,null,null,null,null,null,null,null,{"$f":"BA516+BA517","v":0}]
[null,null,null,null,null,null,null,null,null,null,null,null,null,null,null,null,null,null,null,null,null,null,null,null,null,null,null,null,null,null,null,null,null,null,null,"LEI",null,null,null,null,null,null,null,null,"EURO"]
["VALOARE TOTALĂ",null,null,null,null,null,null,null,null,null,null,null,null,null,null,null,null,null,null,null,null,null,null,null,null,null,null,null,null,null,null,null,null,null,null,{"$f":"AS521*AA458","v":0},null,null,null,null,null,null,null,null,{"$f":"AJ519","v":0}]
["VALOARE ELIGIBILĂ",null,null,null,null,null,null,null,null,null,null,null,null,null,null,null,null,null,null,null,null,null,null,null,null,null,null,null,null,null,null,null,null,null,null,{"$f":"AS522*AA458","v":0},null,null,null,null,null,null,null,null,{"$f":"AJ516+AJ517","v":0}]
["VALOARE NEELIGIBILĂ",null,null,null,null,null,null,null,null,null,null,null,null,null,null,null,null,null,null,null,null,null,null,null,null,null,null,null,null,null,null,null,null,null,null,{"$f":"AS523*AA458","v":0},null,null,null,null,null,null,null,null,{"$f":"AS516+AS517","v":0}]
[]
["Plan Financiar",null,null,null,null,null,null,null,null,null,null,null,null,null,null,null,null,null,null,null,null,null,null,null,null,null,null,null,null,null,null,null,null,null,null,"Cheltuieli eligibile EURO",null,null,null,null,null,null,null,null,"Cheltuieli neeligibile EURO",null,null,null,null,null,null,null,"Total"]
["Ajutor public nerambursabil (contribuţie UE şi cofinanţare naţională)",null,null,null,null,null,null,null,null,null,null,null,null,null,null,null,null,null,null,null,null,null,null,null,null,null,null,null,null,null,null,null,null,null,null,null,null,null,null,null,null,null,null,null,null,null,null,null,null,null,null,null,{"$f":"SUM(AJ526:AZ526)","v":0}]
["Cofinantare privata, din care:",null,null,null,null,null,null,null,null,null,null,null,null,null,null,null,null,null,null,null,null,null,null,null,null,null,null,null,null,null,null,null,null,null,null,{"$f":"SUM(AJ528:AR529)","v":0},null,null,null,null,null,null,null,null,{"$f":"SUM(AS528:AZ529)","v":0},null,null,null,null,null,null,null,0]
[null,null,null,null,null,null,null,null,null,null,null,null,null,null,null,"- autofinantare",null,null,null,null,null,null,null,null,null,null,null,null,null,null,null,null,null,null,null,null,null,null,null,null,null,null,null,null,null,null,null,null,null,null,null,null,0]
[null,null,null,null,null,null,null,null,null,null,null,null,null,null,null,"- imprumuturi",null,null,null,null,null,null,null,null,null,null,null,null,null,null,null,null,null,null,null,null,null,null,null,null,null,null,null,null,null,null,null,null,null,null,null,null,0]
["Buget local",null,null,null,null,null,null,null,null,null,null,null,null,null,null,null,null,null,null,null,null,null,null,null,null,null,null,null,null,null,null,null,null,null,null,null,null,null,null,null,null,null,null,null,null,null,null,null,null,null,null,null,0]
["TOTAL PROIECT",null,null,null,null,null,null,null,null,null,null,null,null,null,null,null,null,null,null,null,null,null,null,null,null,null,null,null,null,null,null,null,null,null,null,{"$f":"AJ526+AJ527+AJ530","v":0},null,null,null,null,null,null,null,null,{"$f":"AS527+AS530","v":0},null,null,null,null,null,null,null,0]
["Procent contribuţie publică",null,null,null,null,null,null,null,null,null,null,null,null,null,null,null,null,null,null,null,null,null,null,null,null,null,null,null,null,null,null,null,null,null,null,{"$f":"IF(AJ531=0,0,AJ526*100/AJ531)","v":0},null,null,null,null,null,null,null,"%"]
["Avans solicitat"]
["Procent avans solicitat ca procent din ajutorul public nerambursabil",null,null,null,null,null,null,null,null,null,null,null,null,null,null,null,null,null,null,null,null,null,null,null,null,null,null,null,null,null,null,null,null,null,null,{"$f":"IF(AJ526=0,0,AJ533*100/AJ526)","v":0},null,null,null,null,null,null,null,null,{"$f":"IF(AJ534<=50,\"Suma avans mai mica de 50% din ajutorul public\",\"Suma avans mai mare de 50% din ajutorul public\")","v":"Suma avans mai mica de 50% din ajutorul public"}]
[null,null,null,null,null,null,null,"MINISTERUL AGRICULTURII ŞI DEZVOLTĂRII RURALE"]
[null,null,null,null,null,null,null,null,null,null,null,null,null,null,null,null,null,null,null,null,null,null,null,null,null,null,null,null,null,null,null,null,null,null,null,null,null,null,null,null,null,null,"Anexa A1\nHG 907/2016"]
[null,null,null,null,null,null,null,"AGENŢIA PENTRU FINANŢAREA INVESTIŢIILOR RURALE"]
[null,null,null,null,null,null,null,null,null,null,null,null,null,null,null,null,null,null,null,null,null,null,null,null,null,null,null,null,null,null,null,null,null,null,null,null,null,null,null,null,null,null,"…………..2017",null,null,null,null,null,null,null,null,"Nr.1"]
[null,null,null,null,null,null,null,"Deviz financiar- Capitolul 3 - Cheltuieli pentru proiectare şi asistenţa tehnică - EURO"]
[]
[]
["(Titlu deviz)"]
["Nr.crt",null,null,null,"Specificaţie",null,null,null,null,null,null,null,null,null,null,null,null,null,null,null,null,null,null,null,null,null,null,null,null,null,null,null,null,null,null,null,null,null,null,null,null,null,"Valoare eligibilă",null,null,null,null,null,null,null,null,"Valoare\nneeligibilă"]
["3.1",null,null,null,"Cheltuieli pentru studii - total din care:",null,null,null,null,null,null,null,null,null,null,null,null,null,null,null,null,null,null,null,null,null,null,null,null,null,null,null,null,null,null,null,null,null,null,null,null,null,{"$f":"SUM(AQ545:AY547)","v":0},null,null,null,null,null,null,null,null,{"$f":"SUM(AZ545:BI547)","v":0}]
[null,null,null,null,"3.1.1 Studii de teren: geotehnice, geologice, hidrologice, hidrogeotehnice, fotogrammetrice, topografice şi de stabilitate ale terenului pe care se amplasează obiectivul de investiţie"]
[null,null,null,null,"3.1.2 Raport privind impactul asupra mediului"]
[null,null,null,null,"3.1.3 Studii de specialitate necesare în funcție de specificul investiției"]
["3.2",null,null,null,"Documentaţii-suport şi cheltuieli pentru obţinerea de avize, acorduri şi autorizaţii",null,null,null,null,null,null,null,null,null,null,null,null,null,null,null,null,null,null,null,null,null,null,null,null,null,null,null,null,null,null,null,null,null,null,null,null,null,{"$f":"SUM(AQ549:AY557)","v":0},null,null,null,null,null,null,null,null,{"$f":"SUM(AZ549:BI557)","v":0}]
[null,null,null,null,"1. obţinerea/prelungirea valabilităţii ceritificatului de urbanism"]
[null,null,null,null,"2. obţinerea/prelungirea valabilităţii autorizaţiei de construire/desfiinţare"]
[null,null,null,null,"3. obţinerea avizelor şi acordurilor pentru racorduri şi branşamente la reţelele publice de alimentare cu apă, canalizare, alimentare cu gaze, alimentare cu agent termic, energie electrică, telefonie"]
[null,null,null,null,"4. obţinerea certificatului de nomenclatură stradală şi adresa"]
[null,null,null,null,"5. întocmirea documentaţiei, obţinerea numărului cadastral provizoriu şi înregistrarea terenului în cartea funciară"]
[null,null,null,null,"6. obținerea actului administrativ al autorității competente pentru protecția mediului"]
[null,null,null,null,"7. obţinerea avizului de protecție civilă"]
[null,null,null,null,"8. avizul de specialitate în cazul obiectivelor de patrimoniu"]
[null,null,null,null,"9. alte avize, acorduri şi autorizaţii"]
["3.3",null,null,null,"Cheltuieli pentru expertizarea tehnică a construcţiilor existente, a structurilor şi/sau, după caz, a proiectelor tehnice, inclusiv întocmirea de către expertul tehnic a raportului de expertiză tehnică"]
["3.4",null,null,null,"Cheltuieli pentru certificarea performanţei energetice şi auditul energetic al\nclădirilor"]
["3.5",null,null,null,"Cheltuieli pentru proiectare",null,null,null,null,null,null,null,null,null,null,null,null,null,null,null,null,null,null,null,null,null,null,null,null,null,null,null,null,null,null,null,null,null,null,null,null,null,{"$f":"SUM(AQ561:AY566)","v":0},null,null,null,null,null,null,null,null,{"$f":"SUM(AZ561:BI566)","v":0}]
[null,null,null,null,"3.5.1 Temă de proiectare"]
[null,null,null,null,"3.5.2 Studiu de prefezabilitate"]
[null,null,null,null,"3.5.3. Studiu de prefezabilitate/documentație de avizare a lucrărilor de intervenții și deviz general"]
[null,null,null,null,"3.5.4. Documentațiile tehnice necesare în vederea obținerii avizelor/ acordurilor/ autorizațiilor"]
[null,null,null,null,"3.5.5. Verificarea tehnică de calitate a proiectului tehnic și a detaliilor de execuție"]
[null,null,null,null,"3.5.6. Proiect tehnic și detalii de execuție"]
["3.6",null,null,null,"Cheltuieli aferente organizării şi derulării procedurilor de achiziţii publice",null,null,null,null,null,null,null,null,null,null,null,null,null,null,null,null,null,null,null,null,null,null,null,null,null,null,null,null,null,null,null,null,null,null,null,null,null,null,null,null,null,null,null,null,null,null,{"$f":"SUM(AZ568:BI571)","v":0}]
[null,null,null,null,"1. Cheltuieli aferente întocmirii documentaţiei de atribuire şi multiplicării acesteia (exclusiv cele cumpărate de ofertanţi)"]
[null,null,null,null,"2. Cheltuieli cu onorariile, transportul, cazarea şi diurna membrilor desemnaţi în comisiile de evaluare"]
[null,null,null,null,"3. Anunţuri de intenţie, de participare şi de atribuire a contractelor, corespondenţă prin poştă, fax, poştă electronică în legătură cu procedurile de achiziţie publică"]
[null,null,null,null,"4. Cheltuieli aferente organizării şi derulării procedurilor de achiziţii publice"]
["3.7",null,null,null,"Cheltuieli pentru consultanţă",null,null,null,null,null,null,null,null,null,null,null,null,null,null,null,null,null,null,null,null,null,null,null,null,null,null,null,null,null,null,null,null,null,null,null,null,null,{"$f":"SUM(AQ573:AY574)","v":0},null,null,null,null,null,null,null,null,{"$f":"SUM(AZ573:BI574)","v":0}]
[null,null,null,null,"3.7.1 Managementul de proiect pentru obiectivul de investiţii"]
[null,null,null,null,"3.7.2 Auditul financiar"]
["3.8",null,null,null,"Cheltuieli pentru asistenţa tehnică",null,null,null,null,null,null,null,null,null,null,null,null,null,null,null,null,null,null,null,null,null,null,null,null,null,null,null,null,null,null,null,null,null,null,null,null,null,{"$f":"AQ576+AQ579","v":0},null,null,null,null,null,null,null,null,{"$f":"AZ576+AZ579","v":0}]
[null,null,null,null,"3.8.1. Asistenţă tehnică din partea proiectantului",null,null,null,null,null,null,null,null,null,null,null,null,null,null,null,null,null,null,null,null,null,null,null,null,null,null,null,null,null,null,null,null,null,null,null,null,null,{"$f":"SUM(AQ577:AY578)","v":0},null,null,null,null,null,null,null,null,{"$f":"SUM(AZ577:BI578)","v":0}]
[null,null,null,null,"1.1. pe perioada de execuţie a lucrărilor"]
[null,null,null,null,"1.2. pentru participarea proiectantului la fazele incluse în programul de control al lucrărilor de execuţie, avizat de către Inspectoratul de Stat în Construcţii"]
[null,null,null,null,"3.8.2 Dirigenţie de şantier, asigurată de personal tehnic de specialitate, autorizat"]
[null,null,null,null,"Total valoare fără TVA",null,null,null,null,null,null,null,null,null,null,null,null,null,null,null,null,null,null,null,null,null,null,null,null,null,null,null,null,null,null,null,null,null,null,null,null,null,{"$f":"AQ544+AQ548+AQ558+AQ559+AQ560+AQ567+AQ572+AQ575","v":0},null,null,null,null,null,null,null,null,{"$f":"AZ544+AZ548+AZ558+AZ559+AZ560+AZ567+AZ572+AZ575","v":0}]
[null,null,null,null,"Valoare TVA (aferentă cheltuielilor eligibile şi neeligibile)"]
["TOTAL DEVIZ FINANCIAR 1 (inclusiv TVA)",null,null,null,null,null,null,null,null,null,null,null,null,null,null,null,null,null,null,null,null,null,null,null,null,null,null,null,null,null,null,null,null,null,null,null,null,null,null,null,null,null,{"$f":"AQ580+AZ580+AQ581+AZ581","v":0}]
[]
[]
[]
[null,null,null,null,null,null,null,"MINISTERUL AGRICULTURII ŞI DEZVOLTĂRII RURALE"]
[null,null,null,null,null,null,null,null,null,null,null,null,null,null,null,null,null,null,null,null,null,null,null,null,null,null,null,null,null,null,null,null,null,null,null,null,null,null,null,null,null,null,"Anexa A2\nHG 907/2016"]
[null,null,null,null,null,null,null,"AGENŢIA PENTRU FINANŢAREA INVESTIŢIILOR RURALE"]
[null,null,null,null,null,null,null,null,null,null,null,null,null,null,null,null,null,null,null,null,null,null,null,null,null,null,null,null,null,null,null,null,null,null,null,null,null,null,null,null,null,null,"………….2017",null,null,null,null,null,null,null,null,"Nr.1"]
[null,null,null,null,null,null,null,"DEVIZ PE OBIECT *"]
[]
[]
["(Descriere obiect de construcţie)"]
["Nr. crt.",null,null,null,"Denumire",null,null,null,null,null,null,null,null,null,null,null,null,null,null,null,null,null,null,null,null,null,null,null,null,null,null,null,null,null,null,null,null,null,null,null,null,null,"Valoarea pe categorii de lucrări, fară TVA - EURO"]
["Cap. 4 + Cheltuieli pentru investiţia de bază",null,null,null,null,null,null,null,null,null,null,null,null,null,null,null,null,null,null,null,null,null,null,null,null,null,null,null,null,null,null,null,null,null,null,null,null,null,null,null,null,null,"Valoare eligibilă",null,null,null,null,null,null,null,null,"Valoare\nneeligibilă"]
["I - LUCRĂRI DE CONSTRUCŢII ŞI INSTALAŢII"]
["4.1",null,null,null,"Construcții și instalații"]
[null,null,null,null,"4.1.1 Terasamente, sistematizare pe verticală și amenajări exterioare"]
[null,null,null,null,"4.1.2 Rezistență"]
[null,null,null,null,"4.1.3 Arhitectură"]
[null,null,null,null,"4.1.4 Instalații"]
[null,null,null,null,"TOTAL I ( fără TVA)",null,null,null,null,null,null,null,null,null,null,null,null,null,null,null,null,null,null,null,null,null,null,null,null,null,null,null,null,null,null,null,null,null,null,null,null,null,{"$f":"SUM(AQ598:AY601)","v":0},null,null,null,null,null,null,null,null,{"$f":"SUM(AZ598:BI601)","v":0}]
["II - MONTAJ"]
["4.2",null,null,null,"Montaj utilaje, echipamente tehnologice și funcționale"]
[null,null,null,null,"TOTAL II ( fără TVA)",null,null,null,null,null,null,null,null,null,null,null,null,null,null,null,null,null,null,null,null,null,null,null,null,null,null,null,null,null,null,null,null,null,null,null,null,null,{"$f":"SUM(AQ604)","v":0},null,null,null,null,null,null,null,null,{"$f":"SUM(AZ604)","v":0}]
["III - PROCURARE"]
["4.3",null,null,null,"Utilaje, echipamente tehnologice și funcționale care necesită montaj"]
["4.4",null,null,null,"Utilaje, echipamente tehnologice și funcționale care nu necesită montaj și echipamente de transport"]
["4.5",null,null,null,"Dotări"]
["4.6",null,null,null,"Active necorporale"]
[null,null,null,null,"TOTAL III ( fără TVA)",null,null,null,null,null,null,null,null,null,null,null,null,null,null,null,null,null,null,null,null,null,null,null,null,null,null,null,null,null,null,null,null,null,null,null,null,null,{"$f":"SUM(AQ607:AY610)","v":0},null,null,null,null,null,null,null,null,{"$f":"SUM(AZ607:BI610)","v":0}]
["TOTAL ( TOTAL I + TOTAL II +TOTAL III) fără TVA",null,null,null,null,null,null,null,null,null,null,null,null,null,null,null,null,null,null,null,null,null,null,null,null,null,null,null,null,null,null,null,null,null,null,null,null,null,null,null,null,null,{"$f":"AQ611+AQ605+AQ602","v":0},null,null,null,null,null,null,null,null,{"$f":"AZ611+AZ605+AZ602","v":0}]
["TVA aferent cheltuielilor eligibile şi neeligibile"]
["TOTAL DEVIZ PE OBIECT (inclusiv TVA)",null,null,null,null,null,null,null,null,null,null,null,null,null,null,null,null,null,null,null,null,null,null,null,null,null,null,null,null,null,null,null,null,null,null,null,null,null,null,null,null,null,{"$f":"AQ612+AZ612+AQ613+AZ613","v":0}]
[]
[]
[]
[null,null,null,null,null,null,null,"MINISTERUL AGRICULTURII ŞI DEZVOLTĂRII RURALE"]
[null,null,null,null,null,null,null,null,null,null,null,null,null,null,null,null,null,null,null,null,null,null,null,null,null,null,null,null,null,null,null,null,null,null,null,null,null,null,null,null,null,null,"Anexa A3\nHG 907/2016"]
[null,null,null,null,null,null,null,"AGENŢIA PENTRU FINANŢAREA INVESTIŢIILOR RURALE"]
[null,null,null,null,null,null,null,null,null,null,null,null,null,null,null,null,null,null,null,null,null,null,null,null,null,null,null,null,null,null,null,null,null,null,null,null,null,null,null,null,null,null,"……………2017",null,null,null,null,null,null,null,null,"Nr.1"]
[]
[]
[]
["(Titlu deviz)"]
["Deviz capitolul 2- Cheltuieli pentru asigurarea utilităţilor necesare obiectivului - EURO"]
["Nr.crt",null,null,null,"Specificaţie",null,null,null,null,null,null,null,null,null,null,null,null,null,null,null,null,null,null,null,null,null,null,null,null,null,null,null,null,null,null,null,null,null,null,null,null,null,"Valoare eligibilă",null,null,null,null,null,null,null,null,"Valoare\nneeligibilă"]
[1,null,null,null,"Alimentare cu apă"]
[2,null,null,null,"Canalizare"]
[3,null,null,null,"Alimentare cu gaze naturale"]
[4,null,null,null,"Alimentare cu agent termic"]
[5,null,null,null,"Alimentare cu energie electrică"]
[6,null,null,null,"Telecomunicaţii (telefonie, radio-tv,etc)"]
[7,null,null,null,"Drumuri de acces"]
[8,null,null,null,"Căi ferate industriale"]
[9,null,null,null,"Alte utilități"]
[null,null,null,null,"Total valoare fără TVA",null,null,null,null,null,null,null,null,null,null,null,null,null,null,null,null,null,null,null,null,null,null,null,null,null,null,null,null,null,null,null,null,null,null,null,null,null,{"$f":"SUM(AQ628:AY636)","v":0},null,null,null,null,null,null,null,null,{"$f":"SUM(AZ628:BI636)","v":0}]
[null,null,null,null,"Valoare TVA aferentă cheltuielilor eligibile şi neeligibile"]
["TOTAL DEVIZ CAPITOLUL 2 (inclusiv TVA)",null,null,null,null,null,null,null,null,null,null,null,null,null,null,null,null,null,null,null,null,null,null,null,null,null,null,null,null,null,null,null,null,null,null,null,null,null,null,null,null,null,{"$f":"AQ637+AZ637+AQ638+AZ638","v":0}]
[]
[" Deviz capitolul 5 - Alte cheltuieli - EURO"]
["Nr.crt",null,null,null,"Specificaţie",null,null,null,null,null,null,null,null,null,null,null,null,null,null,null,null,null,null,null,null,null,null,null,null,null,null,null,null,null,null,null,null,null,null,null,null,null,"Valoare eligibilă",null,null,null,null,null,null,null,null,"Valoare\nneeligibilă"]
[]
["5.1 ",null,null,null,"Organizare de şantier",null,null,null,null,null,null,null,null,null,null,null,null,null,null,null,null,null,null,null,null,null,null,null,null,null,null,null,null,null,null,null,null,null,null,null,null,null,{"$f":"SUM(AQ645:AY646)","v":0},null,null,null,null,null,null,null,null,{"$f":"SUM(AZ645:BI646)","v":0}]
[null,null,null,null,"5.1.1 Lucrări de construcţii şi instalaţii aferente organizării de şantier"]
[null,null,null,null,"5.1.2 Cheltuieli conexe organizării de şantier"]
["5.2",null,null,null,"Comisioane, cote, taxe, costul creditului",null,null,null,null,null,null,null,null,null,null,null,null,null,null,null,null,null,null,null,null,null,null,null,null,null,null,null,null,null,null,null,null,null,null,null,null,null,{"$f":"SUM(AQ649:AY652)","v":0},null,null,null,null,null,null,null,null,{"$f":"SUM(AZ648:BI652)","v":0}]
[null,null,null,null,"5.2.1. Comisioanele şi dobânzile aferente creditului băncii finanţatoare"]
[null,null,null,null,"5.2.2. Cota aferentă ISC pentru controlul calităţii lucrărilor de construcţii"]
[null,null,null,null,"5.2.3. Cota aferentă ISC pentru controlul statului în amenajarea teritoriului, urbanism şi pentru autorizarea lucrărilor de construcţii"]
[null,null,null,null,"5.2.4. Cota aferentă Casei Sociale a Constructorilor - CSC"]
[null,null,null,null,"5.2.5. Taxe pentru acorduri, avize conforme şi autorizaţia de construire/desfiinţare"]
["5.3",null,null,null," Cheltuieli diverse si neprevazute"]
["5.4",null,null,null," Cheltuieli pentru informare și publicitate"]
[null,null,null,null,"TOTAL DEVIZ CAPITOLUL 5",null,null,null,null,null,null,null,null,null,null,null,null,null,null,null,null,null,null,null,null,null,null,null,null,null,null,null,null,null,null,null,null,null,null,null,null,null,{"$f":"AQ644+AQ647+AQ653","v":0},null,null,null,null,null,null,null,null,{"$f":"AZ644+AZ647+AZ653+AZ654","v":0}]
[null,null,null,null,"VALOARE TVA aferentă cheltuielilor eligibile şi neeligibile"]
[null,null,null,null,"TOTAL DEVIZ CAPITOLUL 5 ( inclusiv TVA)",null,null,null,null,null,null,null,null,null,null,null,null,null,null,null,null,null,null,null,null,null,null,null,null,null,null,null,null,null,null,null,null,null,null,null,null,null,{"$f":"AQ655+AZ655+AQ656+AZ656","v":0}]
[]
[]
[]
["MINISTERUL AGRICULTURII ŞI DEZVOLTĂRII RURALE",null,null,null,null,null,null,null,null,null,null,null,null,null,null,null,null,null,null,null,null,null,null,null,null,null,null,null,null,null,"SECTIUNE SPECIFICA MASURA M2"]
["AGENŢIA PENTRU FINANŢAREA INVESTIŢIILOR RURALE"]
[]
["D. ALTE INFORMAȚII :"]
["Programarea proiectului:"]
["Numar luni de implementare"]
[]
["E. LISTA DOCUMENTELOR ANEXATE PROIECTELOR AFERENTE MĂSURII M2",null,null,null,null,null,null,null,null,null,null,null,null,null,null,null,null,null,null,null,null,null,null,null,null,null,null,null,null,null,null,null,null,null,null,null,null,null,null,null,null,null,null,null,null,null,null,null,null,null,null,null,null,null,null,"OPIS"]
[null,null,null,null,null,null,null,null,null,null,null,null,null,null,null,null,null,null,null,null,null,null,null,null,null,null,null,null,null,null,null,null,null,null,null,null,null,null,null,null,null,null,null,null,null,null,null,null,null,null,null,null,null,null,null,"documente"]
["A se anexa documentele în ordinea de mai jos:"]
["Lista documente",null,null,null,null,null,null,null,null,null,null,null,null,null,null,null,null,null,null,null,null,null,null,null,null,null,null,null,null,null,"Obligatoriu pentru toate proiectele",null,null,null,null,"Obligatoriu, dacă proiectul impune",null,null,null,null,null,null,"PAGINA de   la - până la",null,null,null,null,null,null,null,"Obligatoriu pentru toate proiectele",null,null,null,null,"Obligatoriu, dacă proiectul impune"]
["ETAPA:",null,null,null,null,null,null,null,null,null,null,null,null,null,null,null,null,null,null,null,null,null,null,null,null,null,null,null,null,null,"DEPUNERE",null,null,null,null,null,null,null,null,null,null,null,null,null,null,null,null,null,null,null,"CONTRACTARE"]
["DOC. 1.a) Memoriu Justificativ(MJ)/Studiul de Fezabilitate(SF)/Documentatie de avizare a lucrarilor de interventie(DALI)"]
["DOC. 1.b) Expertiza tehnică de specialitate asupra construcţiei existente (in cazul proiectelor care prevăd modernizarea/ finalizarea construcţiilor existente/ achiziţii de utilaje cu montaj care schimbă regimul de exploatare a construcţiei existente)"]
["DOC 1.c) Raportul privind stadiul fizic al lucrărilor (în cazul proiectelor care prevăd modernizarea/ finalizarea construcţiilor existente/ achiziţii de utilaje cu montaj care schimbă regimul de exploatare a construcţiei existente) (numai în cazul construcțiilor nefinalizate)"]
["DOC. 2.1 Situaţiile financiare (bilanţ – formularul 10, contul de profit şi pierderi - formularul 20, formularele 30 și 40), precedente anului depunerii proiectului înregistrate la Administraţia Financiară,în care rezultatul operaţional (rezultatul de exploatare din contul de profit și pierdere - formularul 20 ) să fie pozitiv (inclusiv 0). În cazul în care solicitantul este înfiinţat cu cel puţin doi ani financiari înainte de anul depunerii cererii de finanţare se vor depune ultimele două situaţii financiare). Exceptie fac intreprinderile infiintate in anul depunerii cererii de finantare.\nsau"]
["Doc 2.2 Declaraţie privind veniturile realizate din Romania în anul precedent depunerii proiectului, înregistrată la Administraţia Financiară (formularul 200) insotita de Anexele la formular in care rezultatul brut (veniturile sa fie cel puţin egale cu cheltuielile) obtinut in anul precedent depunerii proiectului sa fie pozitiv (inclusiv 0)"]
["DOC. 2.3 Declaraţia privind veniturile din activităţi agricole impuse pe norme de venit (formularul 221), document obligatoriu de prezentat la depunerea cererii de finanţare;\nsau"]
["DOC. 2.4 Declaraţia de inactivitate înregistrată la Administraţia Financiară, în cazul solicitanţilor care nu au desfăşurat activitate anterior depunerii proiectului"]
["DOC. 3. Documente pentru terenurile și/sau clădirile aferente realizarii investiției:"]
["DOC. 3.1 Pentru proiectele care presupun realizarea de lucrări de construcție sau achizitia de utilaje/echipamente cu montaj, se va prezenta înscrisul care să certifice, după caz:\na) Dreptul de proprietate privată\nb) Dreptul de concesiune\nc) Dreptul de superficie;\nActele doveditoare ale dreptului de proprietate privată, reprezentate de înscrisurile constatatoare ale unui act juridic civil, jurisdicțional sau\nadministrativ cu efect constitutiv translativ sau declarativ de proprietate, precum:\n- Actele juridice translative de proprietate, precum contractele de vânzarecumpărare, donație, schimb, etc;\n- Actele juridice declarative de proprietate, precum împărțeala judiciară sau tranzacția;\n- Actele jurisdicționale declarative, precum hotărârile judecătorești cu putere de res-judicata, de partaj, de constatare a uzucapiunii imobiliare, etc.\n- Actele jurisdicționale, precum ordonanțele de adjudecare.\nContract de concesiune care acoperă o perioadă de cel puțin 10 ani începând cu anul depunerii cererii de finanţare, corespunzătoare asigurării sustenabilității investiției şi care oferă dreptul titularului de a executa lucrările\nde construcție prevăzute prin proiect, în copie.\nÎn cazul contractului de concesiune pentru cladiri, acesta va fi însoțit de o adresă emisă de concedent care să specifice dacă pentru clădirea concesionată există solicitări privind retrocedarea. În cazul contractului de concesiune pentru terenuri, acesta va fi însoțit de o adresă emisă de concedent care să specifice:\n- suprafaţa concesionată la zi - dacă pentru suprafaţa concesionată există solicitări privind retrocedarea sau diminuarea şi dacă da, să se menţioneze care este suprafaţa supusă acestui proces;\n- situaţia privind respectarea clauzelor contractuale, dacă este în graficul de realizare a investiţiilor prevăzute în contract, dacă concesionarul şi-a respectat graficul de plată a redevenţei şi alte clauze.\nContract de superficie care acoperă o perioadă de cel puțin 10 ani începând cu anul depunerii cererii de finanţare, corespunzătoare asigurării sustenabilității investiției şi care oferă dreptul titularului de a executa lucrările de construcție prevăzute prin proiect, în copie.\nDocumentele de mai sus vor fi însoțite de:"]
["Documente cadastrale şi documente privind înscrierea imobilelor în evidențele de cadastru și carte funciară (extras de carte funciară pentru informare din care să rezulte inscrierea imobilului în cartea funciară, precum și încheierea de carte funciară emisă de OCPI), în termen de valabilitate la data depunerii (emis cu maxim 30 de zile înaintea depunerii proiectului)."]
["DOC. 3.2 Pentru proiectele care propun doar dotare, achizitie de masini si/sau utilaje fara montaj sau al caror montaj nu necesita lucrari de constructii si/sau lucrari de interventii asupra instalatiilor existente (electricitate, apa, canalizare, gaze, ventilatie, etc.), se vor prezenta înscrisuri valabile pentru o perioadă de cel putin 10 ani începând cu anul depunerii cererii de finanţare care să certifice, după caz:\na) dreptul de proprietate privată,\nb) dreptul de concesiune,\nc) dreptul de superficie,\nd) dreptul de uzufruct;\ne) dreptul de folosinţă cu titlu gratuit;\nf) împrumutul de folosință (comodat)\ng) dreptul de închiriere/locațiune\nDe ex.: contract de cesiune, contract de concesiune, contract de locațiune/închiriere, contract de comodat.\n“Înscrisurile menționate la punctul 3.2 se vor depune respectand una dintre cele 2 conditii (situatii) de mai jos:\nA. vor fi însoțite de:\n-Documente cadastrale şi documente privind înscrierea imobilelor în evidențele de cadastru și carte funciară (extras de carte funciară pentru informare din care să rezulte înscrierea dreptului în cartea funciară, precum și încheierea de carte funciară emisă de OCPI), în termen de valabilitate la data depunerii (emis cu maxim 30 de zile înaintea depunerii proiectului)\nSAU\nB. vor fi încheiate în formă autentică de către un notar public sau emise de o autoritate publică sau dobândite printr-o hotărâre judecătorească."]
["În situaţia în care imobilul pe care se execută investiţia nu este liber de sarcini (ipotecat pentru un credit) se va depune acordul creditorului privind execuţia investiţiei şi graficul de rambursare a creditului."]
["DOC. 4. Extras din Registrul agricol – în copie cu ştampila primăriei şi menţiunea \"Conform cu originalul\" pentru dovedirea calităţii de membru al gospodăriei agricole."]
["DOC. 5. Copia actului de identitate pentru reprezentantul legal de proiect (asociat unic/asociat majoritar/administrator/PFA, titular II, membru IF)."]
["DOC. 6. Documente care atestă forma de organizare a solicitantului."]
["DOC. 6.1 Hotărâre judecătorească definitivă pronunţată pe baza actului de constituire și a statutului propriu în cazul Societăţilor agricole, însoțită de Statutul Societății agricole;"]
["DOC. 6.2 Act constitutiv pentru Societatea cooperativă agricolă."]
["DOC. 7.1 Certificat de cazier judiciar al solicitantului- persoană juridică"]
["DOC. 7.2 Certificat de cazier judiciar al reprezentantului legal-persoană fizică"]
["DOC. 8.1 Certificat de atestare fiscală pentru întreprindere"]
["DOC. 8.2 Certificat de atestare fiscală pentru reprezentantul legal;\nCertificatele vor fi emise de către Direcţia Generală a Finanţelor Publice şi de primăriile de pe raza cărora îşi au sediul social şi punctele de lucru (numai în cazul în care solicitantul este proprietar asupra imobilelor) şi, dacă este cazul, graficul de reeşalonare a datoriilor către bugetul consolidat."]
["DOC. 9. Document emis de AJPM, în conformitate cu Protocolul AFIRANPM-GNM."]
["DOC. 10. Declaraţie privind încadrarea întreprinderii în categoria întreprinderilor mici şi mijlocii (Conform Anexa model AFIR)"]
["DOC. 11. Declaraţie pe propria răspundere a solicitantului privind respectarea regulii de cumul a ajutoarelor de minimis (Conform Anexa model AFIR)"]
["DOC. 12. Documente care dovedesc capacitatea şi sursa de co-finanţare a investiţiei emise de o instituţie financiară în original (extras de cont şi/ sau contract de credit)."]
["DOC. 13. Adresă emisă de instituţia financiară (bancă/trezorerie) cu datele de identificare ale băncii şi ale contului aferent proiectului FEADR (denumirea, adresa băncii, codul IBAN al contului în care se derulează operaţiunile cu AFIR). Nu este obligatorie deschiderea unui cont separat pentru derularea proiectului."]
["DOC. 14. Certificat de urbanism pentru investitia propusă prin proiect/Autorizaţie de construire pentru proiecte care prevăd construcţii, însoţit, dacă este cazul, de actul de transfer a dreptului şi obligaţiilor ce decurg din Certificatul de urbanism şi o copie a adresei de înştiinţare."]
["DOC. 15. Aviz specific privind amplasamentul şi funcţionarea obiectivului eliberat de ANT pentru construcţia/modernizarea sau extinderea structurilor de primire turistice cu funcțiuni de cazare sau restaurante clasificate conform Ordinului 65/2013 si in conformitate cu Ordonanţa de Urgenţă nr. 142 din 28 octombrie 2008, cu modificările şi completările ulterioare."]
["DOC. 16. Certificat de clasificare eliberat de ANT pentru structura de primire turistică cu funcțiuni de cazare sau restaurante clasificate conform Ordinului 65/2013 si in conformitate cu Ordonanţa de Urgenţă nr. 142 din 28 octombrie 2008 (în cazul modernizării/extinderii), cu modificările şi completările ulterioare."]
["DOC. 17. Declaraţie pe propria răspundere a solicitantului cu privire la neîncadrarea în categoria \"firma în dificultate\", semnată de persoana autorizată să reprezinte intreprinderea, conform legii \". Declaraţia va fi dată de toţi solicitanţii cu excepţia PFA-urilor, intreprinderilor individuale, intreprinderilor familiale şi a societăţilor cu mai puţin de 2 ani fiscali."]
["DOC. 18. Declaraţie pe propria răspundere a solicitantului ca nu a beneficiat de servicii de consiliere prin M-02 (Conform Anexa model AFIR)"]
["DOC. 19. Declaratie expert contabil din care sa reiasa că solicitantul in anul precedent depunerii cererii de finanare a obtinut venituri din exploatare iar veniturile din activitățile agricole reprezintă cel puțin 50% din total venituri din exploatare ale solicitantului."]
["DOC. 20. Document emis de DSP județeană conform tipurilor de documente mentionate în protocolul de colaborare dintre AFIR și Ministerul Sănătății"]
["DOC. 21. Document emis de DSVSA, conform Protocolului de colaborare dintre AFIR şi ANSVSA publicat pe pagina de internet www.afir.info"]
["DOC. 22. Certificat de cazier fiscal al solicitantului"]
["DOC. 23. Declaratie pe propria raspundere, model propriu GAL"]
["DOC. 24. Certificat constatator ONRC"]
["DOC. 25. Alte documente (după caz)"]
[]
[]
[]
[]
[]
["F. DECLARAŢIE PE PROPRIA RĂSPUNDERE A SOLICITANTULUI"]
["(nebifarea unei căsuțe din partea F a cererii de finanțare, dacă proiectul impune, constituie eroare de fond, situație în care proiectul este declarat neeligibil)"]
["Prin această declaraţie solicitantul"]
[]
["care solicită asistență financiară nerambursabilă prin programul FEADR pentru proiectul intitulat"]
[]
["prin reprezentant legal"]
[]
["cunoscând prevederile legii penale cu privire la falsul în declarații:"]
["1. Declar că proiectul propus asistenței financiare nerambursabile FEADR nu beneficiază de altă finanțare din\nprograme de finanțare nerambursabilă."]
["De asemenea mă angajez ca în cazul în care proiectul va fi selectat pentru finanțare FEADR, nu voi depune acest\nproiect la nici un alt program de finanțare nerambursabilă la care proiectul poate fi în întregime sau parțial eligibil\npentru asistență."]
["2. Declar pe propria răspundere că îndeplinesc condiţiile minime de acordare a sprijinului prevăzute în fişa măsurii şi ghidul solicitantului şi mă angajez să le respect pe perioada de valabilitate a contractului de finanţare şi monitorizare a proiectului, inclusiv criteriile de selecţie pentru care am fost punctat."]
["3. Declar pe propria răspundere că toate informaţiile din prezenta cerere de finanţare şi din documentele anexate sunt corecte şi mă angajez să respect condiţiile cerute în reglementările referitoare la prezentul program şi pe cele legate de Studiul de fezabilitate şi să furnizez periodic, la cerere, documente justificative necesare."]
["4. Declar pe propria răspundere că orice modificări aduse dreptului de proprietate sau de folosinţă vor fi notificate AFIR în termen de trei zile de la data incheierii lor. De asemenea, mă angajez, ca pe perioada de valabilitate a contractului de finanţare şi monitorizare a proiectului să nu diminuez suprafaţa şi/sau infrastructura cuprinsă în proiect."]
["5. Declar că eu și organizația mea (asociație sau intreprindere) nu suntem într-unul din următoarele cazuri:"]
[null,null,null,"Acuzat din cauza unei greșeli privind conduita profesională având ca soluție finală res judicata (împotriva căreia nici un apel nu este posibil)"]
[null,null,null,"Vinovat de grave deficiențe de conduită profesională dovedite prin orice mijloace pe care Agenția le poate justifica."]
[null,null,null,"Vinovat de faptul că nu am prezentat informaţiile cerute de Autoritatea Contractantă ca o condiţie de participare la licitaţie sau contractare"]
[null,null,null,"Încălcarea prevederilor contractuale prin care nu mi-am îndeplinit obligațiile contractuale în legătură cu un alt contract cu Agenția sau alte contracte finanțate din fonduri comunitare."]
[null,null,null,"Încercarea de a obține informații confidențiale sau de influențare a Agenției în timpul procesului de evaluare a proiectului și nu voi face presiuni la adresa evaluatorului."]
["6.",null,null,null,null,"Declar că organizaţia pe care o reprezint ARE datorii către instituţii de credit şi/sau institutii financiare bancare/nebancare pentru care prezint graficul de rambursare."]
["7.",null,null,null,null,"Declar că organizația pe care o reprezint NU are datorii către instituții de credit şi/sau instituții financiare\nnebancare."]
["8.",null,null,null,null,"Declar pe propria răspundere că:"]
[null,null,null,null,null,"Nu sunt înregistrat în scopuri TVA și că mă angajez să notific Agenției orice modificare a situatiei privind înregistrarea ca plătitor de TVA, în maximum 10 (zece) zile de la data înregistrării în scopuri TVA."]
[null,null,null,null,null,"Sunt înregistrat în scopuri de TVA (certificat de înregistrare fiscală în scopuri de TVA)."]
["9.1",null,null,null,null,"Declar pe propria răspundere că nu am înscrieri care privesc sancțiuni economico-financiare în cazierul\njudiciar pe care mă oblig să îl depun la încheierea contractului de finanțare."]
["9.2",null,null,null,null,"Declar pe propria răspundere că reprezentantul legal nu are înscrieri privind sancţiuni economico-financiare în certificatul de cazier judiciar - persoană fizică, pe care mă oblig să-l depun la încheierea contractului de finanțare"]
["10.",null,null,null,null,"Declar pe propria răspundere că nu am fapte înscrise în cazierul fiscal pe care mă oblig să îl depun la încheierea contractului de finanţare."]
["11.",null,null,null,null,"Declar pe propria răspundere că voi deschide punct de lucru în spaţiul rural, cu codul CAEN al activităţii pentru care solicită finanţare, când voi îndeplini condiţiile, conform legislaţiei în vigoare (pentru investiţii noi, dacă este cazul)."]
["12.",null,null,null,null,"Mă angajez că la momentul finalizării agro-pensiunii, aceasta va fi introdusă în circuitul turistic (în cazul proiectelor care prevăd agropensiuni)."]
["13.",null,null,null,null,"Declar pe proprie răspundere că investiţia finanţată va deservi exclusiv interesele economice ale acestuia (beneficiarului proiectului) în scopul obţinerii de profit propriu."]
["14.",null,null,null,null,"Declar pe propria răspundere că nivelul de confort şi calitatea serviciilor propuse prin proiect vor atinge standardul de calitate de minimum o margaretă (în cazul proiectelor care prevăd agropensiuni)."]
["15.",null,null,null,null,"Declaraţie pe propria raspundere că modernizarea structurii de primire turistica va presupune in mod obligatoriu cresterea nivelului de confort cu cel putin o margareta (în cazul proiectelor care prevăd agropensiuni)"]
["16.",null,null,null,null,"Declar pe propria răspundere că toate cheltuielile neeligibile vor fi suportate de solicitant şi că acestea vor fi realizate până la finalizarea proiectului."]
["17.",null,null,null,null,"Declar pe propria răspundere că dosarul cererii de finanţare în original, va fi identic cu dosarul cererii de\nfinanţare depus on-line. În caz contrar, proiectul nu va fi contractat."]
["18.",null,null,null,null,"Ma angajez ca in termenul prevazut in “Notificarea beneficiarului privind selectarea cererii de finanatare si semnarea contractului de finantare” sa prezint documentul privind cofinantarea proiectului si Angajamentul responsabilului legal al proiectului ca nu va utiliza in alte scopuri 50% din cofinantarea privata, in cazul prezentarii cofinantarii prin extras de cont. De asemenea, daca va fi cazul, dupa primirea “Notificarii  beneficiarului privind selectarea cererii de finanțare și semnarea contractului de finanțare “, ma angajez sa obtin si sa depun la contractare documentul ce atesta impactul investitiei asupra mediului, emis de ANPM."]
["19.",null,null,null,null,"Declar pe propria răspundere că în cazul în care nu respect oricare din punctele prevăzute în această declaraţie, proiectul să devină neeligibil în baza criteriului \"Eligibilitatea solicitantului\" sau contractul să fie reziliat."]
["20.",null,null,null,null,"Declar pe propria răspundere ca nu sunt în insolventă sau incapacitate de plată."]
["21.",null,null,null,null,"Accept publicarea pe site-ul AFIR a datelor mele, cu respectarea legislaţiei naţionale şi europene privind transparenţa."]
["22.",null,null,null,null,"Sunt de acord ca AFIR să consulte și să prelucreze, prin operațiunile prevăzute de legislația în vigoare în vederea desfășurării activității specifice, datele mele cu caracter personal, furnizate AFIR."]
["Semnătura reprezentant legal şi ştampila",null,null,null,null,null,null,null,null,null,null,null,null,null,null,null,null,null,null,null,null,null,null,null,null,null,null,null,null,null,null,null,null,null,null,null,null,null,null,null,null," Data:"]
[]
[]
[]
["Anexa INDICATORI DE MONITORIZARE"]
["Sub-masura 19.2 Sprijin pentru implementarea actiunilor in cadrul strategiei de dezvoltare locala\nM4/6A Investitii in activitati non-agricole"]
[]
["- Locuri de munca create:\n\n- Cheltuiala publica totala:"]
[null,null,null,null,null,null,null,null,null,null,null,null,null,null,null,null,null,null,null,null,null,null,null,null,null,null,null,null,null,null,null,null,null,null,null,null,null,null,null,null,null,null,null,null,null,null,null,null,null,null,"locuri de munca"]
[]
[null,null,null,null,null,null,null,null,null,null,null,null,null,null,null,null,null,null,null,null,null,null,null,null,null,null,null,null,null,null,null,null,null,null,null,null,null,null,null,null,null,null,null,null,null,null,null,null,null,null,"euro"]
[]
["Factori de risc"]
["I1. Valoarea sprijinului public nerambursabil (EURO)",null,null,null,null,null,null,null,null,null,null,null,null,null,null,null,null,null,null,null,null,null,null,null,null,null,null,null,null,null,null,null,null,null,null,null,null,null,null,null,null,null,null,null,null,null,null,null,null,null,null,"Punctaj obţinut"]
["•",null,"proiecte cu valoarea sprijinului nerambursabil între 100.001 → 200.000 euro",null,null,null,null,null,null,null,null,null,null,null,null,null,null,null,null,null,null,null,null,null,null,null,null,null,null,null,null,null,null,null,null,null,null,null,null,null,null,null,null,null,null,null,null,null,null,null,null,3]
["•",null,"proiecte cu valoarea sprijinului nerambursabil între 50.001 → 100.000 euro",null,null,null,null,null,null,null,null,null,null,null,null,null,null,null,null,null,null,null,null,null,null,null,null,null,null,null,null,null,null,null,null,null,null,null,null,null,null,null,null,null,null,null,null,null,null,null,null,2]
["•",null,"proiecte cu valoarea sprijinului nerambursabil între 5.000 → 50.000 euro",null,null,null,null,null,null,null,null,null,null,null,null,null,null,null,null,null,null,null,null,null,null,null,null,null,null,null,null,null,null,null,null,null,null,null,null,null,null,null,null,null,null,null,null,null,null,null,null,1]
[]
["I2. Complexitatea investitiei"]
["•",null,"Modernizări cu construcţie şi/sau montaj",null,null,null,null,null,null,null,null,null,null,null,null,null,null,null,null,null,null,null,null,null,null,null,null,null,null,null,null,null,null,null,null,null,null,null,null,null,null,null,null,null,null,null,null,null,null,null,null,5]
["•",null,"Modernizări prin achiziţie utilaje",null,null,null,null,null,null,null,null,null,null,null,null,null,null,null,null,null,null,null,null,null,null,null,null,null,null,null,null,null,null,null,null,null,null,null,null,null,null,null,null,null,null,null,null,null,null,null,null,4]
["•",null,"Investiție nouă",null,null,null,null,null,null,null,null,null,null,null,null,null,null,null,null,null,null,null,null,null,null,null,null,null,null,null,null,null,null,null,null,null,null,null,null,null,null,null,null,null,null,null,null,null,null,null,null,3]
[]
["I3. Intensitatea sprijinului"]
[null,null,0.9,null,null,null,null,null,null,null,null,null,null,null,null,null,null,null,null,null,null,null,null,null,null,null,null,null,null,null,null,null,null,null,null,null,null,null,null,null,null,null,null,null,null,null,null,null,null,null,null,5]
[null,null,0.7,null,null,null,null,null,null,null,null,null,null,null,null,null,null,null,null,null,null,null,null,null,null,null,null,null,null,null,null,null,null,null,null,null,null,null,null,null,null,null,null,null,null,null,null,null,null,null,null,4]
[]
["I4. Riscul proiectului privind raportul între cheltuielile suportate de solicitant şi Valoarea ajutorului nerambursabil",null,null,null,null,null,null,null,null,null,null,null,null,null,null,null,null,null,null,null,null,null,null,null,null,null,null,null,null,null,null,null,null,null,null,null,null,null,null,null,null,null,null,null,null,null,null,null,null,null,null,"Punctaj obţinut"]
["•",null,">200%",null,null,null,null,null,null,null,null,null,null,null,null,null,null,null,null,null,null,null,null,null,null,null,null,null,null,null,null,null,null,null,null,null,null,null,null,null,null,null,null,null,null,null,null,null,null,null,null,5]
["•",null,"Între 176 și 200%",null,null,null,null,null,null,null,null,null,null,null,null,null,null,null,null,null,null,null,null,null,null,null,null,null,null,null,null,null,null,null,null,null,null,null,null,null,null,null,null,null,null,null,null,null,null,null,null,4]
["•",null,"Între 151 și 175%",null,null,null,null,null,null,null,null,null,null,null,null,null,null,null,null,null,null,null,null,null,null,null,null,null,null,null,null,null,null,null,null,null,null,null,null,null,null,null,null,null,null,null,null,null,null,null,null,3]
["•",null,"Între 121 și 150%",null,null,null,null,null,null,null,null,null,null,null,null,null,null,null,null,null,null,null,null,null,null,null,null,null,null,null,null,null,null,null,null,null,null,null,null,null,null,null,null,null,null,null,null,null,null,null,null,2]
["•",null,"< 120%",null,null,null,null,null,null,null,null,null,null,null,null,null,null,null,null,null,null,null,null,null,null,null,null,null,null,null,null,null,null,null,null,null,null,null,null,null,null,null,null,null,null,null,null,null,null,null,null,1]
[]
["I5. Capacitatea societăţii de a manageria proiectul, experienţa în derularea afacerilor",null,null,null,null,null,null,null,null,null,null,null,null,null,null,null,null,null,null,null,null,null,null,null,null,null,null,null,null,null,null,null,null,null,null,null,null,null,null,null,null,null,null,null,null,null,null,null,null,null,null,"Punctaj obţinut"]
["•",null,"Firmă nouă sau fără activitate",null,null,null,null,null,null,null,null,null,null,null,null,null,null,null,null,null,null,null,null,null,null,null,null,null,null,null,null,null,null,null,null,null,null,null,null,null,null,null,null,null,null,null,null,null,null,null,null,5]
["•",null,"Firmă cu experienţă dar care nu a participat la alt proiect comunitar sau nu a obţinut asistenţă financiară nerambursabilă din partea altui instrument financiar",null,null,null,null,null,null,null,null,null,null,null,null,null,null,null,null,null,null,null,null,null,null,null,null,null,null,null,null,null,null,null,null,null,null,null,null,null,null,null,null,null,null,null,null,null,null,null,null,4]
["•",null,"Firmă cu experienţă care a finalizat un proiect comunitar sau a obţinut din asistenţă financiară nerambursabilă din partea altui instrument financiar",null,null,null,null,null,null,null,null,null,null,null,null,null,null,null,null,null,null,null,null,null,null,null,null,null,null,null,null,null,null,null,null,null,null,null,null,null,null,null,null,null,null,null,null,null,null,null,null,3]
["TOTAL"]
[]
["Pentru selectarea cererilor de finanţare ce vor fi verificate se va determina riscul fiecărui proiect folosind un număr de 5 factori de risc (I1, I2, I3, I4, I5). Pentru fiecare proiect se va determina punctajul fiecărui factor de risc pe o scară de la 1 la 5."]
[]
[]
["Grilă criterii de selecție - Masura M4/6A Investitii in activitati non-agricole"]
["Nr. crt.",null,null,null,null,"Criterii de selecție",null,null,null,null,null,null,null,null,null,null,null,null,null,null,null,null,null,null,null,null,null,null,null,null,null,null,null,null,null,null,null,null,null,null,null,null,null,null,null,null,null,null,null,null,"Punctaj"]
[1,null,null,null,null,"Solicitantul proiectului este un fermier care a accesat anterior Masura M3/2B si care intentioneaza sa isi diversifice activitatea de baza agricola prin dezvoltarea unei activitati neagricole in zona rurala"]
[null,null,null,null,null,"Criteriul se va puncta incepand cu urmatoarele sesiuni. Nu se puncteaza in prezenta sesiune, avand in vedere ca masura M3/2B urmeaza sa fie lansata in viitor.",null,null,null,null,null,null,null,null,null,null,null,null,null,null,null,null,null,null,null,null,null,null,null,null,null,null,null,null,null,null,null,null,null,null,null,null,null,null,null,null,null,null,null,null,"-"]
[2,null,null,null,null,"Prin proiect se creeaza cel putin 1 loc de munca/50.000 euro investiti.\n*Se vor puncta locurile de munca care includ contracte cu norma intreaga, incheiate pe o perioada de minim 1 an."]
[null,null,null,null,null,"Daca valoarea ajutorului nerambursabil/ numar locuri de munca nou create <= 50.000 Euro, proiectul primeste punctaj (35 puncte).\n\nDaca valoarea ajutorului nerambursabil/ numar locuri de munca nou create > 50.000 Euro, proiectul nu primeste punctaj (0 ouncte)."]
[3,null,null,null,null,"Proiectul contribuie la promovarea identitatii locale, a traditiilor si obiceiurilor specifice zonei "]
[null,null,null,null,null,"Se acorda punctaj (25 puncte) daca proiectul contribuie la promovarea identitatii locale, a traditiilor si obiceiurilor specifice zonei GAL CETATEA TAMASIDAVA (de exemplu: prin proiect se obtin produse non-agricole traditionale etc).\n\nSe vor prezenta in SF/DALI/MJ informatii detaliate cu privire la modalitatea prin care proiectul contribuie la promovarea identitatii locale, a traditiilor si obiceiurile specifice zonei."]
[4,null,null,null,null,"Solicitantul proiectului se incadreaza in categoria tinerilor (avand varsta sub 40 de ani, la data depunerii proiectului)"]
[null,null,null,null,null,"Aceasta categorie se puncteaza (30 puncte) daca reprezentantul legal de proiect al solicitantului, cu varsta pana la 40 de ani inclusiv la data depunerii cererii de finantare, se incadreaza in una din urmatoarele categorii:\n- titular al unei Persoane fizice autorizate (PFA) infiintate conform OUG nr.44/2008;\n- titular al unei Intreprinderi individuala (II) infiintate in baza OUG nr.44/2008;\n- reprezentant al unei Intreprinderea familiala (IF) infiintate in baza OUG nr.44/2008, reprezentant desemnat prin acordul de constituire si care detine cota majoritara din patrimoniul de afectatiune;\n- asociat al unei Societati cu raspundere limitata  cu mai multi asociati infiintate in baza Legii nr. 31/1990, care exercita controlul efectiv asupra societatii prin detinerea pachetului majoritar al partilor sociale si care detine functia de administrator al societatii respective;\n- asociat si administrator al unei Societati cu raspundere limitata  cu mai multi asociati persoane fizice infiintate in baza Legii nr. 31/1990, in care toti asociatii persoane fizice au varsta pana in 40 ani inclusiv la data depunerii cererii de finantare (se acorda punctaj chiar daca respectivul asociat si administrator al societatii in cauza nu detine pachetul majoritar al partilor sociale);\n- asociat unic si administrator al unei Societati cu raspundere limitata cu asociat unic persoana fizica infiintate in baza Legii nr. 31/1990."]
[5,null,null,null,null,"Solicitantul nu a obtinut anterior sprijin financiar pentru operatiuni similare in ultimii 3 ani."]
[null,null,null,null,null,"Se acorda punctaj (10 puncte) daca solicitantul proiectului nu a obtinut anterior sprijin financiar pentru operatiuni similare in ultimii 3 ani."]
["TOTAL",null,null,null,null,null,null,null,null,null,null,null,null,null,null,null,null,null,null,null,null,null,null,null,null,null,null,null,null,null,null,null,null,null,null,null,null,null,null,null,null,null,null,null,null,null,null,null,null,null,{"$f":"AY804+AY806+AY808+AY810","v":0}]
["Codul unic de inregistrare APIA"]
["In cazul in care nu aveti un cod unic de inregistrare APIA, completati acest formular."]
[]
["FORMULAR"]
[]
["Programului naţional de dezvoltare rurală 2014 - 2020"]
[]
["Denumire solicitant:"]
[]
["Categorie Solicitant:"]
[]
["Sediul / Adresa"]
[]
["Ţara",null,null,null,null,"România",null,null,null,null,null,null,null,null,"Judeţul",null,null,null,null,null,null,null,null,null,null,null,null,null,null,null,null,null,null,"oraşul"]
[]
["comuna",null,null,null,null,null,null,null,null,null,null,null,null,null,null,null,null,null,null,null,null,"satul",null,null,null,null,null,null,null,null,null,null,null,null,null,null,null,null,null,"strada"]
[]
["nr.",null,null,null,null,null,null,null,"bl.",null,null,null,null,null,"et.",null,null,null,null,"ap.",null,null,null,null,null,"sectorul",null,null,null,null,null,null,null,null,null,null,null,null,"codul poştal"]
[]
["Număr de telefon",null,null,null,null,null,null,null,null,null,null,null,null,null,null,null,null,null,null,null,null,null,null,"Fax",null,null,null,null,null,null,null,null,null,null,null,null,null,null,"E-mail"]
[]
["Număr de înregistrare în registrul comerțului/Registrul asociațiilor și fundațiilor"]
[]
["CUI / CIF"]
[]
["Cod CAEN pentru activitatea principală"]
[]
["Cod CAEN pentru activitatea secundară pentru care se solicită înregistrarea în Registrul unic de identificare"]
[]
["Cod IBAN"]
[]
["deschis la Banca"]
[]
["Sucursala / Agenție"]
[]
["Prin reprezentant legal, doamna/domnul"]
[]
["cu CNP",null,null,null,null,null,null,null,null,null,null,null,null,null,null,"solicit înscrierea în Registrul unic de identificare - Agenţia de Plăţi şi Intervenţie pentru Agricultură."]
[]
["Am luat la cunoştinţă că orice modificare a informaţiilor de mai sus trebuie furnizată către APIA în termen de maximum 10 zile\nlucrătoare de la producerea acestora.\nDeclar pe propria răspundere că cele de mai sus sunt conforme cu realitatea.\nSunt de acord ca datele din cerere să fie introduse în baza de date a Sistemului Integrat de Administrare şi Control, procesate şi\nverificate în vederea înscrierii în Registrul unic de identificare şi transmise autorităţilor responsabile în vederea elaborării de studii\nstatistice şi de evaluări economice, în condiţiile Legii nr. 677-2001 pentru protecţia persoanelor cu privire la prelucrarea datelor cu\ncaracter personal şi libera circulaţie a acestor date, cu modificarile şi completările ulterioare."]
[]
["Reprezentant legal",null,null,null,null,null,null,null,null,null,null,null,null,null,null,null,null,null,null,null,null,null,null,null,null,null,null,null,null,null,null,null,null,null,null,null,null,null,null,null,null,null,null,"Data:"]
[]
["Numele şi prenumele"]
[]
["Semnătura "]

{"sheet":"Anexa 1","index":1,"n_rows":181,"n_cols":52,"rows_kept":181,"cut":false,"hidden":false,"merged":[[83,42,83,50],[83,51,83,60],[84,0,84,41],[84,42,84,60],[81,42,81,50],[81,51,81,60],[82,0,82,3],[82,4,82,41],[82,42,82,50],[82,51,82,60],[83,0,83,3],[83,4,83,41],[81,0,81,3],[81,4,81,41],[79,0,79,3],[79,4,79,41],[79,42,79,50],[79,51,79,60],[80,0,80,3],[80,4,80,41],[80,42,80,50],[80,51,80,60],[77,0,77,3],[77,4,77,41],[77,42,77,50],[77,51,77,60],[78,0,78,3],[78,4,78,41],[78,42,78,50],[78,51,78,60],[75,42,75,50],[75,51,75,60],[76,0,76,3],[76,4,76,41],[76,42,76,50],[76,51,76,60],[65,4,65,41],[65,42,65,50],[65,51,65,60],[66,6,66,41],[67,6,67,41],[68,0,68,3],[68,6,68,41],[68,42,68,50],[68,51,68,60],[74,42,74,50],[74,51,74,60],[74,0,74,3],[74,4,74,41],[75,0,75,3],[75,4,75,41],[72,0,72,3],[72,4,72,41],[72,42,72,50],[53,42,53,50],[53,51,53,60],[54,0,54,3],[54,4,54,41],[55,0,55,3],[55,4,55,41],[43,7,43,41],[44,7,44,41],[44,42,45,60],[46,42,46,50],[46,51,46,60],[47,7,47,60],[48,0,48,60],[54,42,54,50],[54,51,54,60],[55,42,55,50],[55,51,55,60],[50,0,50,60],[53,0,53,3],[53,4,53,41],[49,0,49,60],[51,0,51,3],[51,4,51,41],[45,7,45,41],[72,51,72,60],[73,42,73,50],[73,51,73,60],[73,0,73,3],[73,4,73,41],[70,0,70,3],[70,42,70,50],[70,51,70,60],[71,0,71,3],[71,42,71,50],[71,51,71,60],[70,6,70,41],[71,6,71,41],[67,0,67,3],[67,42,67,50],[67,51,67,60],[69,0,69,3],[69,42,69,50],[69,51,69,60],[69,6,69,41],[64,0,64,3],[64,4,64,41],[64,42,64,50],[64,51,64,60],[66,0,66,3],[66,42,66,50],[66,51,66,60],[65,0,65,3],[62,0,62,3],[62,4,62,41],[62,42,62,50],[62,51,62,60],[63,0,63,3],[63,4,63,41],[63,42,63,50],[63,51,63,60],[60,0,60,3],[60,4,60,41],[60,42,60,50],[60,51,60,60],[61,0,61,3],[61,4,61,41],[61,42,61,50],[61,51,61,60],[58,0,58,3],[58,4,58,41],[58,42,58,50],[58,51,58,60],[59,0,59,3],[59,4,59,41],[59,42,59,50],[59,51,59,60],[56,0,56,3],[56,4,56,41],[56,42,56,50],[56,51,56,60],[57,0,57,3],[57,4,57,41],[57,42,57,50],[57,51,57,60],[46,7,46,41],[40,0,40,3],[40,4,40,41],[40,42,40,50],[40,51,40,60],[41,0,41,41],[41,42,41,60],[38,0,38,3],[38,4,38,41],[38,42,38,50],[38,51,38,60],[39,0,39,3],[39,4,39,41],[39,42,39,50],[39,51,39,60],[36,0,36,3],[36,4,36,41],[36,42,36,50],[36,51,36,60],[37,0,37,3],[37,4,37,41],[37,42,37,50],[37,51,37,60],[34,0,34,3],[34,4,34,41],[34,42,34,50],[34,51,34,60],[35,0,35,3],[35,4,35,41],[35,42,35,50],[35,51,35,60],[32,0,32,3],[32,4,32,41],[32,42,32,50],[32,51,32,60],[33,0,33,3],[33,4,33,41],[33,42,33,50],[33,51,33,60],[30,0,30,3],[30,4,30,41],[30,42,30,50],[30,51,30,60],[31,0,31,3],[31,4,31,41],[31,42,31,50],[31,51,31,60],[28,0,28,3],[28,6,28,41],[28,42,28,50],[28,51,28,60],[29,0,29,3],[29,4,29,41],[29,42,29,50],[29,51,29,60],[26,0,26,3],[26,6,26,41],[26,42,26,50],[26,51,26,60],[27,0,27,3],[27,6,27,41],[27,42,27,50],[27,51,27,60],[24,0,24,3],[24,6,24,41],[24,42,24,50],[24,51,24,60],[25,0,25,3],[25,6,25,41],[25,42,25,50],[25,51,25,60],[22,0,22,3],[22,4,22,41],[22,42,22,50],[22,51,22,60],[23,0,23,3],[23,6,23,41],[23,42,23,50],[23,51,23,60],[20,0,20,3],[20,4,20,41],[20,42,20,50],[20,51,20,60],[21,0,21,3],[21,4,21,41],[21,42,21,50],[21,51,21,60],[18,0,18,3],[18,4,18,41],[18,42,18,50],[18,51,18,60],[19,0,19,3],[19,4,19,41],[19,42,19,50],[19,51,19,60],[17,0,17,3],[17,4,17,41],[17,42,17,50],[17,51,17,60],[14,0,14,3],[14,4,14,41],[14,42,14,50],[14,51,14,60],[15,0,15,3],[15,4,15,41],[15,42,15,50],[15,51,15,60],[10,0,10,3],[10,4,10,41],[10,42,10,50],[10,51,10,60],[11,0,11,3],[11,4,11,41],[11,42,11,50],[11,51,11,60],[16,0,16,3],[16,4,16,41],[16,42,16,50],[16,51,16,60],[0,7,0,41],[1,7,1,41],[1,42,2,60],[2,7,2,41],[7,0,7,60],[8,0,8,3],[8,4,8,41],[8,42,8,50],[8,51,8,60],[51,42,51,50],[51,51,51,60],[52,0,52,3],[52,4,52,41],[52,42,52,50],[52,51,52,60],[3,7,3,41],[3,42,3,50],[3,51,3,60],[4,7,4,60],[5,0,5,60],[6,0,6,60],[9,0,9,3],[9,4,9,41],[9,42,9,50],[9,51,9,60],[12,0,12,3],[12,4,12,41],[12,42,12,50],[12,51,12,60],[13,0,13,3],[13,4,13,41],[13,42,13,50],[13,51,13,60],[85,7,85,41],[86,7,86,41],[86,42,87,60],[87,7,87,41],[88,7,88,41],[88,42,88,50],[88,51,88,60],[89,7,89,60],[90,0,90,60],[91,0,91,60],[92,0,92,60],[93,0,93,3],[93,4,93,41],[93,42,93,50],[93,51,93,60],[94,0,94,3],[94,4,94,41],[94,42,94,50],[94,51,94,60],[95,0,95,3],[95,4,95,41],[95,42,95,50],[95,51,95,60],[96,0,96,3],[96,4,96,41],[96,42,96,50],[96,51,96,60],[97,0,97,3],[97,4,97,41],[97,42,97,50],[97,51,97,60],[98,0,98,3],[98,4,98,41],[98,42,98,50],[98,51,98,60],[99,0,99,3],[99,4,99,41],[99,42,99,50],[99,51,99,60],[100,0,100,3],[100,4,100,41],[100,42,100,50],[100,51,100,60],[101,0,101,3],[101,4,101,41],[101,42,101,50],[101,51,101,60],[102,0,102,3],[102,4,102,41],[102,42,102,50],[102,51,102,60],[103,0,103,3],[103,4,103,41],[103,42,103,50],[103,51,103,60],[104,0,104,3],[104,4,104,41],[104,42,104,50],[104,51,104,60],[105,0,105,3],[105,4,105,41],[105,42,105,50],[105,51,105,60],[106,0,106,3],[106,4,106,41],[106,42,106,50],[106,51,106,60],[107,0,107,3],[107,4,107,41],[107,42,107,50],[107,51,107,60],[108,0,108,3],[108,42,108,50],[108,51,108,60],[109,0,109,3],[109,42,109,50],[109,51,109,60],[108,4,108,41],[109,4,109,41],[110,0,110,3],[110,42,110,50],[110,51,110,60],[111,0,111,3],[111,42,111,50],[111,51,111,60],[112,0,112,3],[112,42,112,50],[112,51,112,60],[110,4,110,41],[111,4,111,41],[112,4,112,41],[113,0,113,3],[113,42,113,50],[113,51,113,60],[114,0,114,3],[114,4,114,41],[114,42,114,50],[114,51,114,60],[115,0,115,3],[115,4,115,41],[115,42,115,50],[115,51,115,60],[113,4,113,41],[116,0,116,3],[116,4,116,41],[116,42,116,50],[116,51,116,60],[117,0,117,3],[117,4,117,41],[117,42,117,50],[117,51,117,60],[118,0,118,3],[118,4,118,41],[118,42,118,50],[118,51,118,60],[119,0,119,3],[119,4,119,41],[119,42,119,50],[119,51,119,60],[120,0,120,3],[120,4,120,41],[120,42,120,50],[120,51,120,60],[121,0,121,3],[121,4,121,41],[121,42,121,50],[121,51,121,60],[122,0,122,3],[122,4,122,41],[122,42,122,50],[122,51,122,60],[123,0,123,3],[123,4,123,41],[123,42,123,50],[123,51,123,60],[124,0,124,3],[124,4,124,41],[124,42,124,50],[124,51,124,60],[132,0,132,41],[132,42,132,60],[133,7,133,41],[134,7,134,41],[134,42,135,60],[135,7,135,41],[125,0,125,3],[125,4,125,41],[125,42,125,50],[125,51,125,60],[126,0,126,3],[126,4,126,41],[126,42,126,50],[126,51,126,60],[127,0,127,3],[127,4,127,41],[127,42,127,50],[127,51,127,60],[128,0,128,3],[128,4,128,41],[128,42,128,50],[128,51,128,60],[129,0,129,3],[129,4,129,41],[141,0,141,3],[141,4,141,41],[141,42,141,50],[141,51,141,60],[139,0,139,60],[140,0,140,60],[136,42,136,50],[136,51,136,60],[136,7,136,41],[137,7,137,60],[138,0,138,60],[142,0,142,3],[142,4,142,41],[142,42,142,50],[142,51,142,60],[143,0,143,3],[143,4,143,41],[143,42,143,50],[143,51,143,60],[144,0,144,3],[144,4,144,41],[144,42,144,50],[144,51,144,60],[145,0,145,3],[145,4,145,41],[145,42,145,50],[145,51,145,60],[146,0,146,3],[146,4,146,41],[146,42,146,50],[146,51,146,60],[147,0,147,3],[147,4,147,41],[147,42,147,50],[147,51,147,60],[148,0,148,3],[148,4,148,41],[148,42,148,50],[148,51,148,60],[149,0,149,3],[149,4,149,41],[149,42,149,50],[149,51,149,60],[150,0,150,3],[150,42,150,50],[150,51,150,60],[150,4,150,41],[151,0,151,3],[151,42,151,50],[151,51,151,60],[152,0,152,3],[152,42,152,50],[152,51,152,60],[153,0,153,3],[153,42,153,50],[153,51,153,60],[151,4,151,41],[152,4,152,41],[153,4,153,41],[154,0,154,3],[154,42,154,50],[154,51,154,60],[155,0,155,3],[155,42,155,50],[155,51,155,60],[156,0,156,3],[156,4,156,41],[156,42,156,50],[156,51,156,60],[154,4,154,41],[155,4,155,41],[157,0,157,3],[157,4,157,41],[157,42,157,50],[157,51,157,60],[158,0,158,3],[158,4,158,41],[158,42,158,50],[158,51,158,60],[159,0,159,3],[159,4,159,41],[159,42,159,50],[159,51,159,60],[160,0,160,3],[160,4,160,41],[160,42,160,50],[160,51,160,60],[161,0,161,3],[161,4,161,41],[161,42,161,50],[161,51,161,60],[162,0,162,3],[162,4,162,41],[162,42,162,50],[162,51,162,60],[163,0,163,3],[163,4,163,41],[163,42,163,50],[163,51,163,60],[164,0,164,3],[164,4,164,41],[164,42,164,50],[164,51,164,60],[165,0,165,3],[165,4,165,41],[165,42,165,50],[165,51,165,60],[166,0,166,3],[166,4,166,41],[166,42,166,50],[166,51,166,60],[167,0,167,3],[167,4,167,41],[167,42,167,50],[167,51,167,60],[168,0,168,3],[168,4,168,41],[168,42,168,50],[168,51,168,60],[129,42,129,50],[129,51,129,60],[130,0,130,3],[130,4,130,41],[131,0,131,3],[131,4,131,41],[131,42,131,50],[131,51,131,60],[130,42,130,50],[130,51,130,60],[169,0,169,3],[169,4,169,41],[169,42,169,50],[169,51,169,60],[170,0,170,3],[170,4,170,41],[170,42,170,50],[170,51,170,60],[171,0,171,3],[171,4,171,41],[171,42,171,50],[171,51,171,60],[172,0,172,3],[172,4,172,41],[172,42,172,50],[172,51,172,60],[173,0,173,3],[173,4,173,41],[173,42,173,50],[173,51,173,60],[174,0,174,3],[174,4,174,41],[174,42,174,50],[174,51,174,60],[175,0,175,3],[175,4,175,41],[175,42,175,50],[175,51,175,60],[176,0,176,3],[176,4,176,41],[176,42,176,50],[176,51,176,60],[177,0,177,3],[177,4,177,41],[177,42,177,50],[177,51,177,60],[178,0,178,3],[178,4,178,41],[178,42,178,50],[178,51,178,60],[179,0,179,3],[179,4,179,41],[179,42,179,50],[179,51,179,60],[180,0,180,41],[180,42,180,60]]}
[null,null,null,null,null,null,null,"MINISTERUL AGRICULTURII ŞI DEZVOLTĂRII RURALE"]
[null,null,null,null,null,null,null,null,null,null,null,null,null,null,null,null,null,null,null,null,null,null,null,null,null,null,null,null,null,null,null,null,null,null,null,null,null,null,null,null,null,null,"Anexa A1\nHG28/2008"]
[null,null,null,null,null,null,null,"AGENŢIA PENTRU FINANŢAREA INVESTIŢIILOR RURALE"]
[null,null,null,null,null,null,null,null,null,null,null,null,null,null,null,null,null,null,null,null,null,null,null,null,null,null,null,null,null,null,null,null,null,null,null,null,null,null,null,null,null,null,null,null,null,null,null,null,null,null,null,"Nr.2"]
[null,null,null,null,null,null,null,"Deviz financiar- Capitolul 3 - Cheltuieli pentru proiectare şi asistenţa tehnică - EURO"]
[]
[]
["(Titlu deviz)"]
["Nr.crt",null,null,null,"Specificaţie",null,null,null,null,null,null,null,null,null,null,null,null,null,null,null,null,null,null,null,null,null,null,null,null,null,null,null,null,null,null,null,null,null,null,null,null,null,"Valoare eligibilă",null,null,null,null,null,null,null,null,"Valoare\nneeligibilă"]
[1,null,null,null,"Cheltuieli pentru studii de teren (geotehnice, geologice, hidrologice, hidrogeologice, fotogrammetrice, topografice şi de stabilitate a terenului pe care se amplasează obiectivul de investiţie)"]
[2,null,null,null,"Cheltuieli pentru obţinere de avize, acorduri şi autorizaţii - total, din care:",null,null,null,null,null,null,null,null,null,null,null,null,null,null,null,null,null,null,null,null,null,null,null,null,null,null,null,null,null,null,null,null,null,null,null,null,null,{"$f":"SUM(AQ12:AY21)","v":0},null,null,null,null,null,null,null,null,{"$f":"SUM(AZ12:BI21)","v":0}]
[null,null,null,null,"1. obţinerea/prelungirea valabilităţii ceritificatului de urbanism"]
[null,null,null,null,"2. obţinerea/prelungirea valabilităţii autorizaţiei de construire/desfiinţare, obţinere autorizaţii de scoatere din circuitul agricol"]
[null,null,null,null,"3. obţinerea avizelor şi acordurilor pentru racorduri şi branşamente la reţelele publice de apă, canalizare, gaze, termoficare, energie electrică, telefonie etc."]
[null,null,null,null,"4. obţinere aviz sanitar, sanitar-veterinar şi fitosanitar"]
[null,null,null,null,"5. obţinerea certificatului de nomenclatură stradală şi adresa"]
[null,null,null,null,"6. întocmirea documentaţiei, obţinerea numărului Cadastral provizoriu şi înregistrarea terenului în Cartea Funciară"]
[null,null,null,null,"7. obţinerea avizului PSI"]
[null,null,null,null,"8. obţinerea acordului de mediu"]
[null,null,null,null,"9. căi ferate"]
[null,null,null,null,"10. alte avize, acorduri şi autorizaţii solicitate prin lege"]
[3,null,null,null,"3 Proiectare şi inginerie - total, din care:",null,null,null,null,null,null,null,null,null,null,null,null,null,null,null,null,null,null,null,null,null,null,null,null,null,null,null,null,null,null,null,null,null,null,null,null,null,{"$f":"AQ23+AQ30+AQ31+AQ32","v":0},null,null,null,null,null,null,null,null,{"$f":"AZ23+AZ30+AZ31+AZ32","v":0}]
[null,null,null,null,"1. Cheltuieli pentru elaborarea tuturor fazelor de proiectare - total, din care:",null,null,null,null,null,null,null,null,null,null,null,null,null,null,null,null,null,null,null,null,null,null,null,null,null,null,null,null,null,null,null,null,null,null,null,null,null,{"$f":"SUM(AQ24:AY29)","v":0},null,null,null,null,null,null,null,null,{"$f":"SUM(AZ24:BI29)","v":0}]
[null,null,null,null,null,null,"a. studiu de prefezabilitate"]
[null,null,null,null,null,null,"b. studiu de fezabilitate"]
[null,null,null,null,null,null,"c. proiect tehnic"]
[null,null,null,null,null,null,"d. detalii de execuţie"]
[null,null,null,null,null,null,"e. verificarea tehnică a proiectării"]
[null,null,null,null,null,null,"f. elaborarea certificatului de performanţa energetică a clădirii"]
[null,null,null,null,"2. Documentaţii necesare pentru obţinerea acordurilor, avizelor şi autorizaţiilor aferente obiectivului de investitii"]
[null,null,null,null,"3. Cheltuielile pentru expertiza tehnică efectuată pentru construcţii începute şi neterminate sau care urmează a fi modificate prin proiect (modernizări, consolidări etc.)"]
[null,null,null,null,"4. Cheltuielile pentru efectuarea auditului energetic"]
[4,null,null,null,"Organizarea procedurilor de achiziţie"]
[5,null,null,null,"Cheltuieli pentru consultanţă - total, din care:",null,null,null,null,null,null,null,null,null,null,null,null,null,null,null,null,null,null,null,null,null,null,null,null,null,null,null,null,null,null,null,null,null,null,null,null,null,{"$f":"SUM(AQ35:AY36)","v":0},null,null,null,null,null,null,null,null,{"$f":"SUM(AZ35:BI36)","v":0}]
[null,null,null,null,"1. plata serviciilor de consultanţă la elaborarea memoriului justificativ, studiilor de piaţă, de evaluare, la întocmirea cererii de finanţare"]
[null,null,null,null,"2. plata serviciilor de consultanţă în domeniul managementului investiţiei sau administrarea contractului de execuţie"]
[6,null,null,null,"Cheltuieli pentru asistenţa tehnică - total, din care:",null,null,null,null,null,null,null,null,null,null,null,null,null,null,null,null,null,null,null,null,null,null,null,null,null,null,null,null,null,null,null,null,null,null,null,null,null,{"$f":"SUM(AQ38:AY39)","v":0},null,null,null,null,null,null,null,null,{"$f":"SUM(AZ38:BI39)","v":0}]
[null,null,null,null,"1. asistenţa tehnică din partea proiectantului în cazul când aceasta nu intră în tarifarea proiectării"]
[null,null,null,null,"2. plata diriginţilor de şantier desemnaţi de autoritatea contractantă, autorizaţi conform prevederilor legale pentru verificarea execuţiei lucrărilor de construcţii şi instalaţii"]
[null,null,null,null,"Total valoare fără TVA",null,null,null,null,null,null,null,null,null,null,null,null,null,null,null,null,null,null,null,null,null,null,null,null,null,null,null,null,null,null,null,null,null,null,null,null,null,{"$f":"AQ37+AQ34+AQ22+AQ11+AQ10","v":0},null,null,null,null,null,null,null,null,{"$f":"AZ37+AZ34+AZ33+AZ22+AZ11+AZ10","v":0}]
[null,null,null,null,"Valoare TVA (aferentă cheltuielilor eligibile şi neeligibile)"]
["TOTAL DEVIZ FINANCIAR 1 (inclusiv TVA)",null,null,null,null,null,null,null,null,null,null,null,null,null,null,null,null,null,null,null,null,null,null,null,null,null,null,null,null,null,null,null,null,null,null,null,null,null,null,null,null,null,{"$f":"AQ40+AZ40+AQ41+AZ41","v":0}]
[]
[null,null,null,null,null,null,null,"MINISTERUL AGRICULTURII ŞI DEZVOLTĂRII RURALE"]
[null,null,null,null,null,null,null,null,null,null,null,null,null,null,null,null,null,null,null,null,null,null,null,null,null,null,null,null,null,null,null,null,null,null,null,null,null,null,null,null,null,null,"Anexa A1\nHG28/2008"]
[null,null,null,null,null,null,null,"AGENŢIA PENTRU FINANŢAREA INVESTIŢIILOR RURALE"]
[null,null,null,null,null,null,null,null,null,null,null,null,null,null,null,null,null,null,null,null,null,null,null,null,null,null,null,null,null,null,null,null,null,null,null,null,null,null,null,null,null,null,null,null,null,null,null,null,null,null,null,"Nr.3"]
[null,null,null,null,null,null,null,"Deviz financiar- Capitolul 3 - Cheltuieli pentru proiectare şi asistenţa tehnică - EURO"]
[]
[]
["(Titlu deviz)"]
["Nr.crt",null,null,null,"Specificaţie",null,null,null,null,null,null,null,null,null,null,null,null,null,null,null,null,null,null,null,null,null,null,null,null,null,null,null,null,null,null,null,null,null,null,null,null,null,"Valoare eligibilă",null,null,null,null,null,null,null,null,"Valoare\nneeligibilă"]
[1,null,null,null,"Cheltuieli pentru studii de teren (geotehnice, geologice, hidrologice, hidrogeologice, fotogrammetrice, topografice şi de stabilitate a terenului pe care se amplasează obiectivul de investiţie)"]
[2,null,null,null,"Cheltuieli pentru obţinere de avize, acorduri şi autorizaţii - total, din care:",null,null,null,null,null,null,null,null,null,null,null,null,null,null,null,null,null,null,null,null,null,null,null,null,null,null,null,null,null,null,null,null,null,null,null,null,null,{"$f":"SUM(AQ55:AY64)","v":0},null,null,null,null,null,null,null,null,{"$f":"SUM(AZ55:BI64)","v":0}]
[null,null,null,null,"1. obţinerea/prelungirea valabilităţii ceritificatului de urbanism"]
[null,null,null,null,"2. obţinerea/prelungirea valabilităţii autorizaţiei de construire/desfiinţare, obţinere autorizaţii de scoatere din circuitul agricol"]
[null,null,null,null,"3. obţinerea avizelor şi acordurilor pentru racorduri şi branşamente la reţelele publice de apă, canalizare, gaze, termoficare, energie electrică, telefonie etc."]
[null,null,null,null,"4. obţinere aviz sanitar, sanitar-veterinar şi fitosanitar"]
[null,null,null,null,"5. obţinerea certificatului de nomenclatură stradală şi adresa"]
[null,null,null,null,"6. întocmirea documentaţiei, obţinerea numărului Cadastral provizoriu şi înregistrarea terenului în Cartea Funciară"]
[null,null,null,null,"7. obţinerea avizului PSI"]
[null,null,null,null,"8. obţinerea acordului de mediu"]
[null,null,null,null,"9. căi ferate"]
[null,null,null,null,"10. alte avize, acorduri şi autorizaţii solicitate prin lege"]
[3,null,null,null,"3 Proiectare şi inginerie - total, din care:",null,null,null,null,null,null,null,null,null,null,null,null,null,null,null,null,null,null,null,null,null,null,null,null,null,null,null,null,null,null,null,null,null,null,null,null,null,{"$f":"AQ66+AQ73+AQ74+AQ75","v":0},null,null,null,null,null,null,null,null,{"$f":"AZ66+AZ73+AZ74+AZ75","v":0}]
[null,null,null,null,"1. Cheltuieli pentru elaborarea tuturor fazelor de proiectare - total, din care:",null,null,null,null,null,null,null,null,null,null,null,null,null,null,null,null,null,null,null,null,null,null,null,null,null,null,null,null,null,null,null,null,null,null,null,null,null,{"$f":"SUM(AQ67:AY72)","v":0},null,null,null,null,null,null,null,null,{"$f":"SUM(AZ67:BI72)","v":0}]
[null,null,null,null,null,null,"a. studiu de prefezabilitate"]
[null,null,null,null,null,null,"b. studiu de fezabilitate"]
[null,null,null,null,null,null,"c. proiect tehnic"]
[null,null,null,null,null,null,"d. detalii de execuţie"]
[null,null,null,null,null,null,"e. verificarea tehnică a proiectării"]
[null,null,null,null,null,null,"f. elaborarea certificatului de performanţa energetică a clădirii"]
[null,null,null,null,"2. Documentaţii necesare pentru obţinerea acordurilor, avizelor şi autorizaţiilor aferente obiectivului de investitii"]
[null,null,null,null,"3. Cheltuielile pentru expertiza tehnică efectuată pentru construcţii începute şi neterminate sau care urmează a fi modificate prin proiect (modernizări, consolidări etc.)"]
[null,null,null,null,"4. Cheltuielile pentru efectuarea auditului energetic"]
[4,null,null,null,"Organizarea procedurilor de achiziţie"]
[5,null,null,null,"Cheltuieli pentru consultanţă - total, din care:",null,null,null,null,null,null,null,null,null,null,null,null,null,null,null,null,null,null,null,null,null,null,null,null,null,null,null,null,null,null,null,null,null,null,null,null,null,{"$f":"SUM(AQ78:AY79)","v":0},null,null,null,null,null,null,null,null,{"$f":"SUM(AZ78:BI79)","v":0}]
[null,null,null,null,"1. plata serviciilor de consultanţă la elaborarea memoriului justificativ, studiilor de piaţă, de evaluare, la întocmirea cererii de finanţare"]
[null,null,null,null,"2. plata serviciilor de consultanţă în domeniul managementului investiţiei sau administrarea contractului de execuţie"]
[6,null,null,null,"Cheltuieli pentru asistenţa tehnică - total, din care:",null,null,null,null,null,null,null,null,null,null,null,null,null,null,null,null,null,null,null,null,null,null,null,null,null,null,null,null,null,null,null,null,null,null,null,null,null,{"$f":"SUM(AQ81:AY82)","v":0},null,null,null,null,null,null,null,null,{"$f":"SUM(AZ81:BI82)","v":0}]
[null,null,null,null,"1. asistenţa tehnică din partea proiectantului în cazul când aceasta nu intră în tarifarea proiectării"]
[null,null,null,null,"2. plata diriginţilor de şantier desemnaţi de autoritatea contractantă, autorizaţi conform prevederilor legale pentru verificarea execuţiei lucrărilor de construcţii şi instalaţii"]
[null,null,null,null,"Total valoare fără TVA",null,null,null,null,null,null,null,null,null,null,null,null,null,null,null,null,null,null,null,null,null,null,null,null,null,null,null,null,null,null,null,null,null,null,null,null,null,{"$f":"AQ80+AQ77+AQ65+AQ54+AQ53","v":0},null,null,null,null,null,null,null,null,{"$f":"AZ80+AZ77+AZ76+AZ65+AZ54+AZ53","v":0}]
[null,null,null,null,"Valoare TVA (aferentă cheltuielilor eligibile şi neeligibile)"]
["TOTAL DEVIZ FINANCIAR 1 (inclusiv TVA)",null,null,null,null,null,null,null,null,null,null,null,null,null,null,null,null,null,null,null,null,null,null,null,null,null,null,null,null,null,null,null,null,null,null,null,null,null,null,null,null,null,{"$f":"AQ83+AZ83+AQ84+AZ84","v":0}]
[null,null,null,null,null,null,null,"MINISTERUL AGRICULTURII ŞI DEZVOLTĂRII RURALE"]
[null,null,null,null,null,null,null,null,null,null,null,null,null,null,null,null,null,null,null,null,null,null,null,null,null,null,null,null,null,null,null,null,null,null,null,null,null,null,null,null,null,null,"Anexa A1\nHG 907/2016"]
[null,null,null,null,null,null,null,"AGENŢIA PENTRU FINANŢAREA INVESTIŢIILOR RURALE"]
[null,null,null,null,null,null,null,null,null,null,null,null,null,null,null,null,null,null,null,null,null,null,null,null,null,null,null,null,null,null,null,null,null,null,null,null,null,null,null,null,null,null,"…………..2017",null,null,null,null,null,null,null,null,"Nr.2"]
[null,null,null,null,null,null,null,"Deviz financiar- Capitolul 3 - Cheltuieli pentru proiectare şi asistenţa tehnică - EURO"]
[]
[]
["(Titlu deviz)"]
["Nr.crt",null,null,null,"Specificaţie",null,null,null,null,null,null,null,null,null,null,null,null,null,null,null,null,null,null,null,null,null,null,null,null,null,null,null,null,null,null,null,null,null,null,null,null,null,"Valoare eligibilă",null,null,null,null,null,null,null,null,"Valoare\nneeligibilă"]
["3.1",null,null,null,"Cheltuieli pentru studii - total din care:",null,null,null,null,null,null,null,null,null,null,null,null,null,null,null,null,null,null,null,null,null,null,null,null,null,null,null,null,null,null,null,null,null,null,null,null,null,{"$f":"SUM(AQ96:AY98)","v":0},null,null,null,null,null,null,null,null,{"$f":"SUM(AZ96:BI98)","v":0}]
[null,null,null,null,"3.1.1 Studii de teren: geotehnice, geologice, hidrologice, hidrogeotehnice, fotogrammetrice, topografice şi de stabilitate ale terenului pe care se amplasează obiectivul de investiţie"]
[null,null,null,null,"3.1.2 Raport privind impactul asupra mediului"]
[null,null,null,null,"3.1.3 Studii de specialitate necesare în funcție de specificul investiției"]
["3.2",null,null,null,"Documentaţii-suport şi cheltuieli pentru obţinerea de avize, acorduri şi autorizaţii",null,null,null,null,null,null,null,null,null,null,null,null,null,null,null,null,null,null,null,null,null,null,null,null,null,null,null,null,null,null,null,null,null,null,null,null,null,{"$f":"SUM(AQ100:AY108)","v":0},null,null,null,null,null,null,null,null,{"$f":"SUM(AZ100:BI108)","v":0}]
[null,null,null,null,"1. obţinerea/prelungirea valabilităţii ceritificatului de urbanism"]
[null,null,null,null,"2. obţinerea/prelungirea valabilităţii autorizaţiei de construire/desfiinţare"]
[null,null,null,null,"3. obţinerea avizelor şi acordurilor pentru racorduri şi branşamente la reţelele publice de alimentare cu apă, canalizare, alimentare cu gaze, alimentare cu agent termic, energie electrică, telefonie"]
[null,null,null,null,"4. obţinerea certificatului de nomenclatură stradală şi adresa"]
[null,null,null,null,"5. întocmirea documentaţiei, obţinerea numărului cadastral provizoriu şi înregistrarea terenului în cartea funciară"]
[null,null,null,null,"6. obținerea actului administrativ al autorității competente pentru protecția mediului"]
[null,null,null,null,"7. obţinerea avizului de protecție civilă"]
[null,null,null,null,"8. avizul de specialitate în cazul obiectivelor de patrimoniu"]
[null,null,null,null,"9. alte avize, acorduri şi autorizaţii"]
["3.3",null,null,null,"Cheltuieli pentru expertizarea tehnică a construcţiilor existente, a structurilor şi/sau, după caz, a proiectelor tehnice, inclusiv întocmirea de către expertul tehnic a raportului de expertiză tehnică"]
["3.4",null,null,null,"Cheltuieli pentru certificarea performanţei energetice şi auditul energetic al\nclădirilor"]
["3.5",null,null,null,"Cheltuieli pentru proiectare",null,null,null,null,null,null,null,null,null,null,null,null,null,null,null,null,null,null,null,null,null,null,null,null,null,null,null,null,null,null,null,null,null,null,null,null,null,{"$f":"SUM(AQ112:AY117)","v":0},null,null,null,null,null,null,null,null,{"$f":"SUM(AZ112:BI117)","v":0}]
[null,null,null,null,"3.5.1 Temă de proiectare"]
[null,null,null,null,"3.5.2 Studiu de prefezabilitate"]
[null,null,null,null,"3.5.3. Studiu de prefezabilitate/documentație de avizare a lucrărilor de intervenții și deviz general"]
[null,null,null,null,"3.5.4. Documentațiile tehnice necesare în vederea obținerii avizelor/ acordurilor/ autorizațiilor"]
[null,null,null,null,"3.5.5. Verificarea tehnică de calitate a proiectului tehnic și a detaliilor de execuție"]
[null,null,null,null,"3.5.6. Proiect tehnic și detalii de execuție"]
["3.6",null,null,null,"Cheltuieli aferente organizării şi derulării procedurilor de achiziţii publice",null,null,null,null,null,null,null,null,null,null,null,null,null,null,null,null,null,null,null,null,null,null,null,null,null,null,null,null,null,null,null,null,null,null,null,null,null,null,null,null,null,null,null,null,null,null,{"$f":"SUM(AZ119:BI122)","v":0}]
[null,null,null,null,"1. Cheltuieli aferente întocmirii documentaţiei de atribuire şi multiplicării acesteia (exclusiv cele cumpărate de ofertanţi)"]
[null,null,null,null,"2. Cheltuieli cu onorariile, transportul, cazarea şi diurna membrilor desemnaţi în comisiile de evaluare"]
[null,null,null,null,"3. Anunţuri de intenţie, de participare şi de atribuire a contractelor, corespondenţă prin poştă, fax, poştă electronică în legătură cu procedurile de achiziţie publică"]
[null,null,null,null,"4. Cheltuieli aferente organizării şi derulării procedurilor de achiziţii publice"]
["3.7",null,null,null,"Cheltuieli pentru consultanţă",null,null,null,null,null,null,null,null,null,null,null,null,null,null,null,null,null,null,null,null,null,null,null,null,null,null,null,null,null,null,null,null,null,null,null,null,null,{"$f":"SUM(AQ124:AY125)","v":0},null,null,null,null,null,null,null,null,{"$f":"SUM(AZ124:BI125)","v":0}]
[null,null,null,null,"3.7.1 Managementul de proiect pentru obiectivul de investiţii"]
[null,null,null,null,"3.7.2 Auditul financiar"]
["3.8",null,null,null,"Cheltuieli pentru asistenţa tehnică",null,null,null,null,null,null,null,null,null,null,null,null,null,null,null,null,null,null,null,null,null,null,null,null,null,null,null,null,null,null,null,null,null,null,null,null,null,{"$f":"AQ127+AQ130","v":0},null,null,null,null,null,null,null,null,{"$f":"AZ127+AZ130","v":0}]
[null,null,null,null,"3.8.1. Asistenţă tehnică din partea proiectantului",null,null,null,null,null,null,null,null,null,null,null,null,null,null,null,null,null,null,null,null,null,null,null,null,null,null,null,null,null,null,null,null,null,null,null,null,null,{"$f":"SUM(AQ128:AY129)","v":0},null,null,null,null,null,null,null,null,{"$f":"SUM(AZ128:BI129)","v":0}]
[null,null,null,null,"1.1. pe perioada de execuţie a lucrărilor"]
[null,null,null,null,"1.2. pentru participarea proiectantului la fazele incluse în programul de control al lucrărilor de execuţie, avizat de către Inspectoratul de Stat în Construcţii"]
[null,null,null,null,"3.8.2 Dirigenţie de şantier, asigurată de personal tehnic de specialitate, autorizat"]
[null,null,null,null,"Total valoare fără TVA",null,null,null,null,null,null,null,null,null,null,null,null,null,null,null,null,null,null,null,null,null,null,null,null,null,null,null,null,null,null,null,null,null,null,null,null,null,{"$f":"AQ95+AQ99+AQ109+AQ110+AQ111+AQ118+AQ123+AQ126","v":0},null,null,null,null,null,null,null,null,{"$f":"AZ95+AZ99+AZ109+AZ110+AZ111+AZ118+AZ123+AZ126","v":0}]
[null,null,null,null,"Valoare TVA (aferentă cheltuielilor eligibile şi neeligibile)"]
["TOTAL DEVIZ FINANCIAR 1 (inclusiv TVA)",null,null,null,null,null,null,null,null,null,null,null,null,null,null,null,null,null,null,null,null,null,null,null,null,null,null,null,null,null,null,null,null,null,null,null,null,null,null,null,null,null,{"$f":"AQ131+AZ131+AQ132+AZ132","v":0}]
[null,null,null,null,null,null,null,"MINISTERUL AGRICULTURII ŞI DEZVOLTĂRII RURALE"]
[null,null,null,null,null,null,null,null,null,null,null,null,null,null,null,null,null,null,null,null,null,null,null,null,null,null,null,null,null,null,null,null,null,null,null,null,null,null,null,null,null,null,"Anexa A1\nHG 907/2016"]
[null,null,null,null,null,null,null,"AGENŢIA PENTRU FINANŢAREA INVESTIŢIILOR RURALE"]
[null,null,null,null,null,null,null,null,null,null,null,null,null,null,null,null,null,null,null,null,null,null,null,null,null,null,null,null,null,null,null,null,null,null,null,null,null,null,null,null,null,null,"…………..2017",null,null,null,null,null,null,null,null,"Nr.3"]
[null,null,null,null,null,null,null,"Deviz financiar- Capitolul 3 - Cheltuieli pentru proiectare şi asistenţa tehnică - EURO"]
[]
[]
["(Titlu deviz)"]
["Nr.crt",null,null,null,"Specificaţie",null,null,null,null,null,null,null,null,null,null,null,null,null,null,null,null,null,null,null,null,null,null,null,null,null,null,null,null,null,null,null,null,null,null,null,null,null,"Valoare eligibilă",null,null,null,null,null,null,null,null,"Valoare\nneeligibilă"]
["3.1",null,null,null,"Cheltuieli pentru studii - total din care:",null,null,null,null,null,null,null,null,null,null,null,null,null,null,null,null,null,null,null,null,null,null,null,null,null,null,null,null,null,null,null,null,null,null,null,null,null,{"$f":"SUM(AQ144:AY146)","v":0},null,null,null,null,null,null,null,null,{"$f":"SUM(AZ144:BI146)","v":0}]
[null,null,null,null,"3.1.1 Studii de teren: geotehnice, geologice, hidrologice, hidrogeotehnice, fotogrammetrice, topografice şi de stabilitate ale terenului pe care se amplasează obiectivul de investiţie"]
[null,null,null,null,"3.1.2 Raport privind impactul asupra mediului"]
[null,null,null,null,"3.1.3 Studii de specialitate necesare în funcție de specificul investiției"]
["3.2",null,null,null,"Documentaţii-suport şi cheltuieli pentru obţinerea de avize, acorduri şi autorizaţii",null,null,null,null,null,null,null,null,null,null,null,null,null,null,null,null,null,null,null,null,null,null,null,null,null,null,null,null,null,null,null,null,null,null,null,null,null,{"$f":"SUM(AQ148:AY156)","v":0},null,null,null,null,null,null,null,null,{"$f":"SUM(AZ148:BI156)","v":0}]
[null,null,null,null,"1. obţinerea/prelungirea valabilităţii ceritificatului de urbanism"]
[null,null,null,null,"2. obţinerea/prelungirea valabilităţii autorizaţiei de construire/desfiinţare"]
[null,null,null,null,"3. obţinerea avizelor şi acordurilor pentru racorduri şi branşamente la reţelele publice de alimentare cu apă, canalizare, alimentare cu gaze, alimentare cu agent termic, energie electrică, telefonie"]
[null,null,null,null,"4. obţinerea certificatului de nomenclatură stradală şi adresa"]
[null,null,null,null,"5. întocmirea documentaţiei, obţinerea numărului cadastral provizoriu şi înregistrarea terenului în cartea funciară"]
[null,null,null,null,"6. obținerea actului administrativ al autorității competente pentru protecția mediului"]
[null,null,null,null,"7. obţinerea avizului de protecție civilă"]
[null,null,null,null,"8. avizul de specialitate în cazul obiectivelor de patrimoniu"]
[null,null,null,null,"9. alte avize, acorduri şi autorizaţii"]
["3.3",null,null,null,"Cheltuieli pentru expertizarea tehnică a construcţiilor existente, a structurilor şi/sau, după caz, a proiectelor tehnice, inclusiv întocmirea de către expertul tehnic a raportului de expertiză tehnică"]
["3.4",null,null,null,"Cheltuieli pentru certificarea performanţei energetice şi auditul energetic al\nclădirilor"]
["3.5",null,null,null,"Cheltuieli pentru proiectare",null,null,null,null,null,null,null,null,null,null,null,null,null,null,null,null,null,null,null,null,null,null,null,null,null,null,null,null,null,null,null,null,null,null,null,null,null,{"$f":"SUM(AQ160:AY165)","v":0},null,null,null,null,null,null,null,null,{"$f":"SUM(AZ160:BI165)","v":0}]
[null,null,null,null,"3.5.1 Temă de proiectare"]
[null,null,null,null,"3.5.2 Studiu de prefezabilitate"]
[null,null,null,null,"3.5.3. Studiu de prefezabilitate/documentație de avizare a lucrărilor de intervenții și deviz general"]
[null,null,null,null,"3.5.4. Documentațiile tehnice necesare în vederea obținerii avizelor/ acordurilor/ autorizațiilor"]
[null,null,null,null,"3.5.5. Verificarea tehnică de calitate a proiectului tehnic și a detaliilor de execuție"]
[null,null,null,null,"3.5.6. Proiect tehnic și detalii de execuție"]
["3.6",null,null,null,"Cheltuieli aferente organizării şi derulării procedurilor de achiziţii publice",null,null,null,null,null,null,null,null,null,null,null,null,null,null,null,null,null,null,null,null,null,null,null,null,null,null,null,null,null,null,null,null,null,null,null,null,null,null,null,null,null,null,null,null,null,null,{"$f":"SUM(AZ167:BI170)","v":0}]
[null,null,null,null,"1. Cheltuieli aferente întocmirii documentaţiei de atribuire şi multiplicării acesteia (exclusiv cele cumpărate de ofertanţi)"]
[null,null,null,null,"2. Cheltuieli cu onorariile, transportul, cazarea şi diurna membrilor desemnaţi în comisiile de evaluare"]
[null,null,null,null,"3. Anunţuri de intenţie, de participare şi de atribuire a contractelor, corespondenţă prin poştă, fax, poştă electronică în legătură cu procedurile de achiziţie publică"]
[null,null,null,null,"4. Cheltuieli aferente organizării şi derulării procedurilor de achiziţii publice"]
["3.7",null,null,null,"Cheltuieli pentru consultanţă",null,null,null,null,null,null,null,null,null,null,null,null,null,null,null,null,null,null,null,null,null,null,null,null,null,null,null,null,null,null,null,null,null,null,null,null,null,{"$f":"SUM(AQ172:AY173)","v":0},null,null,null,null,null,null,null,null,{"$f":"SUM(AZ172:BI173)","v":0}]
[null,null,null,null,"3.7.1 Managementul de proiect pentru obiectivul de investiţii"]
[null,null,null,null,"3.7.2 Auditul financiar"]
["3.8",null,null,null,"Cheltuieli pentru asistenţa tehnică",null,null,null,null,null,null,null,null,null,null,null,null,null,null,null,null,null,null,null,null,null,null,null,null,null,null,null,null,null,null,null,null,null,null,null,null,null,{"$f":"AQ175+AQ178","v":0},null,null,null,null,null,null,null,null,{"$f":"AZ175+AZ178","v":0}]
[null,null,null,null,"3.8.1. Asistenţă tehnică din partea proiectantului",null,null,null,null,null,null,null,null,null,null,null,null,null,null,null,null,null,null,null,null,null,null,null,null,null,null,null,null,null,null,null,null,null,null,null,null,null,{"$f":"SUM(AQ176:AY177)","v":0},null,null,null,null,null,null,null,null,{"$f":"SUM(AZ176:BI177)","v":0}]
[null,null,null,null,"1.1. pe perioada de execuţie a lucrărilor"]
[null,null,null,null,"1.2. pentru participarea proiectantului la fazele incluse în programul de control al lucrărilor de execuţie, avizat de către Inspectoratul de Stat în Construcţii"]
[null,null,null,null,"3.8.2 Dirigenţie de şantier, asigurată de personal tehnic de specialitate, autorizat"]
[null,null,null,null,"Total valoare fără TVA",null,null,null,null,null,null,null,null,null,null,null,null,null,null,null,null,null,null,null,null,null,null,null,null,null,null,null,null,null,null,null,null,null,null,null,null,null,{"$f":"AQ143+AQ147+AQ157+AQ158+AQ159+AQ166+AQ171+AQ174","v":0},null,null,null,null,null,null,null,null,{"$f":"AZ143+AZ147+AZ157+AZ158+AZ159+AZ166+AZ171+AZ174","v":0}]
[null,null,null,null,"Valoare TVA (aferentă cheltuielilor eligibile şi neeligibile)"]
["TOTAL DEVIZ FINANCIAR 1 (inclusiv TVA)",null,null,null,null,null,null,null,null,null,null,null,null,null,null,null,null,null,null,null,null,null,null,null,null,null,null,null,null,null,null,null,null,null,null,null,null,null,null,null,null,null,{"$f":"AQ179+AZ179+AQ180+AZ180","v":0}]

{"sheet":"Anexa 2","index":2,"n_rows":120,"n_cols":52,"rows_kept":120,"cut":false,"hidden":false,"merged":[[52,4,52,41],[52,42,52,50],[52,51,52,60],[53,0,53,3],[53,4,53,41],[53,42,53,50],[53,51,53,60],[48,0,48,3],[48,4,48,41],[48,42,48,50],[48,51,48,60],[49,0,49,3],[49,4,49,41],[49,42,49,50],[49,51,49,60],[50,42,50,50],[50,51,50,60],[50,0,50,3],[50,4,50,41],[51,0,51,60],[52,0,52,3],[46,0,46,3],[46,4,46,41],[46,42,46,50],[46,51,46,60],[47,0,47,3],[47,4,47,41],[47,42,47,50],[47,51,47,60],[44,42,44,50],[44,51,44,60],[45,0,45,3],[45,4,45,41],[45,42,45,50],[45,51,45,60],[44,0,44,3],[44,4,44,41],[42,0,42,3],[42,4,42,41],[42,42,42,50],[42,51,42,60],[43,0,43,3],[43,4,43,41],[43,42,43,50],[43,51,43,60],[31,7,31,41],[32,7,32,41],[32,42,33,60],[33,7,33,41],[34,7,34,41],[34,42,34,50],[34,51,34,60],[41,0,41,41],[41,42,41,50],[39,0,39,3],[39,4,39,41],[39,42,39,60],[37,0,37,60],[38,0,38,60],[35,7,35,60],[36,0,36,60],[61,0,61,41],[61,42,61,60],[59,42,59,50],[59,51,59,60],[60,42,60,50],[60,51,60,60],[59,0,59,41],[60,0,60,41],[57,0,57,3],[57,4,57,41],[57,42,57,50],[57,51,57,60],[58,0,58,3],[58,4,58,41],[58,42,58,50],[58,51,58,60],[54,0,54,60],[56,0,56,3],[56,4,56,41],[56,42,56,50],[56,51,56,60],[55,0,55,3],[55,4,55,41],[55,42,55,50],[55,51,55,60],[29,0,29,41],[29,42,29,50],[29,51,29,60],[30,0,30,41],[30,42,30,60],[27,0,27,3],[27,4,27,41],[27,42,27,50],[27,51,27,60],[28,0,28,41],[28,42,28,50],[28,51,28,60],[25,0,25,3],[25,4,25,41],[25,42,25,50],[25,51,25,60],[26,0,26,3],[26,4,26,41],[26,42,26,50],[26,51,26,60],[22,0,22,3],[22,4,22,41],[22,42,22,50],[22,51,22,60],[23,0,23,60],[24,0,24,3],[24,4,24,41],[24,42,24,50],[24,51,24,60],[19,0,19,3],[19,4,19,41],[19,42,19,50],[19,51,19,60],[20,0,20,60],[21,0,21,3],[21,4,21,41],[21,42,21,50],[21,51,21,60],[17,0,17,3],[17,4,17,41],[17,42,17,50],[17,51,17,60],[18,0,18,3],[18,4,18,41],[18,42,18,50],[18,51,18,60],[15,0,15,3],[15,4,15,41],[15,42,15,50],[15,51,15,60],[16,0,16,3],[16,4,16,41],[16,42,16,50],[16,51,16,60],[14,0,14,3],[14,4,14,41],[14,42,14,50],[14,51,14,60],[11,0,11,3],[11,4,11,41],[11,42,11,50],[11,51,11,60],[12,0,12,3],[12,4,12,41],[12,42,12,50],[12,51,12,60],[4,7,4,60],[5,0,5,60],[6,0,6,60],[7,0,7,60],[8,0,8,3],[8,4,8,41],[8,42,8,60],[13,0,13,3],[13,4,13,41],[13,42,13,50],[13,51,13,60],[72,51,72,60],[73,0,73,3],[73,4,73,41],[73,42,73,50],[73,51,73,60],[70,0,70,3],[70,4,70,41],[41,51,41,60],[0,7,0,41],[1,7,1,41],[1,42,2,60],[2,7,2,41],[3,7,3,41],[3,42,3,50],[3,51,3,60],[40,0,40,41],[40,42,40,50],[40,51,40,60],[9,0,9,41],[9,42,9,50],[9,51,9,60],[10,0,10,41],[10,42,10,50],[10,51,10,60],[81,0,81,3],[81,4,81,41],[81,42,81,50],[81,51,81,60],[80,51,80,60],[82,0,82,60],[78,0,78,3],[78,4,78,41],[78,42,78,50],[78,51,78,60],[79,0,79,60],[80,0,80,3],[80,4,80,41],[80,42,80,50],[83,0,83,3],[83,4,83,41],[83,42,83,50],[83,51,83,60],[84,0,84,3],[84,4,84,41],[84,42,84,50],[84,51,84,60],[85,42,85,50],[85,51,85,60],[85,0,85,3],[85,4,85,41],[100,0,100,41],[100,42,100,50],[100,51,100,60],[101,0,101,41],[101,42,101,50],[101,51,101,60],[86,42,86,50],[86,51,86,60],[93,7,93,41],[94,7,94,41],[86,0,86,3],[86,4,86,41],[87,0,87,3],[87,4,87,41],[87,42,87,50],[87,51,87,60],[88,0,88,41],[88,42,88,50],[88,51,88,60],[89,0,89,41],[89,42,89,50],[89,51,89,60],[90,0,90,41],[90,42,90,60],[102,42,102,50],[102,51,102,60],[103,42,103,50],[103,51,103,60],[104,0,104,3],[104,4,104,41],[104,42,104,50],[104,51,104,60],[102,0,102,3],[102,4,102,41],[103,0,103,3],[103,4,103,41],[110,4,110,41],[110,42,110,50],[110,51,110,60],[108,0,108,60],[105,0,105,3],[105,4,105,41],[105,42,105,50],[105,51,105,60],[106,0,106,3],[106,4,106,41],[106,42,106,50],[106,51,106,60],[107,0,107,3],[107,4,107,41],[107,42,107,50],[107,51,107,60],[109,0,109,3],[109,4,109,41],[109,42,109,50],[109,51,109,60],[110,0,110,3],[119,0,119,41],[119,42,119,60],[114,0,114,3],[114,4,114,41],[114,42,114,50],[114,51,114,60],[115,0,115,3],[115,4,115,41],[115,42,115,50],[115,51,115,60],[116,0,116,3],[116,4,116,41],[116,42,116,50],[116,51,116,60],[117,42,117,50],[117,51,117,60],[118,42,118,50],[118,51,118,60],[117,0,117,41],[118,0,118,41],[112,0,112,3],[112,4,112,41],[112,42,112,50],[112,51,112,60],[111,0,111,60],[113,0,113,3],[113,4,113,41],[113,42,113,50],[113,51,113,60],[68,0,68,60],[69,0,69,60],[70,42,70,60],[71,0,71,41],[72,0,72,41],[77,0,77,3],[77,4,77,41],[77,42,77,50],[77,51,77,60],[74,0,74,3],[74,4,74,41],[74,42,74,50],[74,51,74,60],[75,0,75,3],[75,4,75,41],[75,42,75,50],[75,51,75,60],[76,0,76,3],[76,4,76,41],[76,42,76,50],[76,51,76,60],[71,42,71,50],[71,51,71,60],[72,42,72,50],[62,7,62,41],[63,7,63,41],[63,42,64,60],[64,7,64,41],[65,7,65,41],[65,42,65,50],[65,51,65,60],[66,7,66,60],[67,0,67,60],[91,7,91,41],[92,7,92,41],[92,42,93,60],[94,42,94,50],[94,51,94,60],[95,7,95,60],[96,0,96,60],[97,0,97,60],[99,0,99,3],[99,4,99,41],[99,42,99,60],[98,0,98,60]]}
[null,null,null,null,null,null,null,"MINISTERUL AGRICULTURII ŞI DEZVOLTĂRII RURALE"]
[null,null,null,null,null,null,null,null,null,null,null,null,null,null,null,null,null,null,null,null,null,null,null,null,null,null,null,null,null,null,null,null,null,null,null,null,null,null,null,null,null,null,"Anexa A2\nHG28/2008"]
[null,null,null,null,null,null,null,"AGENŢIA PENTRU FINANŢAREA INVESTIŢIILOR RURALE"]
[null,null,null,null,null,null,null,null,null,null,null,null,null,null,null,null,null,null,null,null,null,null,null,null,null,null,null,null,null,null,null,null,null,null,null,null,null,null,null,null,null,null,null,null,null,null,null,null,null,null,null,"Nr.2"]
[null,null,null,null,null,null,null,"DEVIZ PE OBIECT *"]
[]
[]
["(Descriere obiect de construcţie)"]
["Nr. crt.",null,null,null,"Denumire",null,null,null,null,null,null,null,null,null,null,null,null,null,null,null,null,null,null,null,null,null,null,null,null,null,null,null,null,null,null,null,null,null,null,null,null,null,"Valoarea pe categorii de lucrări, fară TVA - EURO"]
[null,null,null,null,null,null,null,null,null,null,null,null,null,null,null,null,null,null,null,null,null,null,null,null,null,null,null,null,null,null,null,null,null,null,null,null,null,null,null,null,null,null,"Valoare eligibilă",null,null,null,null,null,null,null,null,"Valoare\nneeligibilă"]
["I - LUCRĂRI DE CONSTRUCŢII ŞI INSTALAŢII"]
[1,null,null,null,"Terasamente"]
[2,null,null,null,"Construcţii : rezistenţă (fundaţii, structură de rezistenţă) şi arhitectură (închideri exterioare, compartimentări, finisaje)"]
[3,null,null,null,"Izolaţii"]
[4,null,null,null,"Instalaţii electrice"]
[5,null,null,null,"Instalaţii sanitare"]
[6,null,null,null,"Instalaţii de încălzire, ventilare, climatizare. PSI, radio-tv, intranet"]
[7,null,null,null,"Instalaţii de alimentare cu gaze naturale"]
[8,null,null,null,"Instalaţii de telecomunicaţii"]
[null,null,null,null,"TOTAL I ( fără TVA)",null,null,null,null,null,null,null,null,null,null,null,null,null,null,null,null,null,null,null,null,null,null,null,null,null,null,null,null,null,null,null,null,null,null,null,null,null,{"$f":"SUM(AQ12:AY19)","v":0},null,null,null,null,null,null,null,null,{"$f":"SUM(AZ12:BI19)","v":0}]
["II - MONTAJ"]
[9,null,null,null,"Montaj utilaje şi echipamente tehnologice"]
[null,null,null,null,"TOTAL II ( fără TVA)",null,null,null,null,null,null,null,null,null,null,null,null,null,null,null,null,null,null,null,null,null,null,null,null,null,null,null,null,null,null,null,null,null,null,null,null,null,{"$f":"SUM(AQ22)","v":0},null,null,null,null,null,null,null,null,{"$f":"SUM(AZ22)","v":0}]
["III - PROCURARE"]
[10,null,null,null,"Utilaje şi echipamente tehnologice"]
[11,null,null,null,"Utilaje şi echipamente de transport, utilaje şi echipamente fară montaj, mijloace de transport, alte achiziţii specifice"]
[12,null,null,null,"Dotări"]
[null,null,null,null,"TOTAL III ( fără TVA)",null,null,null,null,null,null,null,null,null,null,null,null,null,null,null,null,null,null,null,null,null,null,null,null,null,null,null,null,null,null,null,null,null,null,null,null,null,{"$f":"SUM(AQ25:AY27)","v":0},null,null,null,null,null,null,null,null,{"$f":"SUM(AZ25:BI27)","v":0}]
["TOTAL ( TOTAL I + TOTAL II +TOTAL III) fără TVA",null,null,null,null,null,null,null,null,null,null,null,null,null,null,null,null,null,null,null,null,null,null,null,null,null,null,null,null,null,null,null,null,null,null,null,null,null,null,null,null,null,{"$f":"AQ28+AQ23+AQ20","v":0},null,null,null,null,null,null,null,null,{"$f":"AZ28+AZ23+AZ20","v":0}]
["TVA aferent cheltuielilor eligibile şi neeligibile"]
["TOTAL DEVIZ PE OBIECT (inclusiv TVA)",null,null,null,null,null,null,null,null,null,null,null,null,null,null,null,null,null,null,null,null,null,null,null,null,null,null,null,null,null,null,null,null,null,null,null,null,null,null,null,null,null,{"$f":"AQ29+AZ29+AQ30+AZ30","v":0}]
[null,null,null,null,null,null,null,"MINISTERUL AGRICULTURII ŞI DEZVOLTĂRII RURALE"]
[null,null,null,null,null,null,null,null,null,null,null,null,null,null,null,null,null,null,null,null,null,null,null,null,null,null,null,null,null,null,null,null,null,null,null,null,null,null,null,null,null,null,"Anexa A2\nHG28/2008"]
[null,null,null,null,null,null,null,"AGENŢIA PENTRU FINANŢAREA INVESTIŢIILOR RURALE"]
[null,null,null,null,null,null,null,null,null,null,null,null,null,null,null,null,null,null,null,null,null,null,null,null,null,null,null,null,null,null,null,null,null,null,null,null,null,null,null,null,null,null,null,null,null,null,null,null,null,null,null,"Nr.3"]
[null,null,null,null,null,null,null,"DEVIZ PE OBIECT *"]
[]
[]
["(Descriere obiect de construcţie)"]
["Nr. crt.",null,null,null,"Denumire",null,null,null,null,null,null,null,null,null,null,null,null,null,null,null,null,null,null,null,null,null,null,null,null,null,null,null,null,null,null,null,null,null,null,null,null,null,"Valoarea pe categorii de lucrări, fară TVA - EURO"]
[null,null,null,null,null,null,null,null,null,null,null,null,null,null,null,null,null,null,null,null,null,null,null,null,null,null,null,null,null,null,null,null,null,null,null,null,null,null,null,null,null,null,"Valoare eligibilă",null,null,null,null,null,null,null,null,"Valoare\nneeligibilă"]
["I - LUCRĂRI DE CONSTRUCŢII ŞI INSTALAŢII"]
[1,null,null,null,"Terasamente"]
[2,null,null,null,"Construcţii : rezistenţă (fundaţii, structură de rezistenţă) şi arhitectură (închideri exterioare, compartimentări, finisaje)"]
[3,null,null,null,"Izolaţii"]
[4,null,null,null,"Instalaţii electrice"]
[5,null,null,null,"Instalaţii sanitare"]
[6,null,null,null,"Instalaţii de încălzire, ventilare, climatizare. PSI, radio-tv, intranet"]
[7,null,null,null,"Instalaţii de alimentare cu gaze naturale"]
[8,null,null,null,"Instalaţii de telecomunicaţii"]
[null,null,null,null,"TOTAL I ( fără TVA)",null,null,null,null,null,null,null,null,null,null,null,null,null,null,null,null,null,null,null,null,null,null,null,null,null,null,null,null,null,null,null,null,null,null,null,null,null,{"$f":"SUM(AQ43:AY50)","v":0},null,null,null,null,null,null,null,null,{"$f":"SUM(AZ43:BI50)","v":0}]
["II - MONTAJ"]
[9,null,null,null,"Montaj utilaje şi echipamente tehnologice"]
[null,null,null,null,"TOTAL II ( fără TVA)",null,null,null,null,null,null,null,null,null,null,null,null,null,null,null,null,null,null,null,null,null,null,null,null,null,null,null,null,null,null,null,null,null,null,null,null,null,{"$f":"SUM(AQ53)","v":0},null,null,null,null,null,null,null,null,{"$f":"SUM(AZ53)","v":0}]
["III - PROCURARE"]
[10,null,null,null,"Utilaje şi echipamente tehnologice"]
[11,null,null,null,"Utilaje şi echipamente de transport, utilaje şi echipamente fară montaj, mijloace de transport, alte achiziţii specifice"]
[12,null,null,null,"Dotări"]
[null,null,null,null,"TOTAL III ( fără TVA)",null,null,null,null,null,null,null,null,null,null,null,null,null,null,null,null,null,null,null,null,null,null,null,null,null,null,null,null,null,null,null,null,null,null,null,null,null,{"$f":"SUM(AQ56:AY58)","v":0},null,null,null,null,null,null,null,null,{"$f":"SUM(AZ56:BI58)","v":0}]
["TOTAL ( TOTAL I + TOTAL II +TOTAL III) fără TVA",null,null,null,null,null,null,null,null,null,null,null,null,null,null,null,null,null,null,null,null,null,null,null,null,null,null,null,null,null,null,null,null,null,null,null,null,null,null,null,null,null,{"$f":"AQ59+AQ54+AQ51","v":0},null,null,null,null,null,null,null,null,{"$f":"AZ59+AZ54+AZ51","v":0}]
["TVA aferent cheltuielilor eligibile şi neeligibile"]
["TOTAL DEVIZ PE OBIECT (inclusiv TVA)",null,null,null,null,null,null,null,null,null,null,null,null,null,null,null,null,null,null,null,null,null,null,null,null,null,null,null,null,null,null,null,null,null,null,null,null,null,null,null,null,null,{"$f":"AQ60+AZ60+AQ61+AZ61","v":0}]
[null,null,null,null,null,null,null,"MINISTERUL AGRICULTURII ŞI DEZVOLTĂRII RURALE"]
[null,null,null,null,null,null,null,null,null,null,null,null,null,null,null,null,null,null,null,null,null,null,null,null,null,null,null,null,null,null,null,null,null,null,null,null,null,null,null,null,null,null,"Anexa A2\nHG 907/2016"]
[null,null,null,null,null,null,null,"AGENŢIA PENTRU FINANŢAREA INVESTIŢIILOR RURALE"]
[null,null,null,null,null,null,null,null,null,null,null,null,null,null,null,null,null,null,null,null,null,null,null,null,null,null,null,null,null,null,null,null,null,null,null,null,null,null,null,null,null,null,"………….2017",null,null,null,null,null,null,null,null,"Nr.2"]
[null,null,null,null,null,null,null,"DEVIZ PE OBIECT *"]
[]
[]
["(Descriere obiect de construcţie)"]
["Nr. crt.",null,null,null,"Denumire",null,null,null,null,null,null,null,null,null,null,null,null,null,null,null,null,null,null,null,null,null,null,null,null,null,null,null,null,null,null,null,null,null,null,null,null,null,"Valoarea pe categorii de lucrări, fară TVA - EURO"]
["Cap. 4 + Cheltuieli pentru investiţia de bază",null,null,null,null,null,null,null,null,null,null,null,null,null,null,null,null,null,null,null,null,null,null,null,null,null,null,null,null,null,null,null,null,null,null,null,null,null,null,null,null,null,"Valoare eligibilă",null,null,null,null,null,null,null,null,"Valoare\nneeligibilă"]
["I - LUCRĂRI DE CONSTRUCŢII ŞI INSTALAŢII"]
["4.1",null,null,null,"Construcții și instalații"]
[null,null,null,null,"4.1.1 Terasamente, sistematizare pe verticală și amenajări exterioare"]
[null,null,null,null,"4.1.2 Rezistență"]
[null,null,null,null,"4.1.3 Arhitectură"]
[null,null,null,null,"4.1.4 Instalații"]
[null,null,null,null,"TOTAL I ( fără TVA)",null,null,null,null,null,null,null,null,null,null,null,null,null,null,null,null,null,null,null,null,null,null,null,null,null,null,null,null,null,null,null,null,null,null,null,null,null,{"$f":"SUM(AQ75:AY78)","v":0},null,null,null,null,null,null,null,null,{"$f":"SUM(AZ75:BI78)","v":0}]
["II - MONTAJ"]
["4.2",null,null,null,"Montaj utilaje, echipamente tehnologice și funcționale"]
[null,null,null,null,"TOTAL II ( fără TVA)",null,null,null,null,null,null,null,null,null,null,null,null,null,null,null,null,null,null,null,null,null,null,null,null,null,null,null,null,null,null,null,null,null,null,null,null,null,{"$f":"SUM(AQ81)","v":0},null,null,null,null,null,null,null,null,{"$f":"SUM(AZ81)","v":0}]
["III - PROCURARE"]
["4.3",null,null,null,"Utilaje, echipamente tehnologice și funcționale care necesită montaj"]
["4.4",null,null,null,"Utilaje, echipamente tehnologice și funcționale care nu necesită montaj și echipamente de transport"]
["4.5",null,null,null,"Dotări"]
["4.6",null,null,null,"Active necorporale"]
[null,null,null,null,"TOTAL III ( fără TVA)",null,null,null,null,null,null,null,null,null,null,null,null,null,null,null,null,null,null,null,null,null,null,null,null,null,null,null,null,null,null,null,null,null,null,null,null,null,{"$f":"SUM(AQ84:AY87)","v":0},null,null,null,null,null,null,null,null,{"$f":"SUM(AZ84:BI87)","v":0}]
["TOTAL ( TOTAL I + TOTAL II +TOTAL III) fără TVA",null,null,null,null,null,null,null,null,null,null,null,null,null,null,null,null,null,null,null,null,null,null,null,null,null,null,null,null,null,null,null,null,null,null,null,null,null,null,null,null,null,{"$f":"AQ88+AQ82+AQ79","v":0},null,null,null,null,null,null,null,null,{"$f":"AZ88+AZ82+AZ79","v":0}]
["TVA aferent cheltuielilor eligibile şi neeligibile"]
["TOTAL DEVIZ PE OBIECT (inclusiv TVA)",null,null,null,null,null,null,null,null,null,null,null,null,null,null,null,null,null,null,null,null,null,null,null,null,null,null,null,null,null,null,null,null,null,null,null,null,null,null,null,null,null,{"$f":"AQ89+AZ89+AQ90+AZ90","v":0}]
[null,null,null,null,null,null,null,"MINISTERUL AGRICULTURII ŞI DEZVOLTĂRII RURALE"]
[null,null,null,null,null,null,null,null,null,null,null,null,null,null,null,null,null,null,null,null,null,null,null,null,null,null,null,null,null,null,null,null,null,null,null,null,null,null,null,null,null,null,"Anexa A2\nHG 907/2016"]
[null,null,null,null,null,null,null,"AGENŢIA PENTRU FINANŢAREA INVESTIŢIILOR RURALE"]
[null,null,null,null,null,null,null,null,null,null,null,null,null,null,null,null,null,null,null,null,null,null,null,null,null,null,null,null,null,null,null,null,null,null,null,null,null,null,null,null,null,null,"………….2017",null,null,null,null,null,null,null,null,"Nr.3"]
[null,null,null,null,null,null,null,"DEVIZ PE OBIECT *"]
[]
[]
["(Descriere obiect de construcţie)"]
["Nr. crt.",null,null,null,"Denumire",null,null,null,null,null,null,null,null,null,null,null,null,null,null,null,null,null,null,null,null,null,null,null,null,null,null,null,null,null,null,null,null,null,null,null,null,null,"Valoarea pe categorii de lucrări, fară TVA - EURO"]
["Cap. 4 + Cheltuieli pentru investiţia de bază",null,null,null,null,null,null,null,null,null,null,null,null,null,null,null,null,null,null,null,null,null,null,null,null,null,null,null,null,null,null,null,null,null,null,null,null,null,null,null,null,null,"Valoare eligibilă",null,null,null,null,null,null,null,null,"Valoare\nneeligibilă"]
["I - LUCRĂRI DE CONSTRUCŢII ŞI INSTALAŢII"]
["4.1",null,null,null,"Construcții și instalații"]
[null,null,null,null,"4.1.1 Terasamente, sistematizare pe verticală și amenajări exterioare"]
[null,null,null,null,"4.1.2 Rezistență"]
[null,null,null,null,"4.1.3 Arhitectură"]
[null,null,null,null,"4.1.4 Instalații"]
[null,null,null,null,"TOTAL I ( fără TVA)",null,null,null,null,null,null,null,null,null,null,null,null,null,null,null,null,null,null,null,null,null,null,null,null,null,null,null,null,null,null,null,null,null,null,null,null,null,{"$f":"SUM(AQ104:AY107)","v":0},null,null,null,null,null,null,null,null,{"$f":"SUM(AZ104:BI107)","v":0}]
["II - MONTAJ"]
["4.2",null,null,null,"Montaj utilaje, echipamente tehnologice și funcționale"]
[null,null,null,null,"TOTAL II ( fără TVA)",null,null,null,null,null,null,null,null,null,null,null,null,null,null,null,null,null,null,null,null,null,null,null,null,null,null,null,null,null,null,null,null,null,null,null,null,null,{"$f":"SUM(AQ110)","v":0},null,null,null,null,null,null,null,null,{"$f":"SUM(AZ110)","v":0}]
["III - PROCURARE"]
["4.3",null,null,null,"Utilaje, echipamente tehnologice și funcționale care necesită montaj"]
["4.4",null,null,null,"Utilaje, echipamente tehnologice și funcționale care nu necesită montaj și echipamente de transport"]
["4.5",null,null,null,"Dotări"]
["4.6",null,null,null,"Active necorporale"]
[null,null,null,null,"TOTAL III ( fără TVA)",null,null,null,null,null,null,null,null,null,null,null,null,null,null,null,null,null,null,null,null,null,null,null,null,null,null,null,null,null,null,null,null,null,null,null,null,null,{"$f":"SUM(AQ113:AY116)","v":0},null,null,null,null,null,null,null,null,{"$f":"SUM(AZ113:BI116)","v":0}]
["TOTAL ( TOTAL I + TOTAL II +TOTAL III) fără TVA",null,null,null,null,null,null,null,null,null,null,null,null,null,null,null,null,null,null,null,null,null,null,null,null,null,null,null,null,null,null,null,null,null,null,null,null,null,null,null,null,null,{"$f":"AQ117+AQ111+AQ108","v":0},null,null,null,null,null,null,null,null,{"$f":"AZ117+AZ111+AZ108","v":0}]
["TVA aferent cheltuielilor eligibile şi neeligibile"]
["TOTAL DEVIZ PE OBIECT (inclusiv TVA)",null,null,null,null,null,null,null,null,null,null,null,null,null,null,null,null,null,null,null,null,null,null,null,null,null,null,null,null,null,null,null,null,null,null,null,null,null,null,null,null,null,{"$f":"AQ118+AZ118+AQ119+AZ119","v":0}]

{"sheet":"Anexa 3","index":3,"n_rows":241,"n_cols":52,"rows_kept":241,"cut":false,"hidden":false,"merged":[[78,0,78,3],[78,4,78,41],[78,42,78,50],[78,51,78,60],[79,0,79,3],[79,4,79,41],[79,42,79,60],[76,0,76,3],[76,4,76,41],[76,42,76,50],[76,51,76,60],[77,0,77,3],[77,4,77,41],[77,42,77,50],[77,51,77,60],[74,0,74,3],[74,4,74,41],[74,42,74,50],[74,51,74,60],[75,0,75,3],[75,4,75,41],[75,42,75,50],[75,51,75,60],[72,0,72,3],[72,4,72,41],[72,42,72,50],[72,51,72,60],[73,0,73,3],[73,4,73,41],[73,42,73,50],[73,51,73,60],[70,0,70,3],[70,4,70,41],[70,42,70,50],[70,51,70,60],[71,0,71,3],[71,4,71,41],[71,42,71,50],[71,51,71,60],[68,0,68,3],[68,4,68,41],[68,42,68,50],[68,51,68,60],[69,0,69,3],[69,4,69,41],[69,42,69,50],[69,51,69,60],[65,0,65,60],[66,0,66,3],[66,4,66,41],[66,42,66,50],[66,51,66,60],[67,0,67,3],[67,4,67,41],[67,42,67,50],[67,51,67,60],[62,0,62,3],[62,4,62,41],[62,42,62,50],[62,51,62,60],[63,0,63,60],[64,0,64,3],[64,4,64,41],[64,42,64,50],[64,51,64,60],[60,0,60,3],[60,4,60,41],[60,42,60,50],[60,51,60,60],[61,0,61,41],[61,42,61,60],[58,0,58,3],[58,4,58,41],[58,42,58,50],[58,51,58,60],[59,0,59,3],[59,4,59,41],[59,42,59,50],[59,51,59,60],[56,0,56,3],[56,4,56,41],[56,42,56,50],[56,51,56,60],[57,0,57,3],[57,4,57,41],[57,42,57,50],[57,51,57,60],[54,0,54,3],[54,4,54,41],[54,42,54,50],[54,51,54,60],[55,0,55,3],[55,4,55,41],[55,42,55,50],[55,51,55,60],[52,0,52,3],[52,4,52,41],[52,42,52,50],[52,51,52,60],[53,0,53,3],[53,4,53,41],[53,42,53,50],[53,51,53,60],[50,42,50,50],[50,51,50,60],[51,0,51,3],[51,4,51,41],[51,42,51,50],[51,51,51,60],[42,7,42,41],[42,42,43,60],[43,7,43,41],[44,7,44,41],[44,42,44,50],[44,51,44,60],[45,7,45,60],[37,0,37,3],[37,4,37,41],[37,42,37,50],[37,51,37,60],[38,0,38,3],[38,4,38,41],[38,42,38,60],[35,0,35,3],[35,4,35,41],[35,42,35,50],[35,51,35,60],[36,0,36,3],[36,4,36,41],[36,42,36,50],[36,51,36,60],[33,0,33,3],[33,4,33,41],[33,42,33,50],[33,51,33,60],[34,0,34,3],[34,4,34,41],[34,42,34,50],[34,51,34,60],[31,0,31,3],[31,4,31,41],[31,42,31,50],[31,51,31,60],[32,0,32,3],[32,4,32,41],[32,42,32,50],[32,51,32,60],[29,0,29,3],[29,4,29,41],[29,42,29,50],[29,51,29,60],[30,0,30,3],[30,4,30,41],[30,42,30,50],[30,51,30,60],[27,0,27,3],[27,4,27,41],[27,42,27,50],[27,51,27,60],[28,0,28,3],[28,4,28,41],[28,42,28,50],[28,51,28,60],[25,0,25,3],[25,4,25,41],[25,42,25,50],[25,51,25,60],[26,0,26,3],[26,4,26,41],[26,42,26,50],[26,51,26,60],[22,0,22,60],[23,0,23,3],[23,4,23,41],[23,42,23,50],[23,51,23,60],[24,0,24,60],[20,0,20,41],[20,42,20,60],[21,0,21,3],[21,4,21,41],[21,42,21,50],[21,51,21,60],[13,0,13,3],[13,4,13,41],[13,42,13,50],[13,51,13,60],[18,0,18,3],[18,4,18,41],[18,42,18,50],[18,51,18,60],[19,0,19,3],[19,4,19,41],[19,42,19,50],[19,51,19,60],[16,0,16,3],[16,4,16,41],[16,42,16,50],[16,51,16,60],[17,0,17,3],[17,4,17,41],[17,42,17,50],[17,51,17,60],[1,7,1,41],[1,42,2,60],[2,7,2,41],[10,0,10,3],[10,4,10,41],[10,42,10,50],[10,51,10,60],[11,0,11,3],[11,4,11,41],[11,42,11,50],[11,51,11,60],[7,0,7,60],[8,0,8,60],[9,0,9,3],[9,4,9,41],[9,42,9,50],[9,51,9,60],[46,0,46,60],[47,0,47,60],[48,0,48,60],[49,0,49,60],[50,0,50,3],[50,4,50,41],[3,7,3,41],[3,42,3,50],[3,51,3,60],[4,7,4,60],[5,0,5,60],[6,0,6,60],[14,0,14,3],[14,4,14,41],[14,42,14,50],[14,51,14,60],[15,0,15,3],[15,4,15,41],[15,42,15,50],[15,51,15,60],[12,0,12,3],[12,4,12,41],[12,42,12,50],[12,51,12,60],[81,7,81,41],[81,42,82,60],[82,7,82,41],[83,7,83,41],[83,42,83,50],[83,51,83,60],[84,7,84,60],[85,0,85,60],[86,0,86,60],[87,0,87,60],[88,0,88,60],[89,0,89,3],[89,4,89,41],[89,42,89,50],[89,51,89,60],[90,0,90,3],[90,4,90,41],[90,42,90,50],[90,51,90,60],[91,0,91,3],[91,4,91,41],[91,42,91,50],[91,51,91,60],[92,0,92,3],[92,4,92,41],[92,42,92,50],[92,51,92,60],[93,0,93,3],[93,4,93,41],[93,42,93,50],[93,51,93,60],[94,0,94,3],[94,4,94,41],[94,42,94,50],[94,51,94,60],[95,0,95,3],[95,4,95,41],[95,42,95,50],[95,51,95,60],[96,0,96,3],[96,4,96,41],[96,42,96,50],[96,51,96,60],[97,0,97,3],[97,4,97,41],[97,42,97,50],[97,51,97,60],[98,0,98,3],[98,4,98,41],[98,42,98,50],[98,51,98,60],[99,0,99,3],[99,4,99,41],[99,42,99,50],[99,51,99,60],[100,0,100,3],[100,4,100,41],[100,42,100,50],[100,51,100,60],[101,0,101,41],[101,42,101,60],[102,0,102,3],[102,4,102,41],[102,42,102,50],[102,51,102,60],[103,0,103,60],[104,0,104,3],[104,4,104,41],[104,42,104,50],[104,51,104,60],[105,0,105,60],[106,0,106,3],[106,4,106,41],[106,42,106,50],[106,51,106,60],[107,0,107,3],[107,4,107,41],[107,42,107,50],[107,51,107,60],[108,0,108,3],[108,4,108,41],[108,42,108,50],[108,51,108,60],[109,0,109,3],[109,4,109,41],[109,42,109,50],[109,51,109,60],[110,0,110,3],[110,4,110,41],[110,42,110,50],[110,51,110,60],[111,0,111,3],[111,4,111,41],[111,42,111,50],[111,51,111,60],[112,0,112,3],[112,4,112,41],[112,42,112,50],[112,51,112,60],[113,0,113,3],[113,4,113,41],[113,42,113,50],[113,51,113,60],[114,0,114,3],[114,4,114,41],[114,42,114,50],[114,51,114,60],[115,0,115,3],[115,4,115,41],[115,42,115,50],[115,51,115,60],[116,0,116,3],[116,4,116,41],[116,42,116,50],[116,51,116,60],[117,0,117,3],[117,4,117,41],[117,42,117,50],[117,51,117,60],[118,0,118,3],[118,4,118,41],[118,42,118,50],[118,51,118,60],[119,0,119,3],[119,4,119,41],[119,42,119,60],[122,7,122,41],[122,42,123,60],[123,7,123,41],[124,7,124,41],[124,42,124,50],[124,51,124,60],[125,7,125,60],[126,0,126,60],[127,0,127,60],[128,0,128,60],[129,0,129,60],[130,0,130,3],[130,4,130,41],[130,42,130,50],[130,51,130,60],[131,0,131,3],[131,4,131,41],[131,42,131,50],[131,51,131,60],[132,0,132,3],[132,4,132,41],[132,42,132,50],[132,51,132,60],[133,0,133,3],[133,4,133,41],[133,42,133,50],[133,51,133,60],[134,0,134,3],[134,4,134,41],[134,42,134,50],[134,51,134,60],[135,0,135,3],[135,4,135,41],[135,42,135,50],[135,51,135,60],[136,0,136,3],[136,4,136,41],[136,42,136,50],[136,51,136,60],[137,0,137,3],[137,4,137,41],[137,42,137,50],[137,51,137,60],[138,0,138,3],[138,4,138,41],[138,42,138,50],[138,51,138,60],[139,0,139,3],[139,4,139,41],[139,42,139,50],[139,51,139,60],[140,0,140,3],[140,4,140,41],[140,42,140,50],[140,51,140,60],[141,0,141,3],[141,4,141,41],[141,42,141,50],[141,51,141,60],[142,0,142,41],[142,42,142,60],[143,0,143,3],[143,4,143,41],[143,42,143,50],[143,51,143,60],[144,0,144,60],[145,0,145,3],[145,4,145,41],[145,42,145,50],[145,51,145,60],[146,0,146,60],[147,0,147,3],[147,4,147,41],[147,42,147,50],[147,51,147,60],[148,0,148,3],[148,4,148,41],[148,42,148,50],[148,51,148,60],[149,0,149,3],[149,4,149,41],[149,42,149,50],[149,51,149,60],[150,0,150,3],[150,4,150,41],[150,42,150,50],[150,51,150,60],[151,0,151,3],[151,4,151,41],[151,42,151,50],[151,51,151,60],[152,0,152,3],[152,4,152,41],[152,42,152,50],[152,51,152,60],[153,0,153,3],[153,4,153,41],[153,42,153,50],[153,51,153,60],[154,0,154,3],[154,4,154,41],[154,42,154,50],[154,51,154,60],[155,0,155,3],[155,4,155,41],[155,42,155,50],[155,51,155,60],[156,0,156,3],[156,4,156,41],[156,42,156,50],[156,51,156,60],[157,0,157,3],[157,4,157,41],[157,42,157,50],[157,51,157,60],[162,7,162,41],[162,42,163,60],[163,7,163,41],[164,7,164,41],[164,42,164,50],[164,51,164,60],[165,7,165,60],[166,0,166,60],[158,0,158,3],[158,4,158,41],[158,42,158,50],[158,51,158,60],[159,0,159,3],[159,4,159,41],[159,42,159,50],[159,51,159,60],[160,0,160,3],[160,4,160,41],[160,42,160,60],[167,0,167,60],[168,0,168,60],[169,0,169,60],[170,0,170,3],[170,4,170,41],[170,42,170,50],[170,51,170,60],[171,0,171,3],[171,4,171,41],[171,42,171,50],[171,51,171,60],[172,0,172,3],[172,4,172,41],[172,42,172,50],[172,51,172,60],[173,0,173,3],[173,4,173,41],[173,42,173,50],[173,51,173,60],[174,0,174,3],[174,4,174,41],[174,42,174,50],[174,51,174,60],[175,0,175,3],[175,4,175,41],[175,42,175,50],[175,51,175,60],[176,0,176,3],[176,4,176,41],[176,42,176,50],[176,51,176,60],[177,0,177,3],[177,4,177,41],[177,42,177,50],[177,51,177,60],[178,0,178,3],[178,4,178,41],[178,42,178,50],[178,51,178,60],[179,0,179,3],[179,4,179,41],[179,42,179,50],[179,51,179,60],[180,0,180,3],[180,4,180,41],[180,42,180,50],[180,51,180,60],[181,0,181,3],[181,4,181,41],[181,42,181,50],[181,51,181,60],[182,0,182,41],[182,42,182,60],[183,0,183,3],[183,4,183,41],[183,42,183,50],[183,51,183,60],[184,0,184,60],[185,0,185,3],[185,4,185,41],[185,42,185,50],[185,51,185,60],[186,0,186,60],[187,0,187,3],[187,4,187,41],[187,42,187,50],[187,51,187,60],[188,0,188,3],[188,4,188,41],[188,42,188,50],[188,51,188,60],[189,0,189,3],[189,4,189,41],[189,42,189,50],[189,51,189,60],[190,0,190,3],[190,4,190,41],[190,42,190,50],[190,51,190,60],[191,0,191,3],[191,4,191,41],[191,42,191,50],[191,51,191,60],[192,0,192,3],[192,4,192,41],[192,42,192,50],[192,51,192,60],[193,0,193,3],[193,4,193,41],[193,42,193,50],[193,51,193,60],[194,0,194,3],[194,4,194,41],[194,42,194,50],[194,51,194,60],[195,0,195,3],[195,4,195,41],[195,42,195,50],[195,51,195,60],[196,0,196,3],[196,4,196,41],[196,42,196,50],[196,51,196,60],[197,0,197,3],[197,4,197,41],[197,42,197,50],[197,51,197,60],[198,0,198,3],[198,4,198,41],[198,42,198,50],[198,51,198,60],[199,0,199,3],[199,4,199,41],[199,42,199,50],[199,51,199,60],[200,0,200,3],[200,4,200,41],[200,42,200,60],[202,7,202,41],[202,42,203,60],[203,7,203,41],[204,7,204,41],[204,42,204,50],[204,51,204,60],[205,7,205,60],[206,0,206,60],[207,0,207,60],[208,0,208,60],[209,0,209,60],[210,0,210,3],[210,4,210,41],[210,42,210,50],[210,51,210,60],[211,0,211,3],[211,4,211,41],[211,42,211,50],[211,51,211,60],[212,0,212,3],[212,4,212,41],[212,42,212,50],[212,51,212,60],[213,0,213,3],[213,4,213,41],[213,42,213,50],[213,51,213,60],[214,0,214,3],[214,4,214,41],[214,42,214,50],[214,51,214,60],[215,0,215,3],[215,4,215,41],[215,42,215,50],[215,51,215,60],[216,0,216,3],[216,4,216,41],[216,42,216,50],[216,51,216,60],[217,0,217,3],[217,4,217,41],[217,42,217,50],[217,51,217,60],[218,0,218,3],[218,4,218,41],[218,42,218,50],[218,51,218,60],[219,0,219,3],[219,4,219,41],[219,42,219,50],[219,51,219,60],[220,0,220,3],[220,4,220,41],[220,42,220,50],[220,51,220,60],[221,0,221,3],[221,4,221,41],[221,42,221,50],[221,51,221,60],[222,0,222,41],[222,42,222,60],[223,0,223,3],[223,4,223,41],[223,42,223,50],[223,51,223,60],[224,0,224,60],[225,0,225,3],[225,4,225,41],[225,42,225,50],[225,51,225,60],[226,0,226,60],[227,0,227,3],[227,4,227,41],[227,42,227,50],[227,51,227,60],[228,0,228,3],[228,4,228,41],[228,42,228,50],[228,51,228,60],[229,0,229,3],[229,4,229,41],[229,42,229,50],[229,51,229,60],[230,0,230,3],[230,4,230,41],[230,42,230,50],[230,51,230,60],[231,0,231,3],[231,4,231,41],[231,42,231,50],[231,51,231,60],[232,0,232,3],[232,4,232,41],[232,42,232,50],[232,51,232,60],[233,0,233,3],[233,4,233,41],[233,42,233,50],[233,51,233,60],[234,0,234,3],[234,4,234,41],[234,42,234,50],[234,51,234,60],[235,0,235,3],[235,4,235,41],[235,42,235,50],[235,51,235,60],[236,0,236,3],[236,4,236,41],[236,42,236,50],[236,51,236,60],[237,0,237,3],[237,4,237,41],[237,42,237,50],[237,51,237,60],[238,0,238,3],[238,4,238,41],[238,42,238,50],[238,51,238,60],[239,0,239,3],[239,4,239,41],[239,42,239,50],[239,51,239,60],[240,0,240,3],[240,4,240,41],[240,42,240,60]]}
[]
[null,null,null,null,null,null,null,"MINISTERUL AGRICULTURII ŞI DEZVOLTĂRII RURALE",null,null,null,null,null,null,null,null,null,null,null,null,null,null,null,null,null,null,null,null,null,null,null,null,null,null,null,null,null,null,null,null,null,null,"Anexa A3\nHG28/2008"]
[]
[null,null,null,null,null,null,null,"AGENŢIA PENTRU FINANŢAREA INVESTIŢIILOR RURALE",null,null,null,null,null,null,null,null,null,null,null,null,null,null,null,null,null,null,null,null,null,null,null,null,null,null,null,null,null,null,null,null,null,null,null,null,null,null,null,null,null,null,null,"Nr.2"]
[]
[]
[]
["(Titlu deviz)"]
["Deviz capitolul 2- Cheltuieli pentru asigurarea utilităţilor necesare obiectivului - EURO"]
["Nr.crt",null,null,null,"Specificaţie",null,null,null,null,null,null,null,null,null,null,null,null,null,null,null,null,null,null,null,null,null,null,null,null,null,null,null,null,null,null,null,null,null,null,null,null,null,"Valoare eligibilă",null,null,null,null,null,null,null,null,"Valoare\nneeligibilă"]
[1,null,null,null,"Alimentare cu apă"]
[2,null,null,null,"Canalizare"]
[3,null,null,null,"Alimentare cu gaze naturale"]
[4,null,null,null,"Alimentare cu agent termic"]
[5,null,null,null,"Alimentare cu energie electrică"]
[6,null,null,null,"Telecomunicaţii (telefonie, radio-tv,etc)"]
[7,null,null,null,"Alte tipuri de reţele exterioare"]
[8,null,null,null,"Drumuri de acces"]
[null,null,null,null,"Total valoare fără TVA",null,null,null,null,null,null,null,null,null,null,null,null,null,null,null,null,null,null,null,null,null,null,null,null,null,null,null,null,null,null,null,null,null,null,null,null,null,{"$f":"SUM(AQ11:AY18)","v":0},null,null,null,null,null,null,null,null,{"$f":"SUM(AZ11:BI18)","v":0}]
[null,null,null,null,"Valoare TVA aferentă cheltuielilor eligibile şi neeligibile"]
["TOTAL DEVIZ CAPITOLUL 2 (inclusiv TVA)",null,null,null,null,null,null,null,null,null,null,null,null,null,null,null,null,null,null,null,null,null,null,null,null,null,null,null,null,null,null,null,null,null,null,null,null,null,null,null,null,null,{"$f":"AQ19+AZ19+AQ20+AZ20","v":0}]
[]
[" Deviz capitolul 5 - Alte cheltuieli - EURO"]
["Nr.crt",null,null,null,"Specificaţie",null,null,null,null,null,null,null,null,null,null,null,null,null,null,null,null,null,null,null,null,null,null,null,null,null,null,null,null,null,null,null,null,null,null,null,null,null,"Valoare eligibilă",null,null,null,null,null,null,null,null,"Valoare\nneeligibilă"]
[]
["5.1 ",null,null,null,"Organizare de şantier",null,null,null,null,null,null,null,null,null,null,null,null,null,null,null,null,null,null,null,null,null,null,null,null,null,null,null,null,null,null,null,null,null,null,null,null,null,{"$f":"SUM(AQ27:AY28)","v":0},null,null,null,null,null,null,null,null,{"$f":"SUM(AZ27:BI28)","v":0}]
["5.1.1",null,null,null,"lucrări de construcţii şi instalaţii aferente organizării de şantier"]
["5.1.2",null,null,null,"cheltuieli conexe organizării de şantier"]
["5.2",null,null,null,"Comisioane, taxe",null,null,null,null,null,null,null,null,null,null,null,null,null,null,null,null,null,null,null,null,null,null,null,null,null,null,null,null,null,null,null,null,null,null,null,null,null,{"$f":"SUM(AQ31:AY34)","v":0},null,null,null,null,null,null,null,null,{"$f":"SUM(AZ30:BI36)","v":0}]
[null,null,null,null,"comisionul băncii finanţatoare"]
[null,null,null,null,"cota aferentă Inspectoratului de Stat în Construcţii pentru controlul calităţii lucrărilor de construcţii"]
[null,null,null,null,"cota pentru controlul statului în amenajarea teritoriului, urbanism şi pentru autorizarea lucrărilor de construcţii"]
[null,null,null,null,"prime de asigurare din sarcina autorităţii contractante"]
[null,null,null,null,"alte cheltuieli de aceeaşi natură, stabilite în condiţiile legii"]
[null,null,null,null,"cota aferentă Casei Sociale a Constructorilor"]
["5.3",null,null,null," Cheltuieli diverse si neprevazute"]
[null,null,null,null,"TOTAL DEVIZ CAPITOLUL 5",null,null,null,null,null,null,null,null,null,null,null,null,null,null,null,null,null,null,null,null,null,null,null,null,null,null,null,null,null,null,null,null,null,null,null,null,null,{"$f":"AQ26+AQ29","v":0},null,null,null,null,null,null,null,null,{"$f":"AZ26+AZ29+AZ36","v":0}]
[null,null,null,null,"VALOARE TVA aferentă cheltuielilor eligibile şi neeligibile"]
[null,null,null,null,"TOTAL DEVIZ CAPITOLUL 5 ( inclusiv TVA)",null,null,null,null,null,null,null,null,null,null,null,null,null,null,null,null,null,null,null,null,null,null,null,null,null,null,null,null,null,null,null,null,null,null,null,null,null,{"$f":"AQ37+AZ37+AQ38+AZ38","v":0}]
[]
[]
[]
[null,null,null,null,null,null,null,"MINISTERUL AGRICULTURII ŞI DEZVOLTĂRII RURALE",null,null,null,null,null,null,null,null,null,null,null,null,null,null,null,null,null,null,null,null,null,null,null,null,null,null,null,null,null,null,null,null,null,null,"Anexa A3\nHG28/2008"]
[]
[null,null,null,null,null,null,null,"AGENŢIA PENTRU FINANŢAREA INVESTIŢIILOR RURALE",null,null,null,null,null,null,null,null,null,null,null,null,null,null,null,null,null,null,null,null,null,null,null,null,null,null,null,null,null,null,null,null,null,null,null,null,null,null,null,null,null,null,null,"Nr.3"]
[]
[]
[]
["(Titlu deviz)"]
["Deviz capitolul 2- Cheltuieli pentru asigurarea utilităţilor necesare obiectivului - EURO"]
["Nr.crt",null,null,null,"Specificaţie",null,null,null,null,null,null,null,null,null,null,null,null,null,null,null,null,null,null,null,null,null,null,null,null,null,null,null,null,null,null,null,null,null,null,null,null,null,"Valoare eligibilă",null,null,null,null,null,null,null,null,"Valoare\nneeligibilă"]
[1,null,null,null,"Alimentare cu apă"]
[2,null,null,null,"Canalizare"]
[3,null,null,null,"Alimentare cu gaze naturale"]
[4,null,null,null,"Alimentare cu agent termic"]
[5,null,null,null,"Alimentare cu energie electrică"]
[6,null,null,null,"Telecomunicaţii (telefonie, radio-tv,etc)"]
[7,null,null,null,"Alte tipuri de reţele exterioare"]
[8,null,null,null,"Drumuri de acces"]
[null,null,null,null,"Total valoare fără TVA",null,null,null,null,null,null,null,null,null,null,null,null,null,null,null,null,null,null,null,null,null,null,null,null,null,null,null,null,null,null,null,null,null,null,null,null,null,{"$f":"SUM(AQ52:AY59)","v":0},null,null,null,null,null,null,null,null,{"$f":"SUM(AZ52:BI59)","v":0}]
[null,null,null,null,"Valoare TVA aferentă cheltuielilor eligibile şi neeligibile"]
["TOTAL DEVIZ CAPITOLUL 2 (inclusiv TVA)",null,null,null,null,null,null,null,null,null,null,null,null,null,null,null,null,null,null,null,null,null,null,null,null,null,null,null,null,null,null,null,null,null,null,null,null,null,null,null,null,null,{"$f":"AQ60+AZ60+AQ61+AZ61","v":0}]
[]
[" Deviz capitolul 5 - Alte cheltuieli - EURO"]
["Nr.crt",null,null,null,"Specificaţie",null,null,null,null,null,null,null,null,null,null,null,null,null,null,null,null,null,null,null,null,null,null,null,null,null,null,null,null,null,null,null,null,null,null,null,null,null,"Valoare eligibilă",null,null,null,null,null,null,null,null,"Valoare\nneeligibilă"]
[]
["5.1 ",null,null,null,"Organizare de şantier",null,null,null,null,null,null,null,null,null,null,null,null,null,null,null,null,null,null,null,null,null,null,null,null,null,null,null,null,null,null,null,null,null,null,null,null,null,{"$f":"SUM(AQ68:AY69)","v":0},null,null,null,null,null,null,null,null,{"$f":"SUM(AZ68:BI69)","v":0}]
["5.1.1",null,null,null,"lucrări de construcţii şi instalaţii aferente organizării de şantier"]
["5.1.2",null,null,null,"cheltuieli conexe organizării de şantier"]
["5.2",null,null,null,"Comisioane, taxe",null,null,null,null,null,null,null,null,null,null,null,null,null,null,null,null,null,null,null,null,null,null,null,null,null,null,null,null,null,null,null,null,null,null,null,null,null,{"$f":"SUM(AQ72:AY75)","v":0},null,null,null,null,null,null,null,null,{"$f":"SUM(AZ71:BI77)","v":0}]
[null,null,null,null,"comisionul băncii finanţatoare"]
[null,null,null,null,"cota aferentă Inspectoratului de Stat în Construcţii pentru controlul calităţii lucrărilor de construcţii"]
[null,null,null,null,"cota pentru controlul statului în amenajarea teritoriului, urbanism şi pentru autorizarea lucrărilor de construcţii"]
[null,null,null,null,"prime de asigurare din sarcina autorităţii contractante"]
[null,null,null,null,"alte cheltuieli de aceeaşi natură, stabilite în condiţiile legii"]
[null,null,null,null,"cota aferentă Casei Sociale a Constructorilor"]
["5.3",null,null,null," Cheltuieli diverse si neprevazute"]
[null,null,null,null,"TOTAL DEVIZ CAPITOLUL 5",null,null,null,null,null,null,null,null,null,null,null,null,null,null,null,null,null,null,null,null,null,null,null,null,null,null,null,null,null,null,null,null,null,null,null,null,null,{"$f":"AQ67+AQ70","v":0},null,null,null,null,null,null,null,null,{"$f":"AZ67+AZ70+AZ77","v":0}]
[null,null,null,null,"VALOARE TVA aferentă cheltuielilor eligibile şi neeligibile"]
[null,null,null,null,"TOTAL DEVIZ CAPITOLUL 5 ( inclusiv TVA)",null,null,null,null,null,null,null,null,null,null,null,null,null,null,null,null,null,null,null,null,null,null,null,null,null,null,null,null,null,null,null,null,null,null,null,null,null,{"$f":"AQ78+AZ78+AQ79+AZ79","v":0}]
[]
[null,null,null,null,null,null,null,"MINISTERUL AGRICULTURII ŞI DEZVOLTĂRII RURALE",null,null,null,null,null,null,null,null,null,null,null,null,null,null,null,null,null,null,null,null,null,null,null,null,null,null,null,null,null,null,null,null,null,null,"Anexa A3\nHG 907/2016"]
[]
[null,null,null,null,null,null,null,"AGENŢIA PENTRU FINANŢAREA INVESTIŢIILOR RURALE",null,null,null,null,null,null,null,null,null,null,null,null,null,null,null,null,null,null,null,null,null,null,null,null,null,null,null,null,null,null,null,null,null,null,"……………2017",null,null,null,null,null,null,null,null,"Nr.2"]
[]
[]
[]
["(Titlu deviz)"]
["Deviz capitolul 2- Cheltuieli pentru asigurarea utilităţilor necesare obiectivului - EURO"]
["Nr.crt",null,null,null,"Specificaţie",null,null,null,null,null,null,null,null,null,null,null,null,null,null,null,null,null,null,null,null,null,null,null,null,null,null,null,null,null,null,null,null,null,null,null,null,null,"Valoare eligibilă",null,null,null,null,null,null,null,null,"Valoare\nneeligibilă"]
[1,null,null,null,"Alimentare cu apă"]
[2,null,null,null,"Canalizare"]
[3,null,null,null,"Alimentare cu gaze naturale"]
[4,null,null,null,"Alimentare cu agent termic"]
[5,null,null,null,"Alimentare cu energie electrică"]
[6,null,null,null,"Telecomunicaţii (telefonie, radio-tv,etc)"]
[7,null,null,null,"Drumuri de acces"]
[8,null,null,null,"Căi ferate industriale"]
[9,null,null,null,"Alte utilități"]
[null,null,null,null,"Total valoare fără TVA",null,null,null,null,null,null,null,null,null,null,null,null,null,null,null,null,null,null,null,null,null,null,null,null,null,null,null,null,null,null,null,null,null,null,null,null,null,{"$f":"SUM(AQ91:AY99)","v":0},null,null,null,null,null,null,null,null,{"$f":"SUM(AZ91:BI99)","v":0}]
[null,null,null,null,"Valoare TVA aferentă cheltuielilor eligibile şi neeligibile"]
["TOTAL DEVIZ CAPITOLUL 2 (inclusiv TVA)",null,null,null,null,null,null,null,null,null,null,null,null,null,null,null,null,null,null,null,null,null,null,null,null,null,null,null,null,null,null,null,null,null,null,null,null,null,null,null,null,null,{"$f":"AQ100+AZ100+AQ101+AZ101","v":0}]
[]
[" Deviz capitolul 5 - Alte cheltuieli - EURO"]
["Nr.crt",null,null,null,"Specificaţie",null,null,null,null,null,null,null,null,null,null,null,null,null,null,null,null,null,null,null,null,null,null,null,null,null,null,null,null,null,null,null,null,null,null,null,null,null,"Valoare eligibilă",null,null,null,null,null,null,null,null,"Valoare\nneeligibilă"]
[]
["5.1 ",null,null,null,"Organizare de şantier",null,null,null,null,null,null,null,null,null,null,null,null,null,null,null,null,null,null,null,null,null,null,null,null,null,null,null,null,null,null,null,null,null,null,null,null,null,{"$f":"SUM(AQ108:AY109)","v":0},null,null,null,null,null,null,null,null,{"$f":"SUM(AZ108:BI109)","v":0}]
[null,null,null,null,"5.1.1 Lucrări de construcţii şi instalaţii aferente organizării de şantier"]
[null,null,null,null,"5.1.2 Cheltuieli conexe organizării de şantier"]
["5.2",null,null,null,"Comisioane, cote, taxe, costul creditului",null,null,null,null,null,null,null,null,null,null,null,null,null,null,null,null,null,null,null,null,null,null,null,null,null,null,null,null,null,null,null,null,null,null,null,null,null,{"$f":"SUM(AQ112:AY115)","v":0},null,null,null,null,null,null,null,null,{"$f":"SUM(AZ111:BI115)","v":0}]
[null,null,null,null,"5.2.1. Comisioanele şi dobânzile aferente creditului băncii finanţatoare"]
[null,null,null,null,"5.2.2. Cota aferentă ISC pentru controlul calităţii lucrărilor de construcţii"]
[null,null,null,null,"5.2.3. Cota aferentă ISC pentru controlul statului în amenajarea teritoriului, urbanism şi pentru autorizarea lucrărilor de construcţii"]
[null,null,null,null,"5.2.4. Cota aferentă Casei Sociale a Constructorilor - CSC"]
[null,null,null,null,"5.2.5. Taxe pentru acorduri, avize conforme şi autorizaţia de construire/desfiinţare"]
["5.3",null,null,null," Cheltuieli diverse si neprevazute"]
["5.4",null,null,null," Cheltuieli pentru informare și publicitate"]
[null,null,null,null,"TOTAL DEVIZ CAPITOLUL 5",null,null,null,null,null,null,null,null,null,null,null,null,null,null,null,null,null,null,null,null,null,null,null,null,null,null,null,null,null,null,null,null,null,null,null,null,null,{"$f":"AQ107+AQ110+AQ116","v":0},null,null,null,null,null,null,null,null,{"$f":"AZ107+AZ110+AZ116+AZ117","v":0}]
[null,null,null,null,"VALOARE TVA aferentă cheltuielilor eligibile şi neeligibile"]
[null,null,null,null,"TOTAL DEVIZ CAPITOLUL 5 ( inclusiv TVA)",null,null,null,null,null,null,null,null,null,null,null,null,null,null,null,null,null,null,null,null,null,null,null,null,null,null,null,null,null,null,null,null,null,null,null,null,null,{"$f":"AQ118+AZ118+AQ119+AZ119","v":0}]
[]
[]
[null,null,null,null,null,null,null,"MINISTERUL AGRICULTURII ŞI DEZVOLTĂRII RURALE",null,null,null,null,null,null,null,null,null,null,null,null,null,null,null,null,null,null,null,null,null,null,null,null,null,null,null,null,null,null,null,null,null,null,"Anexa A3\nHG 907/2016"]
[]
[null,null,null,null,null,null,null,"AGENŢIA PENTRU FINANŢAREA INVESTIŢIILOR RURALE",null,null,null,null,null,null,null,null,null,null,null,null,null,null,null,null,null,null,null,null,null,null,null,null,null,null,null,null,null,null,null,null,null,null,"……………2017",null,null,null,null,null,null,null,null,"Nr.3"]
[]
[]
[]
["(Titlu deviz)"]
["Deviz capitolul 2- Cheltuieli pentru asigurarea utilităţilor necesare obiectivului - EURO"]
["Nr.crt",null,null,null,"Specificaţie",null,null,null,null,null,null,null,null,null,null,null,null,null,null,null,null,null,null,null,null,null,null,null,null,null,null,null,null,null,null,null,null,null,null,null,null,null,"Valoare eligibilă",null,null,null,null,null,null,null,null,"Valoare\nneeligibilă"]
[1,null,null,null,"Alimentare cu apă"]
[2,null,null,null,"Canalizare"]
[3,null,null,null,"Alimentare cu gaze naturale"]
[4,null,null,null,"Alimentare cu agent termic"]
[5,null,null,null,"Alimentare cu energie electrică"]
[6,null,null,null,"Telecomunicaţii (telefonie, radio-tv,etc)"]
[7,null,null,null,"Drumuri de acces"]
[8,null,null,null,"Căi ferate industriale"]
[9,null,null,null,"Alte utilități"]
[null,null,null,null,"Total valoare fără TVA",null,null,null,null,null,null,null,null,null,null,null,null,null,null,null,null,null,null,null,null,null,null,null,null,null,null,null,null,null,null,null,null,null,null,null,null,null,{"$f":"SUM(AQ132:AY140)","v":0},null,null,null,null,null,null,null,null,{"$f":"SUM(AZ132:BI140)","v":0}]
[null,null,null,null,"Valoare TVA aferentă cheltuielilor eligibile şi neeligibile"]
["TOTAL DEVIZ CAPITOLUL 2 (inclusiv TVA)",null,null,null,null,null,null,null,null,null,null,null,null,null,null,null,null,null,null,null,null,null,null,null,null,null,null,null,null,null,null,null,null,null,null,null,null,null,null,null,null,null,{"$f":"AQ141+AZ141+AQ142+AZ142","v":0}]
[]
[" Deviz capitolul 5 - Alte cheltuieli - EURO"]
["Nr.crt",null,null,null,"Specificaţie",null,null,null,null,null,null,null,null,null,null,null,null,null,null,null,null,null,null,null,null,null,null,null,null,null,null,null,null,null,null,null,null,null,null,null,null,null,"Valoare eligibilă",null,null,null,null,null,null,null,null,"Valoare\nneeligibilă"]
[]
["5.1 ",null,null,null,"Organizare de şantier",null,null,null,null,null,null,null,null,null,null,null,null,null,null,null,null,null,null,null,null,null,null,null,null,null,null,null,null,null,null,null,null,null,null,null,null,null,{"$f":"SUM(AQ149:AY150)","v":0},null,null,null,null,null,null,null,null,{"$f":"SUM(AZ149:BI150)","v":0}]
[null,null,null,null,"5.1.1 Lucrări de construcţii şi instalaţii aferente organizării de şantier"]
[null,null,null,null,"5.1.2 Cheltuieli conexe organizării de şantier"]
["5.2",null,null,null,"Comisioane, cote, taxe, costul creditului",null,null,null,null,null,null,null,null,null,null,null,null,null,null,null,null,null,null,null,null,null,null,null,null,null,null,null,null,null,null,null,null,null,null,null,null,null,{"$f":"SUM(AQ153:AY156)","v":0},null,null,null,null,null,null,null,null,{"$f":"SUM(AZ152:BI156)","v":0}]
[null,null,null,null,"5.2.1. Comisioanele şi dobânzile aferente creditului băncii finanţatoare"]
[null,null,null,null,"5.2.2. Cota aferentă ISC pentru controlul calităţii lucrărilor de construcţii"]
[null,null,null,null,"5.2.3. Cota aferentă ISC pentru controlul statului în amenajarea teritoriului, urbanism şi pentru autorizarea lucrărilor de construcţii"]
[null,null,null,null,"5.2.4. Cota aferentă Casei Sociale a Constructorilor - CSC"]
[null,null,null,null,"5.2.5. Taxe pentru acorduri, avize conforme şi autorizaţia de construire/desfiinţare"]
["5.3",null,null,null," Cheltuieli diverse si neprevazute"]
["5.4",null,null,null," Cheltuieli pentru informare și publicitate"]
[null,null,null,null,"TOTAL DEVIZ CAPITOLUL 5",null,null,null,null,null,null,null,null,null,null,null,null,null,null,null,null,null,null,null,null,null,null,null,null,null,null,null,null,null,null,null,null,null,null,null,null,null,{"$f":"AQ148+AQ151+AQ157","v":0},null,null,null,null,null,null,null,null,{"$f":"AZ148+AZ151+AZ157+AZ158","v":0}]
[null,null,null,null,"VALOARE TVA aferentă cheltuielilor eligibile şi neeligibile"]
[null,null,null,null,"TOTAL DEVIZ CAPITOLUL 5 ( inclusiv TVA)",null,null,null,null,null,null,null,null,null,null,null,null,null,null,null,null,null,null,null,null,null,null,null,null,null,null,null,null,null,null,null,null,null,null,null,null,null,{"$f":"AQ159+AZ159+AQ160+AZ160","v":0}]
[]
[null,null,null,null,null,null,null,"MINISTERUL AGRICULTURII ŞI DEZVOLTĂRII RURALE",null,null,null,null,null,null,null,null,null,null,null,null,null,null,null,null,null,null,null,null,null,null,null,null,null,null,null,null,null,null,null,null,null,null,"Anexa A3\nHG 907/2016"]
[]
[null,null,null,null,null,null,null,"AGENŢIA PENTRU FINANŢAREA INVESTIŢIILOR RURALE",null,null,null,null,null,null,null,null,null,null,null,null,null,null,null,null,null,null,null,null,null,null,null,null,null,null,null,null,null,null,null,null,null,null,"……………2017",null,null,null,null,null,null,null,null,"Nr.2"]
[]
[]
[]
["(Titlu deviz)"]
["Deviz capitolul 2- Cheltuieli pentru asigurarea utilităţilor necesare obiectivului - EURO"]
["Nr.crt",null,null,null,"Specificaţie",null,null,null,null,null,null,null,null,null,null,null,null,null,null,null,null,null,null,null,null,null,null,null,null,null,null,null,null,null,null,null,null,null,null,null,null,null,"Valoare eligibilă",null,null,null,null,null,null,null,null,"Valoare\nneeligibilă"]
[1,null,null,null,"Alimentare cu apă"]
[2,null,null,null,"Canalizare"]
[3,null,null,null,"Alimentare cu gaze naturale"]
[4,null,null,null,"Alimentare cu agent termic"]
[5,null,null,null,"Alimentare cu energie electrică"]
[6,null,null,null,"Telecomunicaţii (telefonie, radio-tv,etc)"]
[7,null,null,null,"Drumuri de acces"]
[8,null,null,null,"Căi ferate industriale"]
[9,null,null,null,"Alte utilități"]
[null,null,null,null,"Total valoare fără TVA",null,null,null,null,null,null,null,null,null,null,null,null,null,null,null,null,null,null,null,null,null,null,null,null,null,null,null,null,null,null,null,null,null,null,null,null,null,{"$f":"SUM(AQ172:AY180)","v":0},null,null,null,null,null,null,null,null,{"$f":"SUM(AZ172:BI180)","v":0}]
[null,null,null,null,"Valoare TVA aferentă cheltuielilor eligibile şi neeligibile"]
["TOTAL DEVIZ CAPITOLUL 2 (inclusiv TVA)",null,null,null,null,null,null,null,null,null,null,null,null,null,null,null,null,null,null,null,null,null,null,null,null,null,null,null,null,null,null,null,null,null,null,null,null,null,null,null,null,null,{"$f":"AQ181+AZ181+AQ182+AZ182","v":0}]
[]
[" Deviz capitolul 5 - Alte cheltuieli - EURO"]
["Nr.crt",null,null,null,"Specificaţie",null,null,null,null,null,null,null,null,null,null,null,null,null,null,null,null,null,null,null,null,null,null,null,null,null,null,null,null,null,null,null,null,null,null,null,null,null,"Valoare eligibilă",null,null,null,null,null,null,null,null,"Valoare\nneeligibilă"]
[]
["5.1 ",null,null,null,"Organizare de şantier",null,null,null,null,null,null,null,null,null,null,null,null,null,null,null,null,null,null,null,null,null,null,null,null,null,null,null,null,null,null,null,null,null,null,null,null,null,{"$f":"SUM(AQ189:AY190)","v":0},null,null,null,null,null,null,null,null,{"$f":"SUM(AZ189:BI190)","v":0}]
[null,null,null,null,"5.1.1 Lucrări de construcţii şi instalaţii aferente organizării de şantier"]
[null,null,null,null,"5.1.2 Cheltuieli conexe organizării de şantier"]
["5.2",null,null,null,"Comisioane, cote, taxe, costul creditului",null,null,null,null,null,null,null,null,null,null,null,null,null,null,null,null,null,null,null,null,null,null,null,null,null,null,null,null,null,null,null,null,null,null,null,null,null,{"$f":"SUM(AQ193:AY196)","v":0},null,null,null,null,null,null,null,null,{"$f":"SUM(AZ192:BI196)","v":0}]
[null,null,null,null,"5.2.1. Comisioanele şi dobânzile aferente creditului băncii finanţatoare"]
[null,null,null,null,"5.2.2. Cota aferentă ISC pentru controlul calităţii lucrărilor de construcţii"]
[null,null,null,null,"5.2.3. Cota aferentă ISC pentru controlul statului în amenajarea teritoriului, urbanism şi pentru autorizarea lucrărilor de construcţii"]
[null,null,null,null,"5.2.4. Cota aferentă Casei Sociale a Constructorilor - CSC"]
[null,null,null,null,"5.2.5. Taxe pentru acorduri, avize conforme şi autorizaţia de construire/desfiinţare"]
["5.3",null,null,null," Cheltuieli diverse si neprevazute"]
["5.4",null,null,null," Cheltuieli pentru informare și publicitate"]
[null,null,null,null,"TOTAL DEVIZ CAPITOLUL 5",null,null,null,null,null,null,null,null,null,null,null,null,null,null,null,null,null,null,null,null,null,null,null,null,null,null,null,null,null,null,null,null,null,null,null,null,null,{"$f":"AQ188+AQ191+AQ197","v":0},null,null,null,null,null,null,null,null,{"$f":"AZ188+AZ191+AZ197+AZ198","v":0}]
[null,null,null,null,"VALOARE TVA aferentă cheltuielilor eligibile şi neeligibile"]
[null,null,null,null,"TOTAL DEVIZ CAPITOLUL 5 ( inclusiv TVA)",null,null,null,null,null,null,null,null,null,null,null,null,null,null,null,null,null,null,null,null,null,null,null,null,null,null,null,null,null,null,null,null,null,null,null,null,null,{"$f":"AQ199+AZ199+AQ200+AZ200","v":0}]
[]
[null,null,null,null,null,null,null,"MINISTERUL AGRICULTURII ŞI DEZVOLTĂRII RURALE",null,null,null,null,null,null,null,null,null,null,null,null,null,null,null,null,null,null,null,null,null,null,null,null,null,null,null,null,null,null,null,null,null,null,"Anexa A3\nHG 907/2016"]
[]
[null,null,null,null,null,null,null,"AGENŢIA PENTRU FINANŢAREA INVESTIŢIILOR RURALE",null,null,null,null,null,null,null,null,null,null,null,null,null,null,null,null,null,null,null,null,null,null,null,null,null,null,null,null,null,null,null,null,null,null,"……………2017",null,null,null,null,null,null,null,null,"Nr.3"]
[]
[]
[]
["(Titlu deviz)"]
["Deviz capitolul 2- Cheltuieli pentru asigurarea utilităţilor necesare obiectivului - EURO"]
["Nr.crt",null,null,null,"Specificaţie",null,null,null,null,null,null,null,null,null,null,null,null,null,null,null,null,null,null,null,null,null,null,null,null,null,null,null,null,null,null,null,null,null,null,null,null,null,"Valoare eligibilă",null,null,null,null,null,null,null,null,"Valoare\nneeligibilă"]
[1,null,null,null,"Alimentare cu apă"]
[2,null,null,null,"Canalizare"]
[3,null,null,null,"Alimentare cu gaze naturale"]
[4,null,null,null,"Alimentare cu agent termic"]
[5,null,null,null,"Alimentare cu energie electrică"]
[6,null,null,null,"Telecomunicaţii (telefonie, radio-tv,etc)"]
[7,null,null,null,"Drumuri de acces"]
[8,null,null,null,"Căi ferate industriale"]
[9,null,null,null,"Alte utilități"]
[null,null,null,null,"Total valoare fără TVA",null,null,null,null,null,null,null,null,null,null,null,null,null,null,null,null,null,null,null,null,null,null,null,null,null,null,null,null,null,null,null,null,null,null,null,null,null,{"$f":"SUM(AQ212:AY220)","v":0},null,null,null,null,null,null,null,null,{"$f":"SUM(AZ212:BI220)","v":0}]
[null,null,null,null,"Valoare TVA aferentă cheltuielilor eligibile şi neeligibile"]
["TOTAL DEVIZ CAPITOLUL 2 (inclusiv TVA)",null,null,null,null,null,null,null,null,null,null,null,null,null,null,null,null,null,null,null,null,null,null,null,null,null,null,null,null,null,null,null,null,null,null,null,null,null,null,null,null,null,{"$f":"AQ221+AZ221+AQ222+AZ222","v":0}]
[]
[" Deviz capitolul 5 - Alte cheltuieli - EURO"]
["Nr.crt",null,null,null,"Specificaţie",null,null,null,null,null,null,null,null,null,null,null,null,null,null,null,null,null,null,null,null,null,null,null,null,null,null,null,null,null,null,null,null,null,null,null,null,null,"Valoare eligibilă",null,null,null,null,null,null,null,null,"Valoare\nneeligibilă"]
[]
["5.1 ",null,null,null,"Organizare de şantier",null,null,null,null,null,null,null,null,null,null,null,null,null,null,null,null,null,null,null,null,null,null,null,null,null,null,null,null,null,null,null,null,null,null,null,null,null,{"$f":"SUM(AQ229:AY230)","v":0},null,null,null,null,null,null,null,null,{"$f":"SUM(AZ229:BI230)","v":0}]
[null,null,null,null,"5.1.1 Lucrări de construcţii şi instalaţii aferente organizării de şantier"]
[null,null,null,null,"5.1.2 Cheltuieli conexe organizării de şantier"]
["5.2",null,null,null,"Comisioane, cote, taxe, costul creditului",null,null,null,null,null,null,null,null,null,null,null,null,null,null,null,null,null,null,null,null,null,null,null,null,null,null,null,null,null,null,null,null,null,null,null,null,null,{"$f":"SUM(AQ233:AY236)","v":0},null,null,null,null,null,null,null,null,{"$f":"SUM(AZ232:BI236)","v":0}]
[null,null,null,null,"5.2.1. Comisioanele şi dobânzile aferente creditului băncii finanţatoare"]
[null,null,null,null,"5.2.2. Cota aferentă ISC pentru controlul calităţii lucrărilor de construcţii"]
[null,null,null,null,"5.2.3. Cota aferentă ISC pentru controlul statului în amenajarea teritoriului, urbanism şi pentru autorizarea lucrărilor de construcţii"]
[null,null,null,null,"5.2.4. Cota aferentă Casei Sociale a Constructorilor - CSC"]
[null,null,null,null,"5.2.5. Taxe pentru acorduri, avize conforme şi autorizaţia de construire/desfiinţare"]
["5.3",null,null,null," Cheltuieli diverse si neprevazute"]
["5.4",null,null,null," Cheltuieli pentru informare și publicitate"]
[null,null,null,null,"TOTAL DEVIZ CAPITOLUL 5",null,null,null,null,null,null,null,null,null,null,null,null,null,null,null,null,null,null,null,null,null,null,null,null,null,null,null,null,null,null,null,null,null,null,null,null,null,{"$f":"AQ228+AQ231+AQ237","v":0},null,null,null,null,null,null,null,null,{"$f":"AZ228+AZ231+AZ237+AZ238","v":0}]
[null,null,null,null,"VALOARE TVA aferentă cheltuielilor eligibile şi neeligibile"]
[null,null,null,null,"TOTAL DEVIZ CAPITOLUL 5 ( inclusiv TVA)",null,null,null,null,null,null,null,null,null,null,null,null,null,null,null,null,null,null,null,null,null,null,null,null,null,null,null,null,null,null,null,null,null,null,null,null,null,{"$f":"AQ239+AZ239+AQ240+AZ240","v":0}]

{"sheet":"Asociati","index":4,"n_rows":55,"n_cols":53,"rows_kept":55,"cut":false,"hidden":false,"merged":[[0,0,0,60],[1,0,1,60],[3,5,3,13],[4,17,4,58],[6,3,6,10],[6,24,6,49],[7,3,7,16],[7,24,7,49],[11,4,11,15],[11,18,11,20],[11,21,11,26],[11,28,11,35],[11,37,11,48],[11,51,11,58],[12,4,12,6],[12,7,12,9],[12,10,12,15],[12,18,13,20],[12,21,13,26],[12,28,13,35],[12,37,13,48],[12,51,13,58],[13,4,13,6],[13,7,13,9],[13,10,13,15],[15,2,15,28],[16,25,16,35],[17,3,17,22],[17,25,17,42],[17,44,17,58],[19,46,19,49],[19,52,19,57],[20,5,20,13],[23,7,23,18],[25,9,25,58],[19,3,19,10],[19,13,19,29],[19,31,19,34],[19,36,19,39],[19,41,19,44],[27,29,27,51],[28,4,28,17],[28,29,28,50],[38,51,38,58],[30,5,30,13],[31,17,31,58],[33,3,33,10],[33,24,33,49],[34,3,34,16],[34,24,34,49],[38,4,38,15],[38,18,38,20],[38,21,38,26],[38,28,38,35],[38,37,38,48],[52,9,52,58],[39,37,40,48],[39,51,40,58],[40,4,40,6],[40,7,40,9],[40,10,40,15],[42,2,42,28],[39,4,39,6],[39,7,39,9],[39,10,39,15],[39,18,40,20],[39,21,40,26],[39,28,40,35],[54,29,54,51],[55,4,55,17],[55,29,55,50],[43,25,43,35],[44,3,44,22],[44,25,44,42],[44,44,44,58],[46,3,46,10],[46,13,46,29],[46,31,46,34],[46,36,46,39],[46,41,46,44],[46,46,46,49],[46,52,46,57],[47,5,47,13],[50,7,50,18]]}
["B INFORMAŢII PRIVIND SOLICITANTUL"]
[]
[null,"Asociați"]
[null,null,null,null,null,"Persoană Fizică: "]
[null,null,null,"Nume și prenume asociat : "]
[]
[null,null,null,"Data naşterii",null,null,null,null,null,null,null,null,null,null,null,null,null,null,null,null,null,null,null,null,"Cod numeric personal"]
[]
[]
[]
[]
[null,null,null,null,"Act de identitate",null,null,null,null,null,null,null,null,null,null,null,null,null,"Seria",null,null,"Nr.",null,null,null,null,null,null,"Eliberat la data de",null,null,null,null,null,null,null,null,"de:",null,null,null,null,null,null,null,null,null,null,null,null,null,"Valabil până la:"]
[null,null,null,null,"B.I.",null,null,"C.I.",null,null,"Paşaport"]
[]
[]
[null,null,"Adresa și domiciliul asociatului:"]
[null,null,null,"Judeţ",null,null,null,null,null,null,null,null,null,null,null,null,null,null,null,null,null,null,null,null,null,"Localitate",null,null,null,null,null,null,null,null,null,null,null,null,null,null,null,null,null,null,"Sat"]
[]
[null,null,null,"Cod Poştal",null,null,null,null,null,null,null,null,null,"Strada",null,null,null,null,null,null,null,null,null,null,null,null,null,null,null,null,null,"Nr.",null,null,null,null,"Bloc",null,null,null,null,"Scara",null,null,null,null,"Etaj",null,null,null,null,null,"Apartament"]
[]
[null,null,null,null,null,"Persoană Juridică: "]
[]
[null,null,null,null,null,null,null,"Înregistrată în România"]
[null,null,null,null,null,null,null,"Înregistrată în altă țară"]
[]
[null,null,null,"Denumire : "]
[]
[null,null,null,null,"CUI",null,null,null,null,null,null,null,null,null,null,null,null,null,null,null,null,null,null,null,null,null,null,null,null,"Nr. Inreg. ONRC"]
[]
[]
[null,null,null,null,null,"Persoană Fizică: "]
[null,null,null,"Nume și prenume asociat : "]
[]
[null,null,null,"Data naşterii",null,null,null,null,null,null,null,null,null,null,null,null,null,null,null,null,null,null,null,null,"Cod numeric personal"]
[]
[]
[]
[]
[null,null,null,null,"Act de identitate",null,null,null,null,null,null,null,null,null,null,null,null,null,"Seria",null,null,"Nr.",null,null,null,null,null,null,"Eliberat la data de",null,null,null,null,null,null,null,null,"de:",null,null,null,null,null,null,null,null,null,null,null,null,null,"Valabil până la:"]
[null,null,null,null,"B.I.",null,null,"C.I.",null,null,"Paşaport"]
[]
[]
[null,null,"Adresa și domiciliul asociatului:"]
[null,null,null,"Judeţ",null,null,null,null,null,null,null,null,null,null,null,null,null,null,null,null,null,null,null,null,null,"Localitate",null,null,null,null,null,null,null,null,null,null,null,null,null,null,null,null,null,null,"Sat"]
[]
[null,null,null,"Cod Poştal",null,null,null,null,null,null,null,null,null,"Strada",null,null,null,null,null,null,null,null,null,null,null,null,null,null,null,null,null,"Nr.",null,null,null,null,"Bloc",null,null,null,null,"Scara",null,null,null,null,"Etaj",null,null,null,null,null,"Apartament"]
[]
[null,null,null,null,null,"Persoană Juridică: "]
[]
[null,null,null,null,null,null,null,"Înregistrată în România"]
[null,null,null,null,null,null,null,"Înregistrată în altă țară"]
[]
[null,null,null,"Denumire : "]
[]
[null,null,null,null,"CUI",null,null,null,null,null,null,null,null,null,null,null,null,null,null,null,null,null,null,null,null,null,null,null,null,"Nr. Inreg. ONRC"]